{"text_format":"1","workbook":"xlsx","n_sheets":10,"sheets":["Datenbasis","0603","0805","Dioden, TVS Dioden","Mosfets","POE Standard Teile","Teile in Kartons Lagerraum","Teile in Kartons Büro","Kartons im LAB","Artikel"],"not_rendered":{"charts":0,"images":8,"macros":1,"external_links":0,"defined_names":12,"comments":0,"pivot_tables":0},"unopened":[],"bounds":{"document_bytes":16777216,"sheet_cells":100000,"rows_first":2000,"rows_last":500,"rows_between":2000,"halvings":0,"cell_chars":16384,"cell_head_chars":4096},"cells_cut":0,"cells_raw":0,"read":"whole","date_system":"1900"}

{"sheet":"Datenbasis","index":0,"n_rows":985,"n_cols":13,"rows_kept":985,"cut":false,"hidden":false,"merged":[]}
[]
[]
["Spalte1","Artikelnummer","bauteil","Baugrösse","Kapazität/Induktivität/Impedanz ","Spannung/Nennstrom","Widerstand/Ohm","Toleranz in %","Leistung W","baugruppe","Anzahl","auf Rolle","Wo liegt es"]
["DIGI-KEY",232,"STRAP BATT ECON 9V I STYLE 4\"LD",null,null,null,null,null,null,null,1]
["DIGI-KEY",7443551130,"fixed ind 1.3 uh 25a 1.8 mOhm smd","nicht standardmässig","1,3uh","25a","1,8mOhm","20",null,"Induktoren",2]
["DIGI-KEY",7847709470,"fixed ind 47uh 3.2a 67 mOhm smd","nicht standardmässig","47uh","3,2a ","67mOhm","20",null,"Induktoren",5]
["DIGI-KEY","1.5smc440a","tvs diode 376vwm 602v do214ab","DO-214AB",null,null,null,null,null,"TVS Dioden",100]
["DIGI-KEY","1239as-h-100m=p2","fixed ind 10uh 1a 460 HOhm smd","1008","10uh","850ma","460 mOhm","20",null,"Induktoren",250]
["DIGI-KEY","1422514c","fixed ind 2.2mh 1.4a 622 mOhm th","radial, vertik. Zylinder","2,2 mh","1,4a","622mOhm","10",null,"Induktoren",1]
["DIGI-KEY","1655","LED rgb ws2812 or sk6812 1=10","SK6812 or WS2812",null,null,null,null,null,"LED","20*10"]
["DIGI-KEY","1n5819hw-7-f","diode schottky 40v 1a sod123","SOD-123",null,null,null,null,null,"Schottky Dioden",20]
["DIGI-KEY","1n5820-tp","diode schttky 20v 3a do201ad",null,null,null,null,null,null,null,10]
["DIGI-KEY","1N5820-TP","DIODE SCHOTTKY 20V 3A DO201AD","DO-201AD, axial",null,"20 v",null,null,null,"Schottky Dioden",10]
["DIGI-KEY","2031-23t-smlf","gdt 185v 1ka surface mount",null,null,null,null,null,null,null,45]
["DIGI-KEY","2031-23T-SM-RPLF","GDT 185 V 1KA Surface Mount",null,null,null,null,null,null,null,55]
["DIGI-KEY","2220hc103kat1a","CAP CER 10000PF 3KV X7R 2220",{"$f":"RIGHT(C16,4)","v":"2220"},"10000pf","3kv",null,"10",null,"Keramik Kondensatoren",90]
["DIGI-KEY","3021-15t-smlf","gdt 60v 1ka surface mount",null,null,null,null,null,null,null,25]
["DIGI-KEY","302r29w102kv4e","cap cer 1000pf3kv x7r 1808",{"$f":"RIGHT(C18,4)","v":"1808"},"1000pf","3kv",null,"10",null,"Keramik Kondensatoren",500]
["DIGI-KEY","3404.0114.11","fuse brd mnt 1a 125vac/vdc 2smd ",null,null,null,null,null,null,null,80]
["DIGI-KEY","3-5177986-1","conn plug 40pos .8mm fh 8h gold",null,null,null,null,null,null,"steckverbinder",7]
["DIGI-KEY","3-5177986-5","conn plug 120pos .8mm fh 8h gold",null,null,null,null,null,null,"steckverbinder",18]
[null,"369-3-010-0-NTX-KT0","Conn 10p 90 RM1,27 THT",null,null,null,null,null,null,"Steckverbinder",1230]
[null,"373-3-010-0-NTX-KT0","Conn 10p 80 RM1,27 THT",null,null,null,null,null,null,"steckverbinder",468]
["DIGI-KEY","41-8401-csc","to92 tht digital thermometer z",null,null,null,null,null,null,null,406]
["DIGI-KEY","470mmr250k","cap film 4.7µf 10%  250vdc Radial","radial","4,7µf","250v dc",null,"10",null,"Folienkondensatoren",100]
["DIGI-KEY","51105c","common mode choke 3.3a 2ln th",null,null,null,null,null,null,null,10]
["Mouser","512-NC7SV125P5X","Bµffer 3-State Out ON Semi Pµffer und Leitungstreiber",null,null,null,null,null,null,null,100]
["Mouser","571-SMW51R0JT","SMW5 1R05% TE Connectivity Drahtwiderstände SMD","5329",null,null,null,null,null,"Widerstand",9]
["Mouser","579-KSZ8895FQXC","5Port 10/100 Managed Microchip Ethernet_Ics","PQFP-128",null,null,null,null,null,"Integrierter Schaltkreis",7]
["Mouser","584-ad5412arez","Digital in Analog wandler","tssop-24",null,null,null,null,null,"Wandler",25]
["mouser","584-adum3471arsz","digitale Isolatoren 4-ch digital","ssop-20",null,null,null,null,null,"Digitale Isolatoren","ca 40"]
["DIGI-KEY","6-1622825-5","RES 0.10 Ohm 1/4W 5% 1206","1206",null,null,"0,10Ohm",5,"1/4 ","Widerstand",500]
["Mouser","652-2031-15T-SMLF","Desc: 60 Volts Bourns Gas Discharge Tubes-GDTs Gas Plasma A",null,null,null,null,null,null,null,14]
["DIGI-KEY","73L4R10J","RES 10 Ohm 1/4W 5% 1206","1206",null,null,"10 Ohm",5,"1/4 ","Widerstand",490]
["Mouser","771-BZV55-C5V6,115","1,3W 5.6V Nexperia Zener Dioden",null,null,null,null,null,null,"Zener Dioden",200]
["Mouser","771-LM75BDP","12C LOCAL +/- 20C TS NXP Board Mount Temperature Sensors",null,null,null,null,null,null,"Sensoren"]
["DIGI-KEY","7b-25.000meeq-t","crystal 25.0000mhz 10pf smd",null,null,null,null,null,null,"Quarze",100]
["DIGI-KEY","7b-25.000meeq-t","crystal 25.0000mhz 10pf smd",null,null,null,null,null,null,"Quarze",8]
["DIGI-KEY","7b-27.120meeq-t","crystal27.1200mhz 10 pf smd",null,null,null,null,null,null,"Quarze",3]
["DIGI-KEY","7b-8000maaj-t","crystal 8.0000mhz 18pf smd",null,null,null,null,null,null,"Quarze",50]
["DIGI-KEY","7b-8000maaj-t","crystal 8.0000mhz 18pf smd",null,null,null,null,null,null,"Quarze",19]
["Mouser","810-C3216JB1C476M16B","1206 16V47µf TDK Kondesator aus mehrerern Keramikschichten ML","1206",null,null,null,null,null,"Integrierter Schaltkreis",3]
["DIGI-KEY","82103C ","Fixed IND 10UH 500 MA 400 mOhm","1210","10 µH","500 mA","300 mOhm",10,null,"Induktoren",99]
[null,"825mmr250k","Kondensatoren",null,null,null,null,null,null,null,65]
["DIGI-KEY","825mmr250k","cap film 8.2µf 10%  250vdc Radial","radial","8,2µf","250v dc",null,"10",null,"Folienkondensatoren",135]
["Mouser","863-MCH3481-TL-W","NCH 1.2V Power MOSFE ON Semi Mosfet","MCPH3",null,null,null,null,null,"Mosfet Transistor",195]
["Mouser","871-B72540V60M62","2220 6V RMS 1200A EPCOS/TDK Varistors ","2220",null,null,null,null,null,"Varistor",58]
["DIGI-KEY","885012005053","cap cer 4.7pf 50v c0G/np0 0402","0402","4,7pf","50v",null,"0,5pf",null,"Keramik Kondensatoren",250]
["DIGI-KEY","91595-106lf","Conn recept 6 pos 2mm DL smd",null,null,null,null,null,null,"Steckleisten",49]
["DIGI-KEY","940c30p15K-f","cap film 0.15µf 10% 3kvdc Axial","axial","0,15µf","3k kv dc",null,"10",null,"Folienkondensatoren",1]
["DIGI-KEY","940c30p1K-f","cap film 0.1µf 10% 3kvdc Axial","axial","0,1uf","3k kv dc",null,"10",null,"Folienkondensatoren",4]
["DIGI-KEY","940c30s68k-f","cap film 0.068µf 10% 3kvdc Axial","axial","0,068µf","3k kv dc",null,"10",null,"Folienkondensatoren",5]
["DIGI-KEY","ACS716KLATR-12CB-NL-T","SENSOR CURRENT HALL 12.5A AC/DC","16-soic",null,"3-3,6V",null,null,null,"Stromsensoren",676]
["DIGI-KEY","acs716klatr-12cb-t ","sesor current hall 12.5a ac/dc",null,null,null,null,null,null,null,25]
["DIGI-KEY","ade7816acpz","ic power meter 3 phase 40lfcsp",null,null,null,null,null,null,"Integrierter Schaltkreis","ca 200"]
["DIGI-KEY","adp2504acpz-5.0-r7","ic reg buck bst 5v 1.3a 10lfcsp",null,null,null,null,null,null,"Speicher"]
["DIGI-KEY","afbr-5803aqz","txrx ethernet 3.3v sc 1x9",null,null,null,null,null,null,"Transceiver",6]
["DIGI-KEY","aird-03-222k","fixed ind 2.2mh 1.3a 1.02 Ohm th","radial, vertik. Zylinder","2.2 mH","1.3 A","1.02 Ohm","10",null,"Induktoren",2]
["DIGI-KEY","aird-03-392k","fixed ind 3.9mH 1A 1.67 Ohm th","radial, vertik. Zylinder","3,9mh","1a","1,67 Ohm","10",null,"Induktoren",2]
["DIGI-KEY","aird-03-472k","fixed ind 4.7mh 1a 1.86 Ohm th","radial, vertik. Zylinder","4,7mh","1 a","1,860 Ohm","10",null,"Induktoren",2]
[null,"ATMEGA1284P-MU","IC MCU 8BIT 128KB FLASH 44VQFN","44-VQFN",null,null,null,null,null,"Integrierter Schaltkreis",1]
[null,"ATMEGA168PB-AUR","IC mcu 8bit 16kb flash 32tqfp","32-TQFP",null,null,null,null,null,"Integrierter Schaltkreis",100]
["DIGI-KEY","ATMEGA168PB-AUR","IC MCU 8BIT 16KB FLASH 32TQFP","32TQFP",null,null,null,null,null,"Integrierter Schaltkreis",14]
["DIGI-KEY","ATMEGA328PB-MUR","IC MUC 8BIT 32KB FLASH 32VQFN","32-VQFN",null,null,null,null,null,"Integrierter Schaltkreis",465]
["DIGI-KEY","atmega88pa-mur","ic mcu 8bit 8kb flash 32vqfn","32-VQFN",null,null,null,null,null,"Integrierter Schaltkreis",18]
["DIGI-KEY","atsha204a-stucz-z","ic crypto 4.5kb swi","SOT-23-3",null,null,null,null,null,"Integrierter Schaltkreis",25]
["DIGI-KEY","atv02w120b-hf","tvs diode 12v 19.9v sod123","SOD-123",null,null,null,null,null,"TVS Dioden",100]
["DIGI-KEY","atv02w120-hf","tvs diode 12vwm 19.9vc sod-123","SOD-123",null,null,null,null,null,"TVS Dioden",4]
["DIGI-KEY","atv02w120-hf","tvs diode 12vwm 19.9vc sod-123","SOD-123",null,null,null,null,null,"TVS Dioden",100]
["DIGI-KEY","atv02w120-hf","tvs diode 12vwm 1.9vc sod-123","SOD-123",null,null,null,null,null,"TVS Dioden",70]
["DIGI-KEY","b32921c3683m","cap film 0.068µf 20% 305vac rad ",null,"0,068µf","300v AC",null,"20",null,"Folienkondensatoren",100]
["DIGI-KEY","b3f-1050","switch tactile spst-no 0.05a 24v",null,null,null,null,null,null,"Schalter/Taster",100]
["DIGI-KEY","b3fs-4055p","switch tact spst-no 0.05a 24v",null,null,null,null,null,null,"Schalter/Taster",16]
["DIGI-KEY","Bas70-04-e3-08","diode array schottky 70v sot23","SOT23",null,null,null,null,null,"Schottky Array Dioden",180]
["DIGI-KEY","bat43ws-he3-08","diode schottkey 30v 200ma sod323","SOD-323",null,null,null,null,null,"Schottky Dioden",25]
["DIGI-KEY","bat760.115","diode schottky 20v 1a sod323","SOD-323",null,null,null,null,null,"Schottky Dioden",120]
["DIGI-KEY","BC 817-25 E6327","TRANS NPN 45V 0.5A PG-SOT23",null,null,null,null,null,null,null,25]
["DIGI-KEY","BC817K25E6327HTSA1","trans npn 45v 0,5a sot-23","SOT-23",null,null,null,null,null,"Transistor",25]
["DIGI-KEY","BC817K25E6327HTSA1","trns npn 45v 0.5a sot-23","SOT 23",null,null,null,null,null,null,95]
["DIGI-KEY","BC817K25E6327HTSA1","trns npn 45v 0.5a sot-23","SOT 23",null,null,null,null,null,null,490]
["DIGI-KEY","bcw66hta","Trans npn 45v 0.8a sot23-3","SOT23-3",null,null,null,null,null,"Transistor",595]
["MAIR","BK 2125 HS 102-T ","Ferrite 1 kOhm",null,null,null,null,null,null,"Ferrit","unbekannt"]
[null,"BKP1608HS121-T","FERRITE BEAD 120 Ohm 0603 1LN","0603","120 Ohm/100 MHz","2,7 A","35mOhm",null,null,"Ferrit",1000]
[null,"BLM 21 AH 102 S","FERRITE 1kOhm",null,null,null,null,null,null,"Ferrit",280]
[null,"BLM18AG601SN1D","FERRITE BEAD 600 Ohm 0603 1LN","0603","600 Ohm/100 mHz","500 mA"," 380 mOhm",null,null,"Ferrit",424]
[null,"BLM31PG330SN1L","FERRITE BEAD 33 Ohm 1206 1LN","1206","33ohm/100 mhz","6 a","9 mOhm",null,null,"Ferrit",245]
["DIGI-KEY","BQ24450DWTR","IC BATTERY CHARGER CTRLR 16-SOIC","16-SOIC",null,null,null,null,null,"Integrierter Schaltkreis",11]
["DIGI-KEY","BQ24450DWTR","IC BATTERY CHARGER CTRLR 16-SOIC","16-SOIC",null,null,null,null,null,"Integrierter Schaltkreis",10]
["DIGI-KEY","BRL2012T470M","FIXED IND 47UH 160MA 4.55 Ohm","0805","47 µH","160 mA","4.55 Ohm","20",null,"Induktoren",129]
["DIGI-KEY","BRL2012T470M","FIXED IND 47UH 160MA 4.55 Ohm","0805","47 µH","160 mA","4.55 Ohm","20",null,"Induktoren",43]
["DIGI-KEY","BRL2012T470M","FIXED IND 47UH 160MA 4.55 Ohm","0805","47 µH","160 mA","4.55 Ohm","20",null,"Induktoren",73]
["DIGI-KEY","brpg1211c-tr","led green/red diffused 0606 smd","0606",null,null,null,null,null,"LED",75]
["DIGI-KEY","brpg1211c-tr","led green/red diffused 0606 smd","0606",null,null,null,null,null,"LED",19]
["DIGI-KEY","bta108s-600f.118","triac 600v 8a dpak","DPAK",null,null,null,null,null,null,100]
["DIGI-KEY","bu2032sm-bt-gtr","holder cr2032 gold leads smd",null,null,null,null,null,null,"Bateriehalter",23]
["DIGI-KEY","bzv55-c12.115","diode zener 12v 500mw sod80c","SOD-80c",null,null,null,null,null,"Zener Dioden",55]
["DIGI-KEY","bzx79-c10.143","diode zener 10v 400mw alf2","ALF-2",null,null,null,null,null,"Zener Dioden",25]
["DIGI-KEY","C0402C104K4PAc7867","CAP CER 0.1UF 16V X5R 0402","0402","1uf","16v",null,"1",null,"Keramik Kondensatoren",10000]
["DIGI-KEY","c0402c220k5gactu","cap cer 22pf 50v c0G/np0 0402","0402","22pf","50v",null,"10",null,"Keramik Kondensatoren",1000]
["DIGI-KEY","c0603c220j1gactu","CAP CER 22PF 100V C0G/NP0 0603","0603","22pf","100v",null,"5",null,"Keramik Kondensatoren",1000]
["DIGI-KEY","c0603c331j5gactu","cap cer 330pf 50v c0g/np0 0603","0603","330pf","50v",null,"5",null,"Keramik Kondensatoren",500]
["DIGI-KEY","c0603x5r0j104m","cap cer 0.1µf 6.3v 20% x5r 0201","0603","0,1µf","6,3v",null,"20",null,"Keramik Kondensatoren",375]
["DIGI-KEY","c1+08x5r0j106m080ab","cap cer 10µf 6.3v 20% x5r 0603","0603","10 µf","6,3v",null,"20",null,"Keramik Kondensatoren",50]
["DIGI-KEY","c1005c0g1h220j","cap cer 22pf 50v 5%np0 0402","0402","22 pf","50v",null,"5",null,"Keramik Kondensatoren",100]
["DIGI-KEY","c1005c0g1h391k050ba","cap cer 390pf 50v  c0g 0402","0402","390pf","50v",null,"10",null,"Keramik Kondensatoren",500]
["DIGI-KEY","c1005c0g1h470j","cap cer 47pf 50v  5% np0 0402","0402","47 pf","50v",null,"5",null,"Keramik Kondensatoren",100]
["DIGI-KEY","c1005cog1h8r2c","cap cer 8.2pf 50v np0 0402","0402","2,2 pf","50v",null,"+-0,25pf",null,"Keramik Kondensatoren",100]
["DIGI-KEY","c1005x7r1e473k","cap cer 0.047µf 25v 10% x7R 0402","0402","0,047µf","25v",null,"10",null,"Keramik Kondensatoren",100]
["DIGI-KEY","c1005x7r1h471m","cap cer 470pf 50v 10% x7R 0402","0402","470pf","50v",null,"10",null,"Keramik Kondensatoren",100]
["DIGI-KEY","c1005y5v1c104z","cap cer 0.1µf 16v y5v 0402","0402","0,1 µf","16v",null,"-20+80",null,"Keramik Kondensatoren",100]
["DIGI-KEY","c1005y5v1c224z","cap cer 0.22µf 16v y5v 0402","0402","2,22 µf","16v",null,"-20+80",null,"Keramik Kondensatoren",250]
["DIGI-KEY","c1210c473kdrac7800","cap cer 0.047µf 1kv x7r 1210",{"$f":"RIGHT(C112,4)","v":"1210"},"0,047µf","1kv",null,"10",null,"Keramik Kondensatoren",100]
["DIGI-KEY","c1608x5r0j106m","cap cer 10µf 6.3v 20% x5r 0603","0603","10µf ","6,3v",null,"20",null,"Keramik Kondensatoren",93]
["DIGI-KEY","c1608x5r0j226m","cap cer 22µf 6.3v 20% x5r 0603","0603","22 µf","6,3v",null,"20",null,"Keramik Kondensatoren",15]
["DIGI-KEY","c1608x5r1h153k080aa","cap cer 0.015µf 50v x5r 0603","0603","0,015 µf","50v",null,"10",null,"Keramik Kondensatoren",250]
["DIGI-KEY","c2012y5v1a106z","CAP CER 10UF 10V Y5V 0805","0805","10uf","10v",null,"-20+80",null,"Keramik Kondensatoren",80]
["DIGI-KEY","c3216x5r1c476m160ab","cap cer 47µf 16v x5r 1206","1206","47µf","16v",null,"20",null,"Keramik Kondensatoren",180]
["DIGI-KEY","c3216x5r1e476m160ac","cap cer 47µf 25v x5r 1206","1206","47µf","25v",null,"10",null,"Keramik Kondensatoren",3]
[null,"CAT4139TD-GT3","RES 100 Ohm 1% 1/10W 0603","0603",null,null,"100 Ohm",1,"1/10","Widerstand",23]
["DIGI-KEY","CAT4238TD-GT3","IC LED DRVR White BCKLGT TSOT-5","TSOT-5",null,null,null,null,null,"Integrierter Schaltkreis",7]
["DIGI-KEY","CAY16-332J4LF","RES ARRAY 3.3K Ohm 4 RES 1206","1206",null,null,"3,3kOhm",5,null,"Widerstand",100]
["DIGI-KEY","CAY16-472J4LF","RES ARR 4 RES 4.7K Ohm 1206","1206",null,null,"4,7kOhm",5,null,"Widerstand",100]
["DIGI-KEY","CBC 3225T470MR","Fixed IND 47 UH 480 MA 871 mOhm","1210","47 µH","480 mA","871 mOhm","20",null,"Induktoren",198]
["DIGI-KEY","CBC 3225T470MR","fixed ind 47uh 480ma 871 mOhm","1210","47UH","480MA","871mOhm","20",null,"Induktoren",1000,1000]
["DIGI-KEY","CBC2518T470M","FIXED IND 47UH 290MA 2.47 Ohm","1007","47 µH","290 mA","2.47 Ohm","20",null,"Induktoren",100]
["DIGI-KEY","CBC2518T470M","FIXED IND 47UH 290MA 2.47 Ohm","1007","47uh","290ma","2,47 Ohm","20",null,"Induktoren",5]
["DIGI-KEY","CBC2518T470M","FIXED IND 47UH 290MA 2.47 Ohm","1007","47uh","290ma","2,47 Ohm","20",null,"Induktoren",43]
["DIGI-KEY","cbc3225t470mr","fixed ind 47uh 480ma 871 mOhm","1210","47 µH","480 mA","871 mhm","20",null,"Induktoren",100]
["DIGI-KEY","cbr06c150jagac","cap cer 15pf 250v np0 06003",{"$f":"RIGHT(C129,4)","v":"6003"},"15pf","50v",null,"5",null,"Keramik Kondensatoren",250]
["DIGI-KEY","cc0402grnpo9bn330","cap cer 33pf 50v c0g/npo 0402","0402","33pf","50v",null,"2",null,"Keramik Kondensatoren",250]
["DIGI-KEY","cc0402grnpo9bn390","cap cer 39pf 50v cog/npo 0402","0402","39pf","50v",null,"2",null,"Keramik Kondensatoren",500]
["DIGI-KEY","cc0402jrnpo9bn101","cap cer 100pf 50v 5% n0p 0402","0402","100pf","50v",null,"5",null,"Keramik Kondensatoren",1000]
["DIGI-KEY","cc0603mrx5r7bb225","cap cer 2.2µf 16v x5r 0603","0603","2,2 µf","16v",null,"20",null,"Keramik Kondensatoren",1000]
["DIGI-KEY","cc0805krx7r9bb102","cap cer 1000pf 50v x7r 0805","0805","1000pf","50v",null,"10",null,"Keramik Kondensatoren",1000]
["DIGI-KEY","cdsod323-t12sc","tvs diode 12vwm 29.5vc sod323","SOD-323",null,null,null,null,null,"TVS Dioden",200]
["DIGI-KEY","cgb3b1x5r1a475m055ac","cap cer 4.7µf 10v 20% x5r 0603","0603","4,7µf","10v",null,"20",null,"Keramik Kondensatoren",90]
["DIGI-KEY","cgrm4007-g","diode gen purp 1kv 1a minisma",null,null,null,null,null,null,"Dioden",99]
["DIGI-KEY","cgrm4007-g","diode gen purp 1kv 1a minisma",null,null,null,null,null,null,null,10000]
["DIGI-KEY","CL05b102kb5nnnc","Cap cer 1000pf 50v 10% x7r 0402","0402","1000pf","50v",null,"10",null,"Keramik Kondensatoren",1000]
["DIGI-KEY","cl05b104ko5nnnc","cap cer 0.1µf 16c x7r 0402","0402","0,1 µf","16",null,"10",null,"Keramik Kondensatoren",10000]
["DIGI-KEY","cl05b472kb5nnnc","cap cer 4700pf 50v 10% x7r 0402","0402","4700pf","50v",null,"10",null,"Keramik Kondensatoren","unbekannt"]
["DIGI-KEY","cl05c180jb5nnnc","cap cer 18pf 50v 5% np0 0402","0402","18pf","50v",null,"5",null,"Keramik Kondensatoren",500]
["DIGI-KEY","cl05c220jb5ngnc","cap cer 22pf 50v c0G/np0 0402","0402","22pf","50v",null,"5",null,"Keramik Kondensatoren",2500]
["DIGI-KEY","cl10a106mq8nnnc","cap cer 10µf 6.3v 20% x5r 0603","0603","10 µf","6,3v",null,"20",null,"Keramik Kondensatoren",250]
["DIGI-KEY","cl10b152kb8sfnc","cap cer 1500 pf 50v x7r 0603","0603","1500pf","50v",null,"10",null,"Keramik Kondensatoren",1000]
["DIGI-KEY","cl10b332kb8nnnc","cap cer 3300pf 50v x7r 0603","0603","3300pf","50v",null,"10",null,"Keramik Kondensatoren",1000]
["DIGI-KEY","cl10b392kb8nnnc","CAP CER 3900PF 50V X7R 0603","0603","3900pf","50v",null,"10",null,"Keramik Kondensatoren",4000]
["DIGI-KEY","cl10b472kb8nnnc","cap cer 4700pf 50v x7r 0603","0603","4700pf","50v",null,"10",null,"Keramik Kondensatoren","unbekannt"]
["DIGI-KEY","cl10c180jb8nnnc","cap cer 18pf 50v c0g/Np0 0603","0603","18pf","50v",null,"5",null,"Keramik Kondensatoren",1000]
["DIGI-KEY","cl10c181jb8nnc","cap cer 180pf 50v 5% np0 0603","0603","180pf","50v",null,"5",null,"Keramik Kondensatoren",1000]
["DIGI-KEY","cl10c470jb8nnnc","cap cer 47pf 50v np0 0603","0603","47pf","50v",null,"5",null,"Keramik Kondensatoren",1000]
["DIGI-KEY","cl10x106mo8nrnc","cap cer 10µf 16v x6s 0603","0603","10µf","16v",null,"20",null,"Keramik Kondensatoren",200]
["DIGI-KEY","cl21a226moclrnc","cap cer 22µf 16v x5r 0805","0805","22µf","16v",null,"20",null,"Keramik Kondensatoren",250]
["DIGI-KEY","cl21a226mqqnnne","CAP CER 22UF 6.3V X5R 0805","0805","22 uf","6,3v",null,"20",null,"Keramik Kondensatoren","ca 1700"]
["DIGI-KEY","CL21a226mqqnnng","CAP CER 22UF 6.3V X5R 0805","0805","22uf","6,3v",null,"20",null,"Keramik Kondensatoren",250]
["DIGI-KEY","cl21a475kaqnnng","cap cer 4.7µf 25v x5r 0805","0805","4,7µf","25v",null,"10",null,"Keramik Kondensatoren",250]
["DIGI-KEY","cl21a475kbqnnne","cap cer 4.7µf 50v x5r 0805","0805","4,7µf","50v",null,"10",null,"Keramik Kondensatoren",1000]
["DIGI-KEY","cl21b103kbannnc","cap cer 10000pf 50v x7r 0805","0805","10000pf","50v",null,"10",null,"Keramik Kondensatoren",3990]
["DIGI-KEY","CL21B473KBC5PNC","cap cer 0.047µf 50v x7r 0805","0805","0,047µf","50v",null,"10",null,"Keramik Kondensatoren",1000]
["DIGI-KEY","cl21b473KBCwPNC","CAP CER 0.047UF 50V X7R 0805","0805","0,047uf","50v",null,"10",null,"Keramik Kondensatoren",500]
["DIGI-KEY","cl21b474kafnnne","cap cer 0.47µf 25v x7r 0805","0805","0,47µf","25v",null,"10",null,"Keramik Kondensatoren",1000]
["DIGI-KEY","cl21c120jbannnc","cap cer 12pf 50v np0 0805","0805","12pf","50v",null,"5",null,"Keramik Kondensatoren",100]
["DIGI-KEY","cl21c120jcannnc","cap cer 100pf 100v 5% n0p 0805","0805","100pf","100 v",null,"5",null,"Keramik Kondensatoren",1000]
["DIGI-KEY","cl21c220jbannnc","cap cer 22pf 50v c0G/np0 0805","0805","22pf","50v",null,"5",null,"Keramik Kondensatoren",500]
["DIGI-KEY","cl21c220jbannnc5","cap cer 22pf 50v c0G/np0 0805","0805","22pf","50v",null,"5",null,"Keramik Kondensatoren",1000]
["DIGI-KEY","cl21c330jbannnc","cap cer 33pf 50v np0 0805","0805","33pf","50v",null,"5",null,"Keramik Kondensatoren",100]
["DIGI-KEY","cl21c390jbannnc","cap cer 39pf 50v np0 0805","0805","39pf","50v",null,"5",null,"Keramik Kondensatoren",100]
["DIGI-KEY","cl21c560jbannnc","CAP CER 56PF 50V C0G/NP0 0805","0805","56pf","50v",null,"5",null,"Keramik Kondensatoren",5]
["DIGI-KEY","cl31a225kbhnnne","cap cer 2.2µf 50v x5r 1206","1206","2,2 µf","50v",null,"10",null,"Keramik Kondensatoren",100]
["DIGI-KEY","cl31a476mqhnnne","cap cer 47µf 6.3v x5r 1206","1206","47µf","6,3v",null,"20",null,"Keramik Kondensatoren",100]
["DIGI-KEY","cl31b104kcfnnne","cap cer 0.1µf 100v x7r 1206","1206","0,1 µf","100v",null,"10",null,"Keramik Kondensatoren",210]
["DIGI-KEY","cl-340t-sd-t","tricolor top eiring 1.7 x 1.4 X ",null,null,null,null,null,null,null,1000]
["DIGI-KEY","CMB02070X1001GB200","RES SMD 1K Ohm 2% 1W 0207",{"$f":"RIGHT(C173,4)","v":"0207"},null,null,"1kOhm",2,"1","Widerstand",49]
["DIGI-KEY","CMB02070X2203GB200","RES SMD 220K Ohm 0,1% 1/10 W 0207","0207",null,null,"220kOhm",1,"1/10","Widerstand",100]
["DIGI-KEY","CMB02070X5100GB200","RES SMD 510 Ohm 2% 1W 0207","0207",null,null,"510Ohm",2,"1","Widerstand",670]
["DIGI-KEY","cmb02070x5100gb200","RES SMD 510 Ohm 2% 1W 0207","0207",null,null,"510 Ohm",2,"1","Widerstand",40]
["DIGI-KEY","cn2220k 25g","varistor39v 1.2ka 2220","2220",null,null,null,null,null,null,850]
[null,"CN2220S14BAUTOG","VARISTOR 22V 1.2KA 2220","2220",null,null,null,null,null,null,66]
["DIGI-KEY","CR0603-FX-68R0ELF","RES SMD 68 Ohm 1% 1/10W 0603","0603",null,null,"68Ohm",1,"1/10","Widerstand",1000]
["DIGI-KEY","CRCW0603124KFEA","RES SMD 124K Ohm 1% 1/10W 0603","0603",null,null,"124kOhm",1,"1/10","Widerstand",50]
["DIGI-KEY","CRCW0603127KFEA","RES SMD 124K Ohm 1% 1/10W 0603","0603",null,null,"124kOhm",1,"1/10","Widerstand",50]
["DIGI-KEY","CRCW0603130KFEA","RES SMD 130K Ohm 1% 1/10W 0603","0603",null,null,"130kOhm",1,"1/10","Widerstand",50]
["DIGI-KEY","CRCW0603133FKEA","RES SMD 133K Ohm 1% 1/10W 0603","0603",null,null,"133kOhm",1,"1/10","Widerstand",50]
["DIGI-KEY","CRG0402F10K","RES SMD 10K Ohm 1% 1/16W 0402","0402",null,null,"10kOhm",1,"1/16","Widerstand",5000,10000]
["DIGI-KEY","CRGCQ0805F2K7","CRGCQ 0805 2K7 1%","0805",null,null,"2,7 kOhm",1,"1/8","Chipwiderstand",1000]
["DIGI-KEY","crw060338r66fkea","res smd 8.66 Ohm 1% 1/10w 0603","0603",null,null,"8,66 Ohm",1,"1/10","Widerstand",50]
["DIGI-KEY","CS51414EDR8G","IC BUCK 1.5A 8SOIC","8-SOIC",null,null,null,null,null,"Integrierter Schaltkreis",22]
["DIGI-KEY","CSR1206FK50L0","RES 0,05 Ohm 1% 1/2W 1206","1206",null,null,"0,05Ohm",1,"1/2","Widerstand",97]
["DIGI-KEY","CSR1206FT50L0","RES 0,05 Ohm 1% 1/2W 1206","1206",null,null,"0,05Ohm",1,"1/2","Widerstand",90]
["DIGI-KEY","CSR1206FTR100","RES 0,1 Ohm 1% 1/2W 1206","1206",null,null,"0,1Ohm",1,"1/2","Widerstand",100]
["DIGI-KEY","CSR1206FTR130","RES 0.13 Ohm 1% 1/2W1206","1206",null,null,"0,13Ohm",1,"1/2","Widerstand",100]
["DIGI-KEY","de2e3ky472mb3bu02f","cap cer 4700pf 300vac 20% radial",null,"4700pf","300v AC",null,"20",null,"Keramik Kondensatoren",15]
["DIGI-KEY","dlw21hn900sq2l","choke common mode 90 Ohm 0805","0805",null,null,null,null,null,null,50]
["DIGI-KEY","DS1818R-5+T&R","IC ECONRST 3.3V W/PB 5%  SOT23-3","SOT23-3",null,null,null,null,null,"Integrierter Schaltkreis",5]
["DIGI-KEY","ECS-400-20-3XN-TR","CRYSTAL 40 0000MHZ 20PF SMD","HC-49/US",null,null,null,null,null,"Quarze",35]
["DIGI-KEY","eee-1ca220wr","cap alum 22µf 20% 16v smd",null,"22 µf","16v",null,"20",null,"Kondensatoren",6000]
["DIGI-KEY","eeh-zahe331p","cap poly hyb 330µf 20% 25V smd ",null,"330µf","25v",null,"20",null,"Alu-Poly-Kondensatoren",2]
["DIGI-KEY","ekmc1603111","sensor motion pir 12m range wht",null,null,null,null,null,null,"Sensoren",25]
["DIGI-KEY","emk107bbj106ma-t","cap cer 10µf 16v x5r 0603","0603","10 µf","16v",null,"20",null,"Keramik Kondensatoren",500]
["DIGI-KEY","emk212b7474kd-t","cap cer 0.47µf 16v 10% x7r 0805","0805","0,47µf","16v",null,"10",null,"Keramik Kondensatoren",100]
["DIGI-KEY","emk325abj107mm-t","cap cer 100µf 16v x5r 1210",{"$f":"RIGHT(C201,4)","v":"1210"},"100µf","16v",null,"20",null,"Keramik Kondensatoren",25]
["DIGI-KEY","ERA-3AEB103V","RES SMD 10K Ohm 0,1% 1/10W 0603","0603",null,null,"10kOhm",0.1,"1/10","Widerstand",500]
["DIGI-KEY","ERA-3AEB123V","RES SMD 12K Ohm 0,1% 1/10W 0603","0603",null,null,"12kOhm",0.1,"1/10","Widerstand",100]
["DIGI-KEY","ERA-3AEB154V","RES SMD 150K Ohm 1% 1/10W 0603","0603",null,null,"150kOhm",1,"1/10","Widerstand",220]
["DIGI-KEY","ERA-3AEB2103V","RES SMD 210K Ohm 0.1% 1/10W 0603","0603",null,null,"210kOhm",1,"1/10","Widerstand",100]
["DIGI-KEY","ERA-3AEB224V","RES SMD 220K Ohm 0,1% 1/10 W 0603","0603",null,null,"220kOhm",1,"1/10","Widerstand",250]
["DIGI-KEY","ERA-3AEB4642V","RES SMD 46.4K Ohm 0,1% 1/10W 0603","0603",null,null,"46,4kOhm",1,"1/10","Widerstand",250]
["DIGI-KEY","ERA-3AEB5110V","RES SMD 511 Ohm 0.1% 1/10W 0603","0603",null,null,"511 Ohm",0.1,"1/10","Widerstand",100]
["DIGI-KEY","ERA-3AEB9092V","RES SMD 90.9K Ohm 0,1% 1/10W 0603","0603",null,null,"90,9kOhm",1,"1/10","Widerstand",500]
["DIGI-KEY","ERA-3EAB203V","RES SMD 20K  Ohm 0.1% 1/10W 0603","0603",null,null,"20kOhm",1,"1/10","Widerstand",250]
["DIGI-KEY","ERA-6AEB5763V","RES SMD 576K Ohm 0,1% 1/8W 0805","0805",null,null,"576kOhm",1,"1/8","Widerstand",100]
["DIGI-KEY","ERJ.3EKF1152V","RES SMD 11.5k Ohm 1% 1/10W 0603","0603",null,null,"11,5kOhm",1,"1/10","Widerstand",1000]
["DIGI-KEY","ERJ-2RKF1183X","RES 118K Ohm 1/10W 1% 0402 SMD","0402",null,null,"118kOhm",1,"1/10","Widerstand",250]
["DIGI-KEY","ERJ-2RKF1503X","RES 150K Ohm 1% 1/10W 0402","0402",null,null,"150kOhm",1,"1/10","Widerstand",250]
["DIGI-KEY","ERJ-2RKF2000X","RES 200 Ohm1/10W 1% 0402 SMD","0402",null,null,"200 ohm",1,"1/10","Widerstand",100]
["DIGI-KEY","ERJ-2RKF24R9X","RES SMD 24.9 Ohm 1% 1/10W 0402","0402",null,null,"24,9Ohm",1,"1/10","Widerstand",286]
["DIGI-KEY","ERJ-2RKF3320X","RES 332 Ohm 1/10W 1% 0402 SMD","0402",null,null,"332Ohm",1,"1/10","Widerstand",680]
["DIGI-KEY","ERJ-2RKF3320X","RES SMD 332 Ohm 1% 1/10W 0402","0402",null,null,"332 Ohm",1,"1/10","Widerstand",640]
["DIGI-KEY","ERJ-2RKF33R0X","RES 33.0 Ohm 1/10W 1% 0402","0402",null,null,"33 ohm",1,"1/10","Widerstand",100]
["DIGI-KEY","erj-2rkf33r0x","res 33.0 Ohm 1/10W 1% smd 0402","0402",null,null,"33 Ohm",1,"1/10","Widerstand",100]
["DIGI-KEY","ERJ-2RKF4701X","RES SMD 4.7K Ohm 1/10W 1% 0402 SMD","0402",null,null,"4,7kOhm",1,"1/10","Widerstand",100]
["DIGI-KEY","ERJ-2RKF47R0X","RES 47 Ohm 1/10W 1% 0402 SMD","0402",null,null,"47Ohm",1,"1/10","Widerstand",100]
["DIGI-KEY","ERJ-2RKF47R0X","RES 47.0 Ohm 1/10W 1% 0402 SMD","0402",null,null,"47Ohm",1,"1/10","Widerstand",29]
["DIGI-KEY","ERJ-3EKF1000V","RES 100 Ohm 1/10W 1% 0603 SMD","0603",null,null,"100Ohm",1,"1/10","Widerstand",1000]
["DIGI-KEY","ERJ-3EKF1101V","RES 1.1K Ohm 1/10W 1% 0603 SMD","0603",null,null,"1kOhm",1,"1/10","Widerstand",1000]
["DIGI-KEY","ERJ-3EKF1131V","RES SMD 1.13K Ohm 1% 1/10W 0603","0603",null,null,"1,13kOhm",0.1,"1/10","Widerstand",990]
["DIGI-KEY","ERJ-3EKF1200V","RES 120 Ohm 1/10 W 1% 0603 SMD","0603",null,null,"120Ohm",1,"1/10","Widerstand",1000]
["DIGI-KEY","ERJ-3EKF1303X","RES SMD 130K Ohm 1/10W 1% 0603 SMD","0603",null,null,"130kOhm",1,"1/10","Widerstand",100]
["DIGI-KEY","ERJ-3EKF1303X","RES SMD 30K Ohm 1/10W 1% 0603 ","0603",null,null,"30kOhm",1,"1/10","Widerstand",1000]
["DIGI-KEY","ERJ-3EKF1503V","RES SMD 150K Ohm 1% 1/10W 0603","0603",null,null,"150kOhm",1,"1/10","Widerstand",1000]
["DIGI-KEY","ERJ-3EKF1692V","RES 16.9K Ohm 1/10W 1% 0603 SMD","0603",null,null,"16,9kOhm",1,"1/10","Widerstand",1000]
["DIGI-KEY","ERJ-3EKF1802V","RES 18.0K Ohm 1/10W 1% 0603 SMD","0603",null,null,"18kOhm",1,"1/10","Widerstand",100]
["DIGI-KEY","ERJ-3EKF1803V","RES SMD 180K Ohm 1% 1/10W 0603","0603",null,null,"180 kOhm",1,"1/10","Widerstand",1000]
["DIGI-KEY","ERJ-3EKF2001V","RES SMD 2K Ohm 1% 1/10W 0603","0603",null,null,"2kOhm",1,"1/10","Widerstand",1000]
["DIGI-KEY","ERJ-3EKF2200V","RES 220 Ohm 1/10W 1% 0603 SMD","0603",null,null,"220Ohm",1,"1/10","Widerstand",900]
["DIGI-KEY","ERJ-3EKF2201V","RES SMD 2.2K OHM 1% 1/10W 0603","0603",null,null,"2,2KOHM","1","1/10"]
["DIGI-KEY","ERJ-3EKF3301V","RES SMD 3.3K Ohm 1% 1/10W 0603","0603",null,null,"3kOhm",1,"1/10","Widerstand",1000]
["DIGI-KEY","ERJ-3EKF4021V","RES SMD 4.02K Ohm 1% 1/10W 0603","0603",null,null,"4,02kOhm",1,"1/10","Widerstand",1000]
["DIGI-KEY","ERJ-3EKF4122V","RES SMD 41.2K Ohm 1% 1/10W 0603","0603",null,null,"41,2kOhm",1,"1/10","Widerstand",1000]
["DIGI-KEY","ERJ-3EKF4642V","RES SMD 46.4K Ohm 1% 1/10W 0603","0603",null,null,"46,4kOhm",1,"1/10","Widerstand",1000]
["DIGI-KEY","ERJ-3EKF47R0V","RES 47.0 Ohm 1/10W 1% 0603 SMD","0603",null,null,"47Ohm",1,"1/10","Widerstand",1000]
["DIGI-KEY","ERJ-3EKF5903V","RES SMD 590K Ohm 1% 1/10W 0603","0603",null,null,"590kOhm",1,"1/10","Widerstand",1000]
["DIGI-KEY","ERJ-3EKF6042V","RES SMD 60.4K Ohm 1% 1/10W 0603","0603",null,null,"60,4 kOhm",1,"1/10","Widerstand",1000]
["DIGI-KEY","ERJ-3EKF6042V","RES 60.4K Ohm 1/10W 1% 0603 SMD","0603",null,null,"60,4kOhm",1,"1/10","Widerstand",900]
["DIGI-KEY","ERJ-3EKF6491V","RES  6.49K Ohm 1% 1/10W 0603 SMD","0603",null,null,"6,49kOhm",1,"1/10","Widerstand",1000]
["DIGI-KEY","ERJ-3EKF680V","RES 6.8K Ohm 1/10W 1% 0603 SMD","0603",null,null,"6,8 kOhm",1,"1/10","Widerstand",900]
["DIGI-KEY","ERJ-3EKF8453V","RES SMD 845K Ohm 1% 1/10W 0603","0603",null,null,"845 kOhm",1,"1/10","Widerstand",993]
["DIGI-KEY","ERJ-6ENF1000V","RES 100 Ohm 1/8W 1% 0805 SMD","0805",null,null,"100 Ohm",1,"1/8 W","Widerstand",1000]
["DIGI-KEY","ERJ-6ENF15R0V","RES 15 Ohm 1% 1/8W 0805 SMD","0805",null,null,"15Ohm",1,"1/8","Widerstand",1000]
["DIGI-KEY","ERJ-6ENf4700V","RES 470 Ohm 1/8 W 1% 0805 SMD","0805",null,null,"47Ohm",1,"1/8","Widerstand",800]
["DIGI-KEY","ERJ-6ENF68R1V","RES SMD 68.1 Ohm 1% 1/8W 0805","0805",null,null,"68,1Ohm",1,"1/8","Widerstand",100]
["DIGI-KEY","ERJ-6ENF68R1V","RES SMD 68.1 Ohm 1% 1/8W 0805","0805",null,null,"68,1Ohm",1,"1/8","Widerstand",895]
["DIGI-KEY","ERJ-6ENF68R1V","RES SMD 68.1 Ohm 1% 1/8W 0805","0805",null,null,"68,1Ohm",1,"1/8","Widerstand",647]
["DIGI-KEY","ERJ-6GEYJ100V","RES 10 Ohm 1/8W 5% 0805 SMD","0805",null,null,"10Ohm",5,"1/8","Widerstand",250]
["DIGI-KEY","ERJ-6GEYJ470V","RES 47 Ohm 1/8W 5% 0805 SMD","0805",null,null,"47Ohm",5,"1/8","Widerstand",200]
["DIGI-KEY","ERJ-8GEYJ1R0V","RES 1 Ohm 1/4W 5% 1206 SMD","1206",null,null,"1Ohm",5,"1/4 ","Widerstand",1000]
["DIGI-KEY","ERJ-8GEYJ470V","RES 47 Ohm 1/4 W 5% 1206 SMD","1206",null,null,"47Ohm",5,"1/4 ","Widerstand",1000]
["DIGI-KEY","ERJ-8GEYJ680V","RES 68 Ohm 1/4 W 5% 1206 SMD","1206",null,null,"68Ohm",5,"1/4 ","Widerstand",1000]
["DIGI-KEY","ERJ-P08J102V","RES 1K Ohm 1/3W 5% 1206 SMD","1206",null,null,"1kOhm",5,"1/3","Widerstand",250]
["DIGI-KEY","ERJ-P08J511V","RES 510 Ohm 1/3 W 5% 1206 SMD","1206",null,null,"510 ohm",5,"1/3","Widerstand",260]
["DIGI-KEY","esd9l5.0t5g","tvs esd prot ult low cap sod-923","SOD-923",null,null,null,null,null,"TVS Dioden",22]
["DIGI-KEY","ESR03EZPJ101","RES 100 Ohm 1/4W 5% 0603 SMD","0603",null,null,"100 Ohm",5,"1/4 ","Widerstand",250]
["DIGI-KEY","esr03ezpj560","res 56 ohnm 1/4w 5% 0603 smd","0603",null,null,"56",5,"1/4 ","Widerstand",250]
["DIGI-KEY","ESR03EZPJ680","RES 68 Ohm 1/4 W 5% 0603 SMD","0603",null,null,"68ohm",5,"1/4 ","Widerstand",250]
["DIGI-KEY","ESR18EZPJ221","RES SMD 220 Ohm 5% 1/3 W 1206","1206",null,null,"220Ohm",5,"1/3","Widerstand",282]
["DIGI-KEY","exh2e106hrpt","cap film 10µf 250vac radial","radial","10µf","250v ac",null,"-5+10",null,"Folienkondensatoren",9]
["DIGI-KEY","f931c226maa","cap tant 22µf 16v 20% 1206","1206","22µf","16v",null,"20",null,"Tantalkondensatoren",100]
["DIGI-KEY","fch023n65s3_f155","superfet3 650v 23 mOhm","TO-247",null,null,null,null,null,"Mosfet Transistor",8]
["DIGI-KEY","fdt434p","mosfet p.ch 20v 6a sot-223","SOT-223",null,null,null,null,null,"Mosfet Transistor",25]
["DIGI-KEY","fod3180sv","optoiso 5kv gate driver 8smd",null,null,null,null,null,null,"Optokoppler",10]
["DIGI-KEY","fod3180sv","optoiso 5kv gate driver 8dip",null,null,null,null,null,null,"Optokoppler",4]
["DIGI-KEY","fod410s","OPTOISOLATOR 5KV TRIAC 6SMD","6smd",null,null,null,null,null,"Optokoppler","ca70"]
["DIGI-KEY","fod8523sd","optoisolator 5kv darlington 4smd",null,null,null,null,null,null,"Optokoppler",100]
["DIGI-KEY","FOD8523SD","OPTOISOLATOR 5KV DARLINGTON 4SMD","4-smd",null,null,null,null,null,"Optoisolator Ausgang",920]
["DIGI-KEY","fodm3063","optoisolator 3.75kv triac4mfp",null,null,null,null,null,null,"Optokoppler",25]
["DIGI-KEY","FXLP34P5X","TRANSLATOR 1BIT UNIDIRECT SC70-5","SC70-5",null,null,null,null,null,null,22]
["Mouser","GA355dr7gf472kw01l","22204700pf 250vac murata Kondensator keramik",null,null,null,null,null,null,null,300]
["DIGI-KEY","GA355er7gb333kw01l","cap cer 0.033µf 250vac x7r2220",{"$f":"RIGHT(C278,4)","v":"2220"},"0,033 µf","50v",null,"10",null,"Keramik Kondensatoren",100]
["DIGI-KEY","gjm1555c1h120gb01d","cap cer 12pf 50v c0g/np0 0402","0402","12 pf","50v",null,"2",null,"Keramik Kondensatoren",100]
["DIGI-KEY","grm1555c1h180ja01d","cap cer 18pf 50v c0g/Nnp0 0402","0402","18 pf","50v",null,"5",null,"Keramik Kondensatoren",1000]
["DIGI-KEY","grm1555c1h180ja01d","cap cer 18pf 50v c0g/Nnp0 0402","0402","18 pf","50v",null,"5",null,"Keramik Kondensatoren",500]
["DIGI-KEY","grm1555c1h270ja01d","cap cer 27pf 50v 5% 0402","0402","27 pf","50v",null,"5",null,"Keramik Kondensatoren",970]
["DIGI-KEY","grm1555c1h300ja01d","cap cer 30pf 50v 5% np0 0402","0402","30 pf","50v",null,"5",null,"Keramik Kondensatoren",1000]
["DIGI-KEY","grm1555c1h391ja01j","cap cer 390pf 50v 5%np0 0402","0402","390 pf","50v",null,"5",null,"Keramik Kondensatoren",250]
["DIGI-KEY","grm1555c1h470ja01d","cap cer 47pf 50v 5% np0 0402","0402","47 pf","50v",null,"5",null,"Keramik Kondensatoren",980]
["DIGI-KEY","grm1555c1h751ja01d","cap cer 750pf 50v C0G/np0 0402","0402","750 pf","50v",null,"5",null,"Keramik Kondensatoren",500]
["DIGI-KEY","grm1555c1h751ja01d","cap cer 750pf 50v 5% np0 0402","0402","750 pf","50v",null,"5",null,"Keramik Kondensatoren",1000]
["DIGI-KEY","grm155r71h472ka01j","cap cer 4700pf 50v  x7r 0402","0402","4700 pf","50v",null,"10",null,"Keramik Kondensatoren",2500]
["DIGI-KEY","grm188r60j106KE47d","cap cer 10µf 6.3v x5r 0603","0603","10µf","6,3v",null,"10",null,"Keramik Kondensatoren",500]
["DIGI-KEY","grm188r61e105ka12j","cap cer 1µf 25v x5r 0603","0603","1µf","25v",null,"10",null,"Keramik Kondensatoren",212]
["DIGI-KEY","grm21br61c106ke15k","CAP CER 10µf 16V X5R 0805","0805","10 µf","16v",null,"10",null,"Keramik Kondensatoren",980]
["DIGI-KEY","grm31cr61a476me15l","cap cer 47µf 10v x5r 1206","1206","47µf","10v",null,"20",null,"Keramik Kondensatoren",100]
["DIGI-KEY","grt155r61e474ke01d","CAP CER 0.47µf 25V X5R 0402","0402","0,47µf ","25v",null,"10",null,"Keramik Kondensatoren",500]
["DIGI-KEY","idp50r380ceatma1","mosfet n ch 500v 9.9a pg-to252","PG-TO-252",null,null,null,null,null,"Mosfet Transistor",18]
["DIGI-KEY","irl6283mtrpbf","mosfet n-ch 20v 211a directfet",null,null,null,null,null,null,"Mosfet Transistor",6]
["DIGI-KEY","irlml6402trpbf","mosfet p-ch 20v 3.7a sot-23","SOT 23",null,null,null,null,null,"Mosfet Transistor",500]
["DIGI-KEY","isl83483ibz-t","ic txrx rs422/485 250KBPS 8SOIC","8-SOIC",null,null,null,null,null,"Integrierter Schaltkreis",2]
["DIGI-KEY","ismb5915bt3g","diode zener 3.9v 3w smb",null,null,null,null,null,null,"Zener Dioden",49]
["DIGI-KEY","iso15dwr","dg iso 2.5kv rs422/rs485 16-soic","16-SOIC",null,null,null,null,null,"Digitale Isolatoren",19]
["DIGI-KEY","ISP772TFUMA1","IC SWITCH HISIDE SMART 8DSO","8-DSO",null,null,null,null,null,"Integrierter Schaltkreis",16]
["DIGI-KEY","ixbh20n360hv","IGBT 3600V 70A TO-247HV","TO-247HV",null,null,null,null,null,null,4]
["DIGI-KEY","ixth110n25t","mosfet n-ch 250v 110a to-247","TO-247",null,null,null,null,null,"Mosfet Transistor",4]
["DIGI-KEY","ksz8895mqxca","ic eth switch 5port 128qfp com",null,null,null,null,null,null,"Speicher",49]
["DIGI-KEY","KSZ9031RNXCC-TR","IC TXRX ETHERNET 48QFN","48-QFN",null,null,null,null,null,"Integrierter Schaltkreis",7]
[null,"L10402E600R-10","FERRITE bead5A 60 Ohm SMD","0402",null,null,null,null,null,"Ferrit",25]
["DIGI-KEY","li0402e600r-10","ferrite bead 60 Ohm 0402 1ln","0402","60Ohm/100MHz","500mA",null,null,null,"Ferrit",540]
["DIGI-KEY","lk1608120k-t","fixed ind 12uh 0ma 1.8 Ohm","0603","12uh","12ma","1,8Ohm","10",null,"Induktoren",85]
["DIGI-KEY","lm75bdp.118","sensor digitl -55c-125c 8tssop",null,null,null,null,null,null,"Sensoren",160]
["DIGI-KEY","LQM2HPN1R5MG0L","FIXED IND 1.5UH 1.5A 70 mOhm SMD","1008","1.5 µH","1.5 A","70 mOhm","20",null,"Induktoren",90]
["DIGI-KEY","LQW2BHN22NJ03L","FIXED IND 22NH 720MA 90 mOhm","nicht standardmässig","22 NH","720 ma","90 mOhm","5",null,"Induktoren",50]
["DIGI-KEY","LRMAM1206-R002FT5","RES SMD 0.002 Ohm 1% 1W 1206","1206",null,null,"0,002 ohm",1,"1","Widerstand",2]
["DIGI-KEY","LTC3111EMSE#PBF","IC REG BUCK BST ADJ 1.5A 16MSOP","16MSOP",null,null,null,null,null,"Integrierter Schaltkreis",22]
["DIGI-KEY","ltl-14chj","LED grn/red diff 3mm round t/H","T1",null,null,null,null,null,"LED",600]
["DIGI-KEY","ltst-c190kgkt","led green clear 0603 smd","0603",null,null,null,null,null,"LED",250]
["DIGI-KEY","ltst-c190krkt","led red clear 0603 smd","0603",null,null,null,null,null,"LED","unbekannt"]
["DIGI-KEY","m251206bb1001jp500","res 1k Ohm 1/4w 5% smd 1206","1206",null,null,"1 kOhm",5,"1/4 ","Widerstand",10]
["DIGI-KEY","M251206BB5100JP500","RES 510 Ohm 1/4 W 5% 1206 SMD","1206",null,null,"510 ohm",5,"1/4 ","Widerstand",8]
["DIGI-KEY","max4372hEUK+T","ic odampcur sens 110khz sot23-5","SOT23-5",null,null,null,null,null,"Integrierter Schaltkreis",30]
["DIGI-KEY","MAX4372TEUK+T","IC OPAMP CUR SENS 275KHZ SOT23-5","SOT23-5",null,null,null,null,null,"Integrierter Schaltkreis",25]
["DIGI-KEY","MAX4372TEUK+T","IC OPAMP CUR SENS 275KHZ SOT23-5","SOT23-5",null,null,null,null,null,null,10]
["DIGI-KEY","MAX4372TEUK+T","IC OPAMP CUR SENS 275KHZ SOT23-5","SOT23-5",null,null,null,null,null,null,100]
["DIGI-KEY","MAX9611AUB+","IC OPAMP CUR SENS 2.5MHZ 10UMAX","10-UMAX","47µf","16v",null,"20",null,"Kondensatoren",26]
["DIGI-KEY","mbr0540t3g","diode schottky 40v 500masod123","SOD-123",null,null,null,null,null,"Schottky Dioden",1000]
["DIGI-KEY","mbrd650ctg","diode array schottky 50v 3a dpak",null,null,null,null,null,null,"Schottky Array Dioden",25]
["DIGI-KEY","mch3481-tl-w","mosfet n-ch 20v 2a mcph3","MCPH3",null,null,null,null,null,"Mosfet Transistor",100]
["DIGI-KEY","MCR03ERTF1054","RES SMD 1.05M Ohm 1% 1/10W 0603","0603",null,null,"1,05mohm",1,"1/10","Widerstand",1000]
["DIGI-KEY","MCR03ERTJ271","RES 270 Ohm 1/10W 5% 0603 SMD","0603",null,null,"270Ohm",5,"1/10","Widerstand",5000]
["DIGI-KEY","MCR03ERTJ2R7","RES SMD 2.7 Ohm 5% 1/10W 0603","0603",null,null,"22,7 Ohm",5,"1/10","Widerstand",1000]
["DIGI-KEY","MCR18ERTF1002","RES SMD 10K Ohm 1% 1/4W 1206","1206",null,null,"10kOhm",1,"1/4 ","Widerstand",{"$f":"SUM(L329*M329)","v":0},5000]
["DIGI-KEY","MFR-25FBF52-1K","RES 1K Ohm 1/4W 1% AXIAL","axial",null,null,"1kOhm",1,"1/4 ","Widerstand",500]
["DIGI-KEY","MIC2025-1YM","IC SW DISTRIBUTION 1CHAN 8SOIC","8-SOIC",null,null,null,null,null,"Integrierter Schaltkreis",97]
[null,"MIC2026-1YM","IC DISTRIBUTION SW DUAL 8-SOIC","8-SOIC",null,null,null,null,null,"Integrierter Schaltkreis",45]
["DIGI-KEY","mic94052yc6-tr","MOSFET P-CH 6V 2A sc70-6",null,null,null,null,null,null,"Mosfet Transistor",90]
["DIGI-KEY","mjd361t4-a","ic pwr trans pnp 60v 3a dpak","DPAK",null,null,null,null,null,"Integrierter Schaltkreis",9]
["DIGI-KEY","MLZ2012N100LT000","Fixed IND 10UH 500 MA 300 mOhm","0805","10 µH","500 mA","300 mOhm","20",null,"Induktoren",950]
["DIGI-KEY","MMB0207C2203FB200","RES SMD 220K Ohm 1% 1W 0207",{"$f":"RIGHT(C336,4)","v":"0207"},null,null,"220kOhm",1,"1","Widerstand",100]
["DIGI-KEY","MMB0207C2203FB200","RES SMD 220K Ohm 1% 1W 0207",{"$f":"RIGHT(C337,4)","v":"0207"},null,null,"220kOhm",1,"1","Widerstand",9]
["DIGI-KEY","mmsz5253bt1g","diode zener 25v 500mw sod123","SOD-123",null,null,null,null,null,"Zener Dioden",450]
["DIGI-KEY","MP2060-200-1%","RES 200 Ohm 60W 1% TO220","TO220",null,null,"200Ohm",1,"60","Widerstand",2]
[null,"MU2029-301Y","FERRITE BEAD 300 Ohm 0805 1LN","0805","300Ohm/100MHz","500mA","300mOhm",null,null,"Ferrit",487]
["DIGI-KEY","murs320t3g","diode gen purp 200v 3a smc",null,null,null,null,null,null,null,21]
["DIGI-KEY","mx25l1606em2i-12g","IC FLASH 16MBIT SPI 86MHZ 8SOP","8-sop",null,null,null,null,null,"Integrierter Schaltkreis",463]
["DIGI-KEY","mx25l8006em1i-12g","IC FLASH 8MBIT SPI 86MHZ 8SOP","8-sop",null,null,null,null,null,"Integrierter Schaltkreis",1]
["DIGI-KEY","NC7SV125P5X","IC BµfFER ULP-A 3ST SC70-5","SC70-5",null,null,null,null,null,"Integrierter Schaltkreis",450]
["DIGI-KEY","NC7SV125P5XCT-ND","IC Bµf NON-INVERT 3.6V SC70-5","SC70-5",null,null,null,null,null,"Integrierter Schaltkreis",9]
[null,"NEO PIXEL rgb LED","neo pixel Mini rgb LED black casing",null,null,null,null,null,null,"LED","21*10"]
["DIGI-KEY","nfm21pc104r1e3d","cap feedthru 0.1µf 20% 25v 0805","0805","0,1µf","25v",null,"20",null,"Durchführungskonsatoren",1000]
["DIGI-KEY","NLV32T-R47J-PF","FIXED IND 470NH 450MA 500 mOhm","1210","470 NH","450 mA","500 mOhm","5",null,"Induktoren",72]
["DIGI-KEY","NR6045T470M","FIXED IND 47UH 1.1A 286 mOhm SMD","nicht standardmässig","47 µH","1.1 A","286 mOhm","20",null,"Induktoren",13]
["DIGI-KEY","NXJ1S1212MC-R7","DC DC CONVERTER 12V 1W",null,null,null,null,null,null,null,49]
["DIGI-KEY","nzx20c.133","diode zener 20v 500mw alf2","ALF-3",null,null,null,null,null,"Zener Dioden",25]
["DIGI-KEY","p3100sclrp","sidactor bi 275v 400a do-214aa",null,null,null,null,null,null,null,25]
["DIGI-KEY","p6smb220a","tvs dioade 185vwm 328vc do214aa",null,null,null,null,null,null,"TVS Dioden",48]
["DIGI-KEY","plp2-7mm","Light pipe pnl mnt 2mm rnd 7mm",null,null,null,null,null,null,null,12]
["DIGI-KEY","PLPC-250","Light pipe pnl mnt rnd .250\"",null,null,null,null,null,null,null,25]
["DIGI-KEY","pmeg3030ep.115","diode schottkey30v 3a sod128","SOD-128",null,null,null,null,null,"Schottky Dioden",5]
["DIGI-KEY","PN5120A0HN1/C1.118","IC Transmission MOD 32-HVQFN","32-HVQFN",null,null,null,null,null,"Integrierter Schaltkreis",7]
["DIGI-KEY","prg18bc2r2mm1rb","ptc reset fuse 12v 220ma 0603","0603",null,null,null,null,null,null,100]
["DIGI-KEY","PT1206FR-070R165L","RES 0.165 Ohm 1% 1/4W 1206","1206",null,null,"0,165Ohm",1,"1/4 ","Widerstand",100]
["DIGI-KEY","PT1206FR-070R165L","RES 0.165 Ohm 1% 1/4W 1206","1206",null,null,"0,165Ohm",1,"1/4 ","Widerstand",14]
["DIGI-KEY","pts645sm43smtr92  lfs","switch tactile spst-no 0.05a 12v",null,null,null,null,null,null,"Schalter/Taster",100]
["DIGI-KEY","PTVS3V3S1UR","TVS DIODE 3.3VWM 8VC SOD123W","SOd123w",null,null,null,null,"350w","TVS Dioden",3000]
["DIGI-KEY","qxk2e106ktp","cap film 10µf 10%  250vdc Radial","radial","10µf","250v dc",null,"10",null,"Folienkondensatoren",8]
["DIGI-KEY","qxk2e106ktp","cap film 10µf 10%  250vdc Radial","radial","10µf","250v dc",null,"10",null,"Folienkondensatoren",10]
["DIGI-KEY","qxk2e475ktp","cap film 4.7µf 10%  250vdc Radial","radial","4,7µf","250v dc",null,"10",null,"Folienkondensatoren",10]
["DIGI-KEY","r75pw44704030j","cap film 4.7µf 5%630vdc radial",null,"4,7µf","630v dc",null,5,null,"Folienkondensatoren",10]
["DIGI-KEY","rb161m-20tr","diode schottky 20v 1a pmdu","PMDU",null,null,null,null,null,"Schottky Dioden",3000]
["DIGI-KEY","RB-3.312S/H","DC DC CONVERTER 12V 1W",null,null,null,null,null,null,"Wandler",8]
["DIGI-KEY","rb751v140t1g","dioda schottky 30v 30ma sod323","SOD-323",null,null,null,null,null,"Schottky Dioden",500]
["DIGI-KEY","RB751V40T1G","DIODE SCHOTTKY 30V 30MA SOD323","SOD-323",null,"30v",null,null,null,"Schottky Dioden",500]
["DIGI-KEY","RC0402FR-0710KL","RES SMD 10K Ohm 1% 1/16W 0402","0402",null,null,"10kOhm",1,"1/16","Widerstand",2500]
["DIGI-KEY","RC0402FR-0712K1L","RES SMD 12.1k Ohm 1%1/16W 0402","0402",null,null,"12,1 kOhm",1,"1/16","Widerstand",1000]
["DIGI-KEY","RC0402FR-071ML","res 1mOhm 1/16W 1% 0402 SMD","0402",null,null,"1 mOhm",1,"1/16","Widerstand",995]
["DIGI-KEY","RC0402FR-0722RL","RES SMD 22 Ohm 1% 1/16 W 0402","0402",null,null,"22Ohm",1,"1/16","Widerstand",1000]
["Yageo","Rc0402fr-0724r9l","RES 24.9 OHM 1% 1/16W 0402",{"$f":"RIGHT(C375,4)","v":"0402"},null,null,"24,9 ohm","1","1/16","Widerstand",9692]
["DIGI-KEY","RC0402FR-072K49L","RES SMD 2.49K Ohm 1% 1/16 W 0402","0402",null,null,"2,49kOhm",1,"1/16","Widerstand",1000]
["DIGI-KEY","rc0402fr-07330rl","RES 330 OHM 1% 1/16W 0402","0402",null,null,"330ohm","1","1/16","Widerstand",10000]
["DIGI-KEY","RC0402FR-0747rl","RES 47 OHM 1% 1/16W 0402","0402",null,null,"47 ohm","1","1/16","Widerstand",10000]
["DIGI-KEY","RC0402FR-0749R9L","RES 49.9 Ohm 1/16W 1% 0402 SMD","0402",null,null,"49,9 Ohm",1,"1/16","Widerstand",{"$f":"SUM(L379*M379)","v":0},10000]
["DIGI-KEY","RC0402FR-074K7L","RES SMD 4.7K Ohm 1% 1/16W 0402","0402",null,null,"4,7kOhm",1,"1/16","Widerstand",2500]
["DIGI-KEY","RC0402FR-0756KL","RES SMD 56K Ohm 1% 1/16W 0402","0402",null,null,"56kOhm",1,"1/16","Widerstand",1000]
["DIGI-KEY","RC0402FR-076K19L","RES SMD 6.19K Ohm 1% 1/16W 0402","0402",null,null,"6,19kOhm",1,"1/16","Widerstand",676]
["DIGI-KEY","RC0603FR-07100KL","RES SMD 100K Ohm 1% 1/10W ","0603",null,null,"100kOhm",1,"1/10","Widerstand",1000]
["DIGI-KEY","RC0603FR-07100RL","RES SMD 100 Ohm 1% 1/10W 0603","0603",null,null,"100 Ohm",1,"1/10","Widerstand",1000]
["Yageo","RC0603FR-07100RL","RES SMD 100 Ohm 1% 1/10W 0603","0603",null,null,"100 Ohm",1,"1/10","Widerstand",1000]
["DIGI-KEY","RC0603FR-0710KL","RES SMD 10K Ohm 1% 1/10W 0603","0603",null,null,"10kOhm",1,"1/10","Widerstand",1000]
["DIGI-KEY","RC0603FR-0710RL","RES SMD 10 Ohm 1% 1/10W 0603","0603",null,null,"10Ohm",1,"1/10","Widerstand",1000]
["DIGI-KEY","RC0603FR-0710RL","RES SMD 10 Ohm 1% 1/4W 0603","0603",null,null,"10Ohm",1,"1/4 ","Widerstand",5000]
["DIGI-KEY","RC0603FR-0712R1L","RES SMD 12.1 Ohm 1%1/10W 0603","0603",null,null,"12,1Ohm",1,"1/10","Widerstand",990]
["DIGI-KEY","RC0603FR-07130RL","RES SMD 130 Ohm 1% 1/10W 0603","0603",null,null,"130Ohm",1,"1/10","Widerstand",1000]
["DIGI-KEY","RC0603FR-071K5L","RES 1.5K OHM 1% 1/10W 0603","0603",null,null,"1,5 kohm",1,"1/10","Widerstand",900]
["Yageo","RC0603FR-071K5L","RES 1.5K OHM 1% 1/10W 0603","0603",null,null,"1,5kohm","1","1/10","Widerstand",5000]
["DIGI-KEY","RC0603FR-071K8L","RES SMD 1.8K Ohm 1% 1/10W 0603","0603",null,null,"1,8kOhm",1,"1/10","Widerstand",817]
["DIGI-KEY","RC0603FR-071KL","RES SMD 1K Ohm 1% 1/10W 0603","0603",null,null,"1kOhm",1,"1/10","Widerstand",991]
["DIGI-KEY","RC0603FR-07215KL","RES SMD 215K Ohm 1% 1/10 W 0603","0603",null,null,"215kOhm",1,"1/10","Widerstand",1000]
[null,"RC0603FR-072K2L","RES 2.2K Ohm 1% 1/10W 0603","0603",null,null,"2,2koHm",1,"1/10 ","Widerstand",{"$f":"SUM(L396*M396)","v":0},5000]
["Yageo","RC0603FR-072K2L","RES 2.2K OHM 1% 1/10W 0603",{"$f":"RIGHT(C397,4)","v":"0603"},null,null,"2,2kohm","1","1/10","Widerstand",5000]
["DIGI-KEY","RC0603FR-07330RL","RES SMD 330 Ohm 1% 1/10W 0603","0603",null,null,"330Ohm",1,"1/10","Widerstand",5000]
["DIGI-KEY","RC0603FR-0747KL","RES SMD 47K Ohm 1% 1/10 W 0603","0603",null,null,"47kOhm",1,"1/10","Widerstand",1000]
["DIGI-KEY","RC0603FR-0747KL","RES 47K OHM 1% 1/10W 0603","0603",null,null,"47kohm","1","1/10","Widerstand",5000]
["DIGI-KEY","RC0603FR-0749R9L","RES 49.9 Ohm 1% 1/10W 0603","0603",null,null,"49,9 Ohm",1,"1/10","Widerstand",490]
["DIGI-KEY","RC0603FR-0749R9L","RES 49.9 Ohm 1% 1/10W 0603","0603",null,null,"49,9Ohm",1,"1/10","Widerstand",500]
["DIGI-KEY","RC0603FR-07820RL","RES 820 Ohm 1/10W 1% 0603  SMD","0603",null,null,"820Ohm",1,"1/10","Widerstand",1000]
["DIGI-KEY","RC0603FR-0782RL82","RES SMD 82 Ohm 1% 1/10W 0603","0603",null,null,"82  Ohm",1,"1/10","Widerstand",{"$f":"SUM(L404*M404)","v":0},1000]
["DIGI-KEY","RC0603FR-078K2L","RES SMD 8.2K Ohm 1% 1/10W 0603","0603",null,null,"8,2kOhm",1,"1/10","Widerstand",1000]
["DIGI-KEY","RC0603FR-7680RL","RES 680 Ohm 1/10W 1% 0603 SMD","0603",null,null,"680Ohm",1,"1/10","Widerstand",1000]
["DIGI-KEY","RC0603JR-0775RL","RES SMD 75 Ohm 5% 1/10 W 0603","0603",null,null,"75Ohm",5,"1/10","Widerstand",1000]
["DIGI-KEY","RC0805FR-07100RL","RES 100 OHM 1% 1/8W 0805","0805",null,null,"100Ohm",1,"1/10","Widerstand",1000]
["DIGI-KEY","RC0805FR-0710KL","RES 10K OHM 1% 1/8W 0805","0805",null,null,"10 ohm","1","1/8","Widerstand","ca 1000"]
["DIGI-KEY","rc0805fr-07120rl","RES 120 OHM 1% 1/8W 0805","0805",null,null,"120 ohm","1","1/8","Widerstand",1000]
["DIGI-KEY","RC0805FR-071KL","RES SMD 1K Ohm 1% 1/8W 0805","0805",null,null,"1kOhm",1,"1/8","Widerstand",1000]
["DIGI-KEY","RC0805FR-072K7L","RES SMD 2.7 kOhm 1% 1/8W 0805","0805",null,null,"2,7kOhm",1,"1/8","Widerstand",1000]
[null,"RC0805FR-07470RL","RES 470 Ohm 1% 1/8W 0805","0805",null,null,"470 Ohm",1,"1/8","Widerstand",{"$f":"SUM(L413*M413)","v":0},5000]
["Yageo","RC0805FR-07470Rl","RES 470 OHM 1% 1/8W 0805",{"$f":"RIGHT(C414,4)","v":"0805"},null,null,"470ohm","1","1/8","Widerstand",5000]
["DIGI-KEY","rc0805fr-074k7l","RES 4.7K OHM 1% 1/8W 0805","0805",null,null,"4,7kohm","1","1/8","Widerstand",5000]
["DIGI-KEY","RC0805FR-074R42L","RES SMD 4.42 Ohm 1% 1/8W 0805","0805",null,null,"4,42Ohm",1,"1/8","Widerstand",1000]
["DIGI-KEY","RC0805FR-076k8l","RES 6.8K OHM 1% 1/8W 0805","0805",null,null,"6,8kohm","1","1/10","Widerstand",5000]
["DIGI-KEY","RC1206FR-0710RL","RES SMD 10 Ohm 1% 1/4W1206","1206",null,null,"10Ohm",1,"1/4 ","Widerstand",1000]
["DIGI-KEY","RC1206FR-0710RL","RES SMD 120 Ohm 1% 1/4W 1206","1206",null,null,"120Ohm",1,"1/4 ","Widerstand",1000]
[null,"RC1206FR-0727RL","RES 27 Ohm 1% 1/4W 1206","1206",null,null,"27 Ohm",1,"1/4 ","Widerstand",{"$f":"SUM(L420*M420)","v":0},5000]
["Yageo","RC1206FR-07330RL","RES 330 OHM 1% 1/4W 1206",{"$f":"RIGHT(C421,4)","v":"1206"},null,null,"330ohm","1","1/4","Widerstand",5000]
[null,"RC1206FR-0733RL","RES 33 Ohm 1% 1/4W 1206","1206",null,null,"33 Ohm",1,"1/4 ","Widerstand",{"$f":"SUM(L422*M422)","v":0},5000]
["DIGI-KEY","RC1206JR-070RL","RES 0 Ohm JUMPER 1/4W 1206","1206",null,null,"0Ohm",null,"1/4 ","Widerstand",1000]
["DIGI-KEY","RC1608F273CS","RES SMD 27K Ohm 1% 1/10W 0603","0603",null,null,"27kOhm",1,"1/10","Widerstand",{"$f":"SUM(L424*M424)","v":0},5000]
[null,"RCO402FR-0724R9L","RES 24.9 Ohm 1% 1/16W 0402",{"$f":"RIGHT(C425,4)","v":"0402"},null,null,"24,9 Ohm",1,"1/16","Widerstand",{"$f":"SUM(L425*M425)","v":0},10000]
[null,"RCO603FR-07100RL","RES 100 Ohm 1% 1/10W 0603","0603",null,null,"100 Ohm",1,"1/10","Widerstand",{"$f":"SUM(L426*M426)","v":0},5000]
[null,"RCO603FR-071K5L","RES 1.5K Ohm 1% 1/10W 0603","0603",null,null,"1,5k Ohm",1,"1/10 ","Widerstand",3000,5000]
["DIGI-KEY","RL120FR-7W0R12L","RES 0.12Ohm 1% 1/2W 1206","1206",null,null,"0,12Ohm",1,"1/2","Widerstand",100]
["DIGI-KEY","RL73H2BR68FTD","RES 0.68 Ohm 1% 1/4W 1206","1206",null,null,"0,68Ohm",1,"1/4 ","Widerstand",100]
["DIGI-KEY","RMCF0402FT47K0","RES 47K Ohm 1% 1/16W 0402","0402",null,null,"47kOhm",1,"1/16","Widerstand",1000]
["DIGI-KEY","RMCF0603FT100K","RES 100K Ohm 1% 1/10 W 0603","0603",null,null,"100 kOhm",1,"1/10","Widerstand",1000]
["DIGI-KEY","RMCF0603FT1R50","RES 1.5 Ohm 1/10W 0603","0603",null,null,"1,5 Ohm",1,"1/10","Widerstand",250]
["DIGI-KEY","RMCF0603FT4R70","RES 4.7 Ohm 1/10W 1% 0603 ","0603",null,null,"47Ohm",1,"1/10","Widerstand",1000]
["DIGI-KEY","RMCF0603FTBR20","RES 8.2 Ohm 1/10W 1% 0603 ","0603",null,null,"8,2Ohm",1,"1/10","Widerstand",250]
["DIGI-KEY","RMCF0603JT15R0","RES 15 Ohm  1% 1/10W 0603","0603",null,null,"15Ohm",1,"1/10","Widerstand",1000]
["DIGI-KEY","RMCF0805FT6K80","RES 6.8K Ohm 1/8W 1% 0805 SMD","0805",null,null,"6,8kOhm",1,"1/8","Widerstand",1000]
["DIGI-KEY","RPC0805JT4AR70","RES SMD 4.7 Ohm 5% 1/4W 0805","0805",null,null,"4,7 Ohm",5,"1/4 ","Widerstand",293]
["DIGI-KEY","RT0603BRD0714K7L","RES SMD 14.7kOhm 0.1% 1/10W 0603","0603",null,null,"14,7kOhm",1,"1/10","Widerstand",250]
["DIGI-KEY","RT0603BRD0715KL","RES SMD 150K Ohm 1% 1/10W 0603","0603",null,null,"150kOhm",1,"1/10","Widerstand",250]
["DIGI-KEY","RT0603RBRD07210KL","RES SMD 210K Ohm 0.1% 1/10W 0603","0603",null,null,"210 kOhm",1,"1/10","Widerstand",100]
["DIGI-KEY","RT0603RBRD0730KL","RES SMD 30K Ohm 0,1% 1/10W 0603","0603",null,null,"30kOhm",1,"1/10","Widerstand",230]
["DIGI-KEY","RT0604BRD07180KL ","RES SMD 180K Ohm 1% 1/10W 0603","0603",null,null,"180kOhm",1,"1/10","Widerstand",250]
["DIGI-KEY","RT1206BRD07100RL","RES SMD 100 Ohm 1% 1/4W 1206","1206",null,null,"100 Ohm",1,"1/4 ","Widerstand",25]
[null,"RZ03-1a4-d005","Relais N0 250v 30a 5v",null,null,null,null,null,null,"Relais",12]
["DIGI-KEY","sbas70-04lt1g","diode schottky 70v dual sot23","SOT23",null,null,null,null,null,"Schottky Dioden",100]
["DIGI-KEY","sbt01m-12","DC DC CONVERTER 12V 1W","8-smd- modul",null,"12v",null,null,"1w","Wandler",24]
["DIGI-KEY","sd12t1g","TVs diode 12vwm 19vc sod323","SOD-323",null,null,null,null,null,"TVS Dioden",500]
["DIGI-KEY","sep0640q38cb","sidactor ethernet poe 64v 100a",null,null,null,null,null,null,null,100]
["DIGI-KEY","SGTL5000XNAA3","IC AUDIO CODEC STEREO 32-QFN","32-QFN",null,null,null,null,null,"Integrierter Schaltkreis",12]
["DIGI-KEY","si3440dv-t1-ge3","mosfetn-ch 150v 1.2a 6-tsop",null,null,null,null,null,null,"Mosfet Transistor",25]
["DIGI-KEY","si7020-a20-im1","ic temp sensor rh 3% 6dfn","6-DFN",null,null,null,null,null,"Integrierter Schaltkreis",94]
["DIGI-KEY","si8220db-d-is","dgtl iso 2.5kv gate driver 8soic","8-SOIC",null,null,null,null,null,"Integrierter Schaltkreis",23]
["DIGI-KEY","si8261bcc-c-is","dgtl iso 3.75kv gate driver 8soic","8-SOIC",null,null,null,null,null,"Integrierter Schaltkreis",23]
["DIGI-KEY","slf12565t-470m2r4-pf","fixed ind 47uh 2.4a 57.8 mOhm","nicht standardmässig","47uh","2,8a","69,4 mOhm","20",null,"Induktoren",15]
["DIGI-KEY","sm15t220a","tvs diode 188vwm 388vc smc","SMC",null,null,null,null,null,"TVS Dioden",250]
["DIGI-KEY","SM15T220A-E3/57T","TVS DIODE 188VWM 328VC DO214AB","DO-214AB (SMCJ)",null,null,null,null,"1500","TVS Dioden zener",500]
["DIGI-KEY","smbj12ca-13-f","TVS DIODE 12v 19.9v smb",null,null,null,null,null,null,"TVS Dioden",100]
["DIGI-KEY","smbj12ca-tr","tvs diode 12vwm 25.3 vc do214aa",null,null,null,null,null,null,"TVS Dioden",50]
["DIGI-KEY","smbj13ca","tvs diode 13v 21.5v do214aa","DO-214AA",null,null,null,null,null,"TVS Dioden",10]
["DIGI-KEY","smbj20ca-13-f","tvs diode 20vwm 32.4vc smb",null,null,null,null,null,null,"TVS Dioden",484]
["DIGI-KEY","smbj36ca","tvs diode 36vwm 58.1vc smb",null,null,null,null,null,null,"TVS Dioden",500]
["DIGI-KEY","smdj5.0a","tvs diode 5vwm 9.2vc smd",null,null,null,null,null,null,"TVS Dioden",25]
["DIGI-KEY","smdj5.0ca","tvs diode 5vwm 9.2vc smd",null,null,null,null,null,null,"TVS Dioden",13]
["DIGI-KEY","smf4l12a","tvs diode 12v 19.9v sod123fl","SOD-123FL",null,null,null,null,null,"TVS Dioden",1000]
["DIGI-KEY","smf4l12a","tvs diode 12vwm 19.9vc sod123fl","SOD-123FL",null,null,null,null,null,"TVS Dioden",49]
["DIGI-KEY","sml-p12vtt86r","led red clear 0402 smd","0402",null,null,null,null,null,"LED",40]
["DIGI-KEY","SMM 25","FUSE BOARD MNT 25A 250VAC 72VDC ",null,null,null,null,null,null,null,26]
["DIGI-KEY","smm 25","fuse board mnt 25a 250vac 72 vdc",null,null,null,null,null,null,null,35]
["DIGI-KEY","smm 25","fuse board mnt 25a 250vac 72 vdc",null,null,null,null,null,null,null,944]
["DIGI-KEY","SMW527RJT","RES SMD 27 Ohm 5% 5W 5329",{"$f":"RIGHT(C470,4)","v":"5329"},null,null,"27Ohm",5,"5","Widerstand",22]
[null,"SN65HVD72DGKR","IC TXRX RS485 3.3V 8VSSOP","VSSOP",null,null,null,null,null,"Integrierter Schaltkreis",38]
["DIGI-KEY","SN65HVD72DGKR","IC TXRX RS485 3.3V 8VSSOP","VSSOP",null,null,null,null,null,"Integrierter Schaltkreis",4]
["DIGI-KEY","sn65hvd72dgkr","IC TXRX RS485 3.3V 8VSSOP","VSSOP",null,null,null,null,null,"Integrierter Schaltkreis",13]
["DIGI-KEY","sn65hvd82dr","ic txrx robust rs485 esd 8soic","8-SOIC",null,null,null,null,null,"Integrierter Schaltkreis",7]
["DIGI-KEY","sn74lv1t125dbvr","ic bµffer gate sgl cmos sot23-5","SOT23-5",null,null,null,null,null,"Integrierter Schaltkreis",4]
["DIGI-KEY","sn74lv1t34dbvr","ic bµffer gate sgl cmos sot23-5","SOT23-5",null,null,null,null,null,"Integrierter Schaltkreis",30]
["DIGI-KEY","SN74LVC1G126DBVR","IC BUS BµfF TRI-ST N-INV SOT23-5","SOT23-5",null,null,null,null,null,"Integrierter Schaltkreis",100]
["DIGI-KEY","SN74LVC1G17DBVR","IC BµfFER SCHMIT TRIG SOT23-5","SOT23-5",null,null,null,null,null,"Integrierter Schaltkreis",25]
["DIGI-KEY","sp3003-02jtg","tvs diode 6vwm 15vc sc70-5",null,null,null,null,null,null,"TVS Dioden",100]
["DIGI-KEY","sp3011-06utg","tvs diode 6v 12.5v 14udfn",null,null,null,null,null,null,"TVS Dioden",25]
["DIGI-KEY","sp3304mnutg","tvs diode 3.3vwm 11.5vc udfn10",null,null,null,null,null,null,"TVS Dioden",20]
["DIGI-KEY","SQP10AJB-200R","RES 200 Ohm 10W 5% AXIAL","axial",null,null,"200Ohm",5,"10","Widerstand",10]
["DIGI-KEY","sr05.tct","ictvs array 2-line 5v sot-143",null,null,"1,8-5,5V",null,null,null,"Mikrocontroller",38]
["DIGI-KEY","SRN 3015-3R3M","Fixed IND 3.3UH 1.6A 112 mOhm","nicht standardmässig","3.3 µH","1.6 A","112 mOhm","20",null,"Induktoren",75]
["DIGI-KEY","SRN 3015-3R3M","Fixed IND 3.3UH 1.6A 112 mOhm","nicht standardmässig","3.3 µH","1.6 A","112 mOhm","20",null,"Induktoren",100]
["DIGI-KEY","ss-5-f-3d","sw pin plunger spst-no 5a 125v",null,null,null,null,null,null,null,8]
["DIGI-KEY","ST662ABD-TR","IC REG SWTCHD CAP 12V 30MA 8SOIC","8-SOIC",null,null,null,null,null,"Integrierter Schaltkreis",50]
["DIGI-KEY","std12n50m2","mosfet n-ch 500v 10a dpak","DPAK",null,null,null,null,null,"Mosfet Transistor",10]
["DIGI-KEY","std9n40m2","mosfet n-ch 400v 6a dpak","DPAK",null,null,null,null,null,"Mosfet Transistor",10]
["DIGI-KEY","sum110p04-05-e3","mosfet p-ch 40v 110a d2pak",null,null,null,null,null,null,"Mosfet Transistor",5]
["DIGI-KEY","t494c475k025at","cap tant 4.7µf 25v 10% 2312",{"$f":"RIGHT(C491,4)","v":"2312"},"4,7µf","25v",null,"10",null,"Tantalkondensatoren",50]
["DIGI-KEY","t495d107k006ate130","CAP TANT 100UF 10% 6.3V 2917","2917","100uf","6,3v",null,"10",null,"Tantalkondensatoren",3]
["DIGI-KEY","t835-600b-tr","triac alternistor 600v 8a dpak","DPAK",null,null,null,null,null,null,25]
["DIGI-KEY","temt6200fx01","ambient ligth sensor 0805 smd","0805",null,null,null,null,null,"Sensoren",150]
["DIGI-KEY","tept4400","ambient light sensor 3mm 570nm",null,null,null,null,null,null,"Sensoren",500]
["Mouser","Tgsad-292v6lf","iso mod smd gullwing impulstransformatoren",null,null,null,null,null,null,"Impulstransformator",11]
["DIGI-KEY","tl1015af160qg","switch tactile spst-no 0.05a 12v",null,null,null,null,null,null,"Schalter/Taster",110]
["DIGI-KEY","tl3300af160q","switch tactile spst-no 0.05a 12v",null,null,null,null,null,null,"Schalter/Taster",19]
["DIGI-KEY","tl3300af260q","switch tactile spst-no 0.05a 12v",null,null,null,null,null,null,"Schalter/Taster",19]
["DIGI-KEY","tlns227m004r3000","cap tant 22µf 4v 20% 1206","1206","22 µf","4v",null,"20",null,"Tantalkondensatoren",10]
["DIGI-KEY","tlp701(tp.F)","optoiso 5kv gate driver 6sdip gw",null,null,null,null,null,null,"Optokoppler",9]
[null,"TLV320AIC23BIPWR","IC STEREO AUDIO CODEC 28-TSSOP","28-TSSOP",null,null,null,null,null,"Integrierter Schaltkreis",12]
["DIGI-KEY","TLV70025DDCR ","IC REG LINEAR 2.5V 200MA SOT23-5","SOT23-5",null,null,null,null,null,null,10]
["DIGI-KEY","tlv70450dbvr","ic reg linear 5v 150ma sot23-5","SOT23-5",null,null,null,null,null,"Integrierter Schaltkreis",30]
["DIGI-KEY","tmk105b7472kv-f","CAP CER 4700PF 25V X7R 0402","0402","4700pf","25v",null,"10",null,"Keramik Kondensatoren",970]
["DIGI-KEY","tmk316bj475kl-t","cap cer 4.7µf 25v x5r 1206","1206","4.7µf","25v",null,"10",null,"Keramik Kondensatoren",500]
["DIGI-KEY","TPS62132RGTR","IC REG BUCK 3.3V 3A SYNC 16QFN ","16-QFN",null,null,null,null,null,"Integrierter Schaltkreis",10]
["DIGI-KEY","TPS62132RGTR","ic reg buck 5v 3a sync 16qfn","16-QFN",null,null,null,null,null,"Integrierter Schaltkreis",25]
["DIGI-KEY","tvs3v3l4ue6327htsa1","tvs diode 3.3vwm 7.7vc sc74",null,null,null,null,null,null,"TVS Dioden",85]
["DIGI-KEY","UB5C-10RF1","RES 10 Ohm 5W 1% AXIAL","axial",null,null,"10Ohm",1,"5","Widerstand",7]
["DIGI-KEY","umk105abj474kv-f","cap cer 0.47µf 50v 10% x5r 0402","0402","0,47µf","50v"," ","10",null,"Keramik Kondensatoren",39]
["DIGI-KEY","umk105abj474kv-f","cap cer 0.47µf 50v 10% x5r 0402","0402","0,47µf","50v",null,"10",null,"Keramik Kondensatoren",93]
["DIGI-KEY","umk105abj474kv-f","cap cer 0.47µf 50v 10% x5r 0402","0402","0,47µf","50v",null,"10",null,"Keramik Kondensatoren",10]
["DIGI-KEY","umk105abj474kv-f","cap cer 0.47µf 50v 10% x5r 0402","0402","0,47µf","50v",null,"10",null,"Keramik Kondensatoren",77]
["DIGI-KEY","umk105abj474kv-f","cap cer 0.47µf 50v 10% x5r 0402","0402","0,47µf","50v",null,"10",null,"Keramik Kondensatoren",8]
["DIGI-KEY","umk105abj474kv-f","cap cer 0.47µf 50v 10% x5r 0402","0402","0,47µf","50v",null,"10",null,"Keramik Kondensatoren",100]
["DIGI-KEY","umk105abj474kv-f","cap cer 0.47µf 50v 10% x5r 0402","0402","0,47µf","50v",null,"10",null,"Keramik Kondensatoren",68]
["DIGI-KEY","umk105abj474kv-f","cap cer 0.47µf 50v 10% x5r 0402","0402","0,47µf","50v",null,"10",null,"Keramik Kondensatoren",55]
["DIGI-KEY","umk107bj105ka-t","cap cer 1µf 50v x5r 0603","0603","1µf","50v",null,"10",null,"Keramik Kondensatoren",500]
["DIGI-KEY","umk107bj105ka-t","cap cer 1µf 50v x5r 0603","0603","1µf","50v",null,"10",null,"Keramik Kondensatoren",500]
["DIGI-KEY","UWT1V470MCL1GS","CAP ALUM 47UF 20% 35V SMD",null,"47uf","35v",null,"20",null,"Alu-Elektrolyt Kondensatoren",97]
["Mouser","v0615a-4x017t","OPTOISOLATOR 5.3KV TRANS 4-SMD","4-smd",null,null,null,null,null,"Optoisolator Ausgang","ca 300"]
["DIGI-KEY","vo1400aeftr","relay ssr spst-no 100ma 60v 4sop","4-SOP",null,null,null,null,null,null,100]
[]
[]
["DIGI-KEY"]
["DIGI-KEY"]
["DIGI-KEY"]
["DIGI-KEY"]
["DIGI-KEY"]
["DIGI-KEY"]
["DIGI-KEY"]
["DIGI-KEY"]
["DIGI-KEY"]
["DIGI-KEY"]
["DIGI-KEY"]
["DIGI-KEY"]
["DIGI-KEY"]
["DIGI-KEY"]
["DIGI-KEY"]
["DIGI-KEY"]
["DIGI-KEY"]
["DIGI-KEY"]
["DIGI-KEY"]
["DIGI-KEY"]
["DIGI-KEY"]
["DIGI-KEY"]
["DIGI-KEY"]
["DIGI-KEY"]
["DIGI-KEY"]
["DIGI-KEY"]
["DIGI-KEY"]
["DIGI-KEY"]
["DIGI-KEY"]
["DIGI-KEY"]
["DIGI-KEY"]
["DIGI-KEY"]
["DIGI-KEY"]
["DIGI-KEY"]
["DIGI-KEY"]
["DIGI-KEY"]
["DIGI-KEY"]
["DIGI-KEY"]
["DIGI-KEY"]
["DIGI-KEY"]
["DIGI-KEY"]
["DIGI-KEY"]
["DIGI-KEY"]
["DIGI-KEY"]
["DIGI-KEY"]
["DIGI-KEY"]
["DIGI-KEY"]
["DIGI-KEY"]
["DIGI-KEY"]
["DIGI-KEY"]
["DIGI-KEY"]
["DIGI-KEY"]
["DIGI-KEY"]
["DIGI-KEY"]
["DIGI-KEY"]
["DIGI-KEY"]
["DIGI-KEY"]
["DIGI-KEY"]
["DIGI-KEY"]
["DIGI-KEY"]
["DIGI-KEY"]
["DIGI-KEY"]
["DIGI-KEY"]
["DIGI-KEY"]
["DIGI-KEY"]
["DIGI-KEY"]
["DIGI-KEY"]
["DIGI-KEY"]
["DIGI-KEY"]
["DIGI-KEY"]
["DIGI-KEY"]
["DIGI-KEY"]
["DIGI-KEY"]
["DIGI-KEY"]
["DIGI-KEY"]
["DIGI-KEY"]
["DIGI-KEY"]
["DIGI-KEY"]
["DIGI-KEY"]
["DIGI-KEY"]
["DIGI-KEY"]
["DIGI-KEY"]
["DIGI-KEY"]
["DIGI-KEY"]
["DIGI-KEY"]
["DIGI-KEY"]
["DIGI-KEY"]
["DIGI-KEY"]
["DIGI-KEY"]
["DIGI-KEY"]
["DIGI-KEY"]
["DIGI-KEY"]
["DIGI-KEY"]
["DIGI-KEY"]
["DIGI-KEY"]
["DIGI-KEY"]
["DIGI-KEY"]
["DIGI-KEY"]
["DIGI-KEY"]
["DIGI-KEY"]
["DIGI-KEY"]
["DIGI-KEY"]
["DIGI-KEY"]
["DIGI-KEY"]
["DIGI-KEY"]
["DIGI-KEY"]
["DIGI-KEY"]
["DIGI-KEY"]
["DIGI-KEY"]
["DIGI-KEY"]
["DIGI-KEY"]
["DIGI-KEY"]
["DIGI-KEY"]
["DIGI-KEY"]
["DIGI-KEY"]
["DIGI-KEY"]
["DIGI-KEY"]
["DIGI-KEY"]
["DIGI-KEY"]
["DIGI-KEY"]
["DIGI-KEY"]
["DIGI-KEY"]
["DIGI-KEY"]
["DIGI-KEY"]
["DIGI-KEY"]
["DIGI-KEY"]
["DIGI-KEY"]
["DIGI-KEY"]
["DIGI-KEY"]
["DIGI-KEY"]
["DIGI-KEY"]
["DIGI-KEY"]
["DIGI-KEY"]
["DIGI-KEY"]
["DIGI-KEY"]
["DIGI-KEY"]
["DIGI-KEY"]
["DIGI-KEY"]
["DIGI-KEY"]
["DIGI-KEY"]
["DIGI-KEY"]
["DIGI-KEY"]
["DIGI-KEY"]
["DIGI-KEY"]
["DIGI-KEY"]
["DIGI-KEY"]
["DIGI-KEY"]
["DIGI-KEY"]
["DIGI-KEY"]
["DIGI-KEY"]
["DIGI-KEY"]
["DIGI-KEY"]
["DIGI-KEY"]
["DIGI-KEY"]
["DIGI-KEY"]
["DIGI-KEY"]
["DIGI-KEY"]
["DIGI-KEY"]
["DIGI-KEY"]
["DIGI-KEY"]
["DIGI-KEY"]
["DIGI-KEY"]
["DIGI-KEY"]
["DIGI-KEY"]
["DIGI-KEY"]
["DIGI-KEY"]
["DIGI-KEY"]
["DIGI-KEY"]
["DIGI-KEY"]
["DIGI-KEY"]
["DIGI-KEY"]
["DIGI-KEY"]
["DIGI-KEY"]
["DIGI-KEY"]
["DIGI-KEY"]
["DIGI-KEY"]
["DIGI-KEY"]
["DIGI-KEY"]
["DIGI-KEY"]
["DIGI-KEY"]
["DIGI-KEY"]
["DIGI-KEY"]
["DIGI-KEY"]
["DIGI-KEY"]
["DIGI-KEY"]
["DIGI-KEY"]
["DIGI-KEY",null,null,{"$f":"RIGHT(C712,4)","v":""}]
["DIGI-KEY",null,null,""]
["DIGI-KEY",null,null,""]
["DIGI-KEY",null,null,""]
["DIGI-KEY",null,null,""]
["DIGI-KEY",null,null,""]
["DIGI-KEY",null,null,""]
["DIGI-KEY",null,null,""]
["DIGI-KEY",null,null,""]
["DIGI-KEY",null,null,""]
["DIGI-KEY",null,null,""]
["DIGI-KEY",null,null,""]
["DIGI-KEY",null,null,""]
["DIGI-KEY",null,null,""]
["DIGI-KEY",null,null,""]
["DIGI-KEY",null,null,""]
["DIGI-KEY",null,null,""]
["DIGI-KEY",null,null,""]
["DIGI-KEY",null,null,""]
["DIGI-KEY",null,null,""]
["DIGI-KEY",null,null,""]
["DIGI-KEY",null,null,""]
["DIGI-KEY",null,null,""]
["DIGI-KEY",null,null,""]
["DIGI-KEY",null,null,""]
["DIGI-KEY",null,null,""]
["DIGI-KEY",null,null,""]
["DIGI-KEY",null,null,""]
["DIGI-KEY",null,null,""]
["DIGI-KEY",null,null,""]
["DIGI-KEY",null,null,""]
["DIGI-KEY",null,null,""]
["DIGI-KEY",null,null,""]
["DIGI-KEY",null,null,""]
["DIGI-KEY",null,null,""]
["DIGI-KEY",null,null,""]
["DIGI-KEY",null,null,""]
["DIGI-KEY",null,null,""]
["DIGI-KEY",null,null,""]
["DIGI-KEY",null,null,""]
["DIGI-KEY",null,null,""]
["DIGI-KEY",null,null,""]
["DIGI-KEY",null,null,""]
["DIGI-KEY",null,null,""]
["DIGI-KEY",null,null,""]
["DIGI-KEY",null,null,""]
["DIGI-KEY",null,null,""]
["DIGI-KEY",null,null,""]
["DIGI-KEY",null,null,""]
["DIGI-KEY",null,null,""]
["DIGI-KEY",null,null,""]
["DIGI-KEY",null,null,""]
["DIGI-KEY",null,null,""]
["DIGI-KEY",null,null,""]
["DIGI-KEY",null,null,""]
["DIGI-KEY",null,null,""]
["DIGI-KEY",null,null,""]
["DIGI-KEY",null,null,""]
["DIGI-KEY",null,null,""]
["DIGI-KEY",null,null,""]
["DIGI-KEY",null,null,""]
["DIGI-KEY",null,null,""]
["DIGI-KEY",null,null,""]
["DIGI-KEY",null,null,""]
["DIGI-KEY",null,null,{"$f":"RIGHT(C776,4)","v":""}]
["DIGI-KEY",null,null,""]
["DIGI-KEY",null,null,""]
["DIGI-KEY",null,null,""]
["DIGI-KEY",null,null,""]
["DIGI-KEY",null,null,""]
["DIGI-KEY",null,null,""]
["DIGI-KEY",null,null,""]
["DIGI-KEY",null,null,""]
["DIGI-KEY",null,null,""]
["DIGI-KEY",null,null,""]
["DIGI-KEY",null,null,""]
["DIGI-KEY",null,null,""]
["DIGI-KEY",null,null,""]
["DIGI-KEY",null,null,""]
["DIGI-KEY",null,null,""]
["DIGI-KEY",null,null,""]
["DIGI-KEY",null,null,""]
["DIGI-KEY",null,null,""]
["DIGI-KEY",null,null,""]
["DIGI-KEY",null,null,""]
["DIGI-KEY",null,null,""]
["DIGI-KEY",null,null,""]
["DIGI-KEY",null,null,""]
["DIGI-KEY",null,null,""]
["DIGI-KEY",null,null,""]
["DIGI-KEY",null,null,""]
["DIGI-KEY",null,null,""]
["DIGI-KEY",null,null,""]
["DIGI-KEY",null,null,""]
["DIGI-KEY",null,null,""]
["DIGI-KEY",null,null,""]
["DIGI-KEY",null,null,""]
["DIGI-KEY",null,null,""]
["DIGI-KEY",null,null,""]
["DIGI-KEY",null,null,""]
["DIGI-KEY",null,null,""]
["DIGI-KEY",null,null,""]
["DIGI-KEY",null,null,""]
["DIGI-KEY",null,null,""]
["DIGI-KEY",null,null,""]
["DIGI-KEY",null,null,""]
["DIGI-KEY",null,null,""]
["DIGI-KEY",null,null,""]
["DIGI-KEY",null,null,""]
["DIGI-KEY",null,null,""]
["DIGI-KEY",null,null,""]
["DIGI-KEY",null,null,""]
["DIGI-KEY",null,null,""]
["DIGI-KEY",null,null,""]
["DIGI-KEY",null,null,""]
["DIGI-KEY",null,null,""]
["DIGI-KEY",null,null,""]
["DIGI-KEY",null,null,""]
["DIGI-KEY",null,null,""]
["DIGI-KEY",null,null,""]
["DIGI-KEY",null,null,""]
["DIGI-KEY",null,null,""]
["DIGI-KEY",null,null,""]
["DIGI-KEY",null,null,""]
["DIGI-KEY",null,null,""]
["DIGI-KEY",null,null,""]
["DIGI-KEY",null,null,""]
["DIGI-KEY",null,null,""]
["DIGI-KEY",null,null,{"$f":"RIGHT(C840,4)","v":""}]
["DIGI-KEY",null,null,""]
["DIGI-KEY",null,null,""]
["DIGI-KEY",null,null,""]
["DIGI-KEY",null,null,""]
["DIGI-KEY",null,null,""]
["DIGI-KEY",null,null,""]
["DIGI-KEY",null,null,""]
["DIGI-KEY",null,null,""]
["DIGI-KEY",null,null,""]
["DIGI-KEY",null,null,""]
["DIGI-KEY",null,null,""]
["DIGI-KEY",null,null,""]
["DIGI-KEY",null,null,""]
["DIGI-KEY",null,null,""]
["DIGI-KEY",null,null,""]
["DIGI-KEY",null,null,""]
["DIGI-KEY",null,null,""]
["DIGI-KEY",null,null,""]
["DIGI-KEY",null,null,""]
["DIGI-KEY",null,null,""]
["DIGI-KEY",null,null,""]
["DIGI-KEY",null,null,""]
["DIGI-KEY",null,null,""]
["DIGI-KEY",null,null,""]
["DIGI-KEY",null,null,""]
["DIGI-KEY",null,null,""]
["DIGI-KEY",null,null,""]
["DIGI-KEY",null,null,""]
["DIGI-KEY",null,null,""]
["DIGI-KEY",null,null,""]
["DIGI-KEY",null,null,""]
["DIGI-KEY",null,null,""]
["DIGI-KEY",null,null,""]
["DIGI-KEY",null,null,""]
["DIGI-KEY",null,null,""]
["DIGI-KEY",null,null,""]
["DIGI-KEY",null,null,""]
["DIGI-KEY",null,null,""]
["DIGI-KEY",null,null,""]
["DIGI-KEY",null,null,""]
["DIGI-KEY",null,null,""]
["DIGI-KEY",null,null,""]
["DIGI-KEY",null,null,""]
["DIGI-KEY",null,null,""]
["DIGI-KEY",null,null,""]
["DIGI-KEY",null,null,""]
["DIGI-KEY",null,null,""]
["DIGI-KEY",null,null,""]
["DIGI-KEY",null,null,""]
["DIGI-KEY",null,null,""]
["DIGI-KEY",null,null,""]
["DIGI-KEY",null,null,""]
["DIGI-KEY",null,null,""]
["DIGI-KEY",null,null,""]
["DIGI-KEY",null,null,""]
["DIGI-KEY",null,null,""]
["DIGI-KEY",null,null,""]
["DIGI-KEY",null,null,""]
["DIGI-KEY",null,null,""]
["DIGI-KEY",null,null,""]
["DIGI-KEY",null,null,""]
["DIGI-KEY",null,null,""]
["DIGI-KEY",null,null,""]
["DIGI-KEY",null,null,{"$f":"RIGHT(C904,4)","v":""}]
["DIGI-KEY",null,null,""]
["DIGI-KEY",null,null,""]
["DIGI-KEY",null,null,""]
["DIGI-KEY",null,null,""]
["DIGI-KEY",null,null,""]
["DIGI-KEY",null,null,""]
["DIGI-KEY",null,null,""]
["DIGI-KEY",null,null,""]
["DIGI-KEY",null,null,""]
["DIGI-KEY",null,null,""]
["DIGI-KEY",null,null,""]
["DIGI-KEY",null,null,""]
["DIGI-KEY",null,null,""]
["DIGI-KEY",null,null,""]
["DIGI-KEY",null,null,""]
["DIGI-KEY",null,null,""]
["DIGI-KEY",null,null,""]
["DIGI-KEY",null,null,""]
["DIGI-KEY",null,null,""]
["DIGI-KEY",null,null,""]
["DIGI-KEY",null,null,""]
["DIGI-KEY",null,null,""]
["DIGI-KEY",null,null,""]
["DIGI-KEY",null,null,""]
["DIGI-KEY",null,null,""]
["DIGI-KEY",null,null,""]
["DIGI-KEY",null,null,""]
["DIGI-KEY",null,null,""]
["DIGI-KEY",null,null,""]
["DIGI-KEY",null,null,""]
["DIGI-KEY",null,null,""]
["DIGI-KEY",null,null,""]
["DIGI-KEY",null,null,""]
["DIGI-KEY",null,null,""]
["DIGI-KEY",null,null,""]
["DIGI-KEY",null,null,""]
["DIGI-KEY",null,null,""]
["DIGI-KEY",null,null,""]
["DIGI-KEY",null,null,""]
["DIGI-KEY",null,null,""]
["DIGI-KEY",null,null,""]
["DIGI-KEY",null,null,""]
["DIGI-KEY",null,null,""]
["DIGI-KEY",null,null,""]
[null,null,null,""]
[null,null,null,""]
[null,null,null,""]
[null,null,null,""]
[null,null,null,""]
[null,null,null,""]
[null,null,null,""]
[null,null,null,""]
[null,null,null,""]
[null,null,null,""]
[null,null,null,""]
[null,null,null,""]
[null,null,null,""]
[null,null,null,""]
[null,null,null,""]
[null,null,null,""]
[null,null,null,""]
[null,null,null,""]
[null,null,null,""]
[null,null,null,{"$f":"RIGHT(C968,4)","v":""}]
[null,null,null,""]
[null,null,null,""]
[null,null,null,""]
[null,null,null,""]
[null,null,null,""]
[null,null,null,""]
[null,null,null,""]
[null,null,null,""]
[null,null,null,""]
[null,null,null,""]
[null,null,null,""]
[null,null,null,""]
[null,null,null,""]
[null,null,null,""]
[null,null,null,""]
[null,null,null,""]
[null,null,null,""]

{"sheet":"0603","index":1,"n_rows":115,"n_cols":13,"rows_kept":115,"cut":false,"hidden":false,"merged":[]}
[null,"ARTIKELNUMMER","BAUTEIL","Artikelnummer","bauteil","Baugrösse","Kapazität/Induktivität/Impedanz ","Spannung/Nennstrom","Widerstand/Ohm","Toleranz in %","Leistung W","Baugruppe","Anzahl"]
["DIGI-KEY","C1608X5R1H153K080AA","CAP CER 0.015µF 50V X5R 0603","c1608x5r1h153k080aa","cap cer 0.015µf 50v x5r 0603","0603","0,015 µf","50v",null,"10",null,"Keramik Kondensatoren",250]
["DIGI-KEY","C0603X5R0J104M","CAP CER 0.1µF 6.3V 20% X5R 0201","c0603x5r0j104m","cap cer 0.1µf 6.3v 20% x5r 0201","0603","0,1µf","6,3v",null,"20",null,"Keramik Kondensatoren",375]
["DIGI-KEY","GRM188R61E105KA12J","CAP CER 1µF 25V X5R 0603","grm188r61e105ka12j","cap cer 1µf 25v x5r 0603","0603","1µf","25v",null,"10",null,"Keramik Kondensatoren",212]
["DIGI-KEY","UMK107BJ105KA-T","CAP CER 1µF 50V X5R 0603","umk107bj105ka-t","cap cer 1µf 50v x5r 0603","0603","1µf","50v",null,"10",null,"Keramik Kondensatoren",500]
["DIGI-KEY","UMK107BJ105KA-T","CAP CER 1µF 50V X5R 0603","umk107bj105ka-t","cap cer 1µf 50v x5r 0603","0603","1µf","50v",null,"10",null,"Keramik Kondensatoren",500]
["DIGI-KEY","EMK107BBJ106MA-T","CAP CER 10µF 16V X5R 0603","emk107bbj106ma-t","cap cer 10µf 16v x5r 0603","0603","10 µf","16v",null,"20",null,"Keramik Kondensatoren",500]
["DIGI-KEY","CL10X106MO8NRNC","CAP CER 10µF 16V X6S 0603","cl10x106mo8nrnc","cap cer 10µf 16v x6s 0603","0603","10µf","16v",null,"20",null,"Keramik Kondensatoren",200]
["DIGI-KEY","C1+08X5R0J106M080AB","CAP CER 10µF 6.3V 20% X5R 0603","c1+08x5r0j106m080ab","cap cer 10µf 6.3v 20% x5r 0603","0603","10 µf","6,3v",null,"20",null,"Keramik Kondensatoren",50]
["DIGI-KEY","CL10A106MQ8NNNC","CAP CER 10µF 6.3V 20% X5R 0603","cl10a106mq8nnnc","cap cer 10µf 6.3v 20% x5r 0603","0603","10 µf","6,3v",null,"20",null,"Keramik Kondensatoren",250]
["DIGI-KEY","C1608X5R0J106M","CAP CER 10µF 6.3V 20% X5R 0603","c1608x5r0j106m","cap cer 10µf 6.3v 20% x5r 0603","0603","10µf ","6,3v",null,"20",null,"Keramik Kondensatoren",93]
["DIGI-KEY","GRM188R60J106KE47D","CAP CER 10µF 6.3V X5R 0603","grm188r60j106KE47d","cap cer 10µf 6.3v x5r 0603","0603","10µf","6,3v",null,"10",null,"Keramik Kondensatoren",500]
["DIGI-KEY","CL10B152KB8SFNC","CAP CER 1500 PF 50V X7R 0603","cl10b152kb8sfnc","cap cer 1500 pf 50v x7r 0603","0603","1500pf","50v",null,"10",null,"Keramik Kondensatoren",1000]
["DIGI-KEY","CL10C181JB8NNC","CAP CER 180PF 50V 5% NP0 0603","cl10c181jb8nnc","cap cer 180pf 50v 5% np0 0603","0603","180pf","50v",null,"5",null,"Keramik Kondensatoren",1000]
["DIGI-KEY","CL10C180JB8NNNC","CAP CER 18PF 50V C0G/NP0 0603","cl10c180jb8nnnc","cap cer 18pf 50v c0g/Np0 0603","0603","18pf","50v",null,"5",null,"Keramik Kondensatoren",1000]
["DIGI-KEY","CC0603MRX5R7BB225","CAP CER 2.2µF 16V X5R 0603","cc0603mrx5r7bb225","cap cer 2.2µf 16v x5r 0603","0603","2,2 µf","16v",null,"20",null,"Keramik Kondensatoren",1000]
["DIGI-KEY","C1608X5R0J226M","CAP CER 22µF 6.3V 20% X5R 0603","c1608x5r0j226m","cap cer 22µf 6.3v 20% x5r 0603","0603","22 µf","6,3v",null,"20",null,"Keramik Kondensatoren",15]
["DIGI-KEY","C0603C220J1GACTU","CAP CER 22PF 100V C0G/NP0 0603","c0603c220j1gactu","CAP CER 22PF 100V C0G/NP0 0603","0603","22pf","100v",null,"5",null,"Keramik Kondensatoren",1000]
["DIGI-KEY","CL10B332KB8NNNC","CAP CER 3300PF 50V X7R 0603","cl10b332kb8nnnc","cap cer 3300pf 50v x7r 0603","0603","3300pf","50v",null,"10",null,"Keramik Kondensatoren",1000]
["DIGI-KEY","C0603C331J5GACTU","CAP CER 330PF 50V C0G/NP0 0603","c0603c331j5gactu","cap cer 330pf 50v c0g/np0 0603","0603","330pf","50v",null,"5",null,"Keramik Kondensatoren",500]
["DIGI-KEY","CL10B392KB8NNNC","CAP CER 3900PF 50V X7R 0603","cl10b392kb8nnnc","CAP CER 3900PF 50V X7R 0603","0603","3900pf","50v",null,"10",null,"Keramik Kondensatoren",4000]
["DIGI-KEY","CGB3B1X5R1A475M055AC","CAP CER 4.7µF 10V 20% X5R 0603","cgb3b1x5r1a475m055ac","cap cer 4.7µf 10v 20% x5r 0603","0603","4,7µf","10v",null,"20",null,"Keramik Kondensatoren",90]
["DIGI-KEY","CL10B472KB8NNNC","CAP CER 4700PF 50V X7R 0603","cl10b472kb8nnnc","cap cer 4700pf 50v x7r 0603","0603","4700pf","50v",null,"10",null,"Keramik Kondensatoren","unbekannt"]
["DIGI-KEY","CL10C470JB8NNNC","CAP CER 47PF 50V NP0 0603","cl10c470jb8nnnc","cap cer 47pf 50v np0 0603","0603","47pf","50v",null,"5",null,"Keramik Kondensatoren",1000]
[null,"BKP1608HS121-T","FERRITE BEAD 120 OHM 0603 1LN","BKP1608HS121-T","FERRITE BEAD 120 Ohm 0603 1LN","0603","120 Ohm/100 MHz","2,7 A","35mOhm",null,null,"Ferrit",1000]
[null,"BLM18AG601SN1D","FERRITE BEAD 600 OHM 0603 1LN","BLM18AG601SN1D","FERRITE BEAD 600 Ohm 0603 1LN","0603","600 Ohm/100 mHz","500 mA"," 380 mOhm",null,null,"Ferrit",424]
["DIGI-KEY","LK1608120K-T","FIXED IND 12UH 0MA 1.8 OHM","lk1608120k-t","fixed ind 12uh 0ma 1.8 Ohm","0603","12uh","12ma","1,8Ohm","10",null,"Induktoren",85]
["DIGI-KEY","LTST-C190KGKT","LED GREEN CLEAR 0603 SMD","ltst-c190kgkt","led green clear 0603 smd","0603",null,null,null,null,null,"LED",250]
["DIGI-KEY","LTST-C190KRKT","LED RED CLEAR 0603 SMD","ltst-c190krkt","led red clear 0603 smd","0603",null,null,null,null,null,"LED","unbekannt"]
["DIGI-KEY","PRG18BC2R2MM1RB","PTC RESET FUSE 12V 220MA 0603","prg18bc2r2mm1rb","ptc reset fuse 12v 220ma 0603","0603",null,null,null,null,null,null,100]
["DIGI-KEY","ERJ-3EKF6491V","RES  6.49K OHM 1% 1/10W 0603 SMD","ERJ-3EKF6491V","RES  6.49K Ohm 1% 1/10W 0603 SMD","0603",null,null,"6,49kOhm",1,"1/10","Widerstand",1000]
["DIGI-KEY","ERJ-3EKF1101V","RES 1.1K OHM 1/10W 1% 0603 SMD","ERJ-3EKF1101V","RES 1.1K Ohm 1/10W 1% 0603 SMD","0603",null,null,"1kOhm",1,"1/10","Widerstand",1000]
["DIGI-KEY","RMCF0603FT1R50","RES 1.5 OHM 1/10W 0603","RMCF0603FT1R50","RES 1.5 Ohm 1/10W 0603","0603",null,null,"1,5 Ohm",1,"1/10","Widerstand",250]
[null,"RCO603FR-071K5L","RES 1.5K OHM 1% 1/10W 0603","RCO603FR-071K5L","RES 1.5K Ohm 1% 1/10W 0603","0603",null,null,"1,5k Ohm",1,"1/10 ","Widerstand",3000]
["DIGI-KEY","RC0603FR-071K5L","RES 1.5K OHM 1% 1/10W 0603","RC0603FR-071K5L","RES 1.5K OHM 1% 1/10W 0603","0603",null,null,"1,5 kohm",1,"1/10","Widerstand",900]
["Yageo","RC0603FR-071K5L","RES 1.5K OHM 1% 1/10W 0603","RC0603FR-071K5L","RES 1.5K OHM 1% 1/10W 0603","0603",null,null,"1,5kohm","1","1/10","Widerstand",5000]
[null,"RCO603FR-07100RL","RES 100 OHM 1% 1/10W 0603","RCO603FR-07100RL","RES 100 Ohm 1% 1/10W 0603","0603",null,null,"100 Ohm",1,"1/10","Widerstand",2250]
[null,"CAT4139TD-GT3","RES 100 OHM 1% 1/10W 0603","CAT4139TD-GT3","RES 100 Ohm 1% 1/10W 0603","0603",null,null,"100 Ohm",1,"1/10","Widerstand",23]
["DIGI-KEY","ERJ-3EKF1000V","RES 100 OHM 1/10W 1% 0603 SMD","ERJ-3EKF1000V","RES 100 Ohm 1/10W 1% 0603 SMD","0603",null,null,"100Ohm",1,"1/10","Widerstand",1000]
["DIGI-KEY","ESR03EZPJ101","RES 100 OHM 1/4W 5% 0603 SMD","ESR03EZPJ101","RES 100 Ohm 1/4W 5% 0603 SMD","0603",null,null,"100 Ohm",5,"1/4 ","Widerstand",250]
["DIGI-KEY","RMCF0603FT100K","RES 100K OHM 1% 1/10 W 0603","RMCF0603FT100K","RES 100K Ohm 1% 1/10 W 0603","0603",null,null,"100 kOhm",1,"1/10","Widerstand",1000]
["DIGI-KEY","ERJ-3EKF1200V","RES 120 OHM 1/10 W 1% 0603 SMD","ERJ-3EKF1200V","RES 120 Ohm 1/10 W 1% 0603 SMD","0603",null,null,"120Ohm",1,"1/10","Widerstand",1000]
["DIGI-KEY","RMCF0603JT15R0","RES 15 OHM  1% 1/10W 0603","RMCF0603JT15R0","RES 15 Ohm  1% 1/10W 0603","0603",null,null,"15Ohm",1,"1/10","Widerstand",1000]
["DIGI-KEY","ERJ-3EKF1692V","RES 16.9K OHM 1/10W 1% 0603 SMD","ERJ-3EKF1692V","RES 16.9K Ohm 1/10W 1% 0603 SMD","0603",null,null,"16,9kOhm",1,"1/10","Widerstand",1000]
["DIGI-KEY","ERJ-3EKF1802V","RES 18.0K OHM 1/10W 1% 0603 SMD","ERJ-3EKF1802V","RES 18.0K Ohm 1/10W 1% 0603 SMD","0603",null,null,"18kOhm",1,"1/10","Widerstand",100]
[null,"RC0603FR-072K2L","RES 2.2K OHM 1% 1/10W 0603","RC0603FR-072K2L","RES 2.2K Ohm 1% 1/10W 0603","0603",null,null,"2,2koHm",1,"1/10 ","Widerstand",3250]
["Yageo","RC0603FR-072K2L","RES 2.2K OHM 1% 1/10W 0603","RC0603FR-072K2L","RES 2.2K OHM 1% 1/10W 0603","0603",null,null,"2,2kohm","1","1/10","Widerstand",5000]
["DIGI-KEY","ERJ-3EKF2200V","RES 220 OHM 1/10W 1% 0603 SMD","ERJ-3EKF2200V","RES 220 Ohm 1/10W 1% 0603 SMD","0603",null,null,"220Ohm",1,"1/10","Widerstand",900]
["DIGI-KEY","MCR03ERTJ271","RES 270 OHM 1/10W 5% 0603 SMD","MCR03ERTJ271","RES 270 Ohm 1/10W 5% 0603 SMD","0603",null,null,"270Ohm",5,"1/10","Widerstand",5000]
["DIGI-KEY","RMCF0603FT4R70","RES 4.7 OHM 1/10W 1% 0603 ","RMCF0603FT4R70","RES 4.7 Ohm 1/10W 1% 0603 ","0603",null,null,"47Ohm",1,"1/10","Widerstand",1000]
["DIGI-KEY","ERJ-3EKF47R0V","RES 47.0 OHM 1/10W 1% 0603 SMD","ERJ-3EKF47R0V","RES 47.0 Ohm 1/10W 1% 0603 SMD","0603",null,null,"47Ohm",1,"1/10","Widerstand",1000]
["DIGI-KEY","RC0603FR-0747KL","RES 47K OHM 1% 1/10W 0603","RC0603FR-0747KL","RES 47K OHM 1% 1/10W 0603","0603",null,null,"47kohm","1","1/10","Widerstand",5000]
["DIGI-KEY","RC0603FR-0749R9L","RES 49.9 OHM 1% 1/10W 0603","RC0603FR-0749R9L","RES 49.9 Ohm 1% 1/10W 0603","0603",null,null,"49,9 Ohm",1,"1/10","Widerstand",490]
["DIGI-KEY","RC0603FR-0749R9L","RES 49.9 OHM 1% 1/10W 0603","RC0603FR-0749R9L","RES 49.9 Ohm 1% 1/10W 0603","0603",null,null,"49,9Ohm",1,"1/10","Widerstand",500]
["DIGI-KEY","ESR03EZPJ560","RES 56 OHNM 1/4W 5% 0603 SMD","esr03ezpj560","res 56 ohnm 1/4w 5% 0603 smd","0603",null,null,"56",5,"1/4 ","Widerstand",250]
["DIGI-KEY","ERJ-3EKF680V","RES 6.8K OHM 1/10W 1% 0603 SMD","ERJ-3EKF680V","RES 6.8K Ohm 1/10W 1% 0603 SMD","0603",null,null,"6,8 kOhm",1,"1/10","Widerstand",900]
["DIGI-KEY","ERJ-3EKF6042V","RES 60.4K OHM 1/10W 1% 0603 SMD","ERJ-3EKF6042V","RES 60.4K Ohm 1/10W 1% 0603 SMD","0603",null,null,"60,4kOhm",1,"1/10","Widerstand",900]
["DIGI-KEY","ESR03EZPJ680","RES 68 OHM 1/4 W 5% 0603 SMD","ESR03EZPJ680","RES 68 Ohm 1/4 W 5% 0603 SMD","0603",null,null,"68ohm",5,"1/4 ","Widerstand",250]
["DIGI-KEY","RC0603FR-7680RL","RES 680 OHM 1/10W 1% 0603 SMD","RC0603FR-7680RL","RES 680 Ohm 1/10W 1% 0603 SMD","0603",null,null,"680Ohm",1,"1/10","Widerstand",1000]
["DIGI-KEY","RMCF0603FTBR20","RES 8.2 OHM 1/10W 1% 0603 ","RMCF0603FTBR20","RES 8.2 Ohm 1/10W 1% 0603 ","0603",null,null,"8,2Ohm",1,"1/10","Widerstand",250]
["DIGI-KEY","RC0603FR-07820RL","RES 820 OHM 1/10W 1% 0603  SMD","RC0603FR-07820RL","RES 820 Ohm 1/10W 1% 0603  SMD","0603",null,null,"820Ohm",1,"1/10","Widerstand",1000]
["DIGI-KEY","MCR03ERTF1054","RES SMD 1.05M OHM 1% 1/10W 0603","MCR03ERTF1054","RES SMD 1.05M Ohm 1% 1/10W 0603","0603",null,null,"1,05mohm",1,"1/10","Widerstand",1000]
["DIGI-KEY","ERJ-3EKF1131V","RES SMD 1.13K OHM 1% 1/10W 0603","ERJ-3EKF1131V","RES SMD 1.13K Ohm 1% 1/10W 0603","0603",null,null,"1,13kOhm",0.1,"1/10","Widerstand",990]
["DIGI-KEY","RC0603FR-071K8L","RES SMD 1.8K OHM 1% 1/10W 0603","RC0603FR-071K8L","RES SMD 1.8K Ohm 1% 1/10W 0603","0603",null,null,"1,8kOhm",1,"1/10","Widerstand",817]
["DIGI-KEY","RC0603FR-0710RL","RES SMD 10 OHM 1% 1/10W 0603","RC0603FR-0710RL","RES SMD 10 Ohm 1% 1/10W 0603","0603",null,null,"10Ohm",1,"1/10","Widerstand",1000]
["DIGI-KEY","RC0603FR-0710RL","RES SMD 10 OHM 1% 1/4W 0603","RC0603FR-0710RL","RES SMD 10 Ohm 1% 1/4W 0603","0603",null,null,"10Ohm",1,"1/4 ","Widerstand",5000]
["DIGI-KEY","RC0603FR-07100RL","RES SMD 100 OHM 1% 1/10W 0603","RC0603FR-07100RL","RES SMD 100 Ohm 1% 1/10W 0603","0603",null,null,"100 Ohm",1,"1/10","Widerstand",1000]
["Yageo","RC0603FR-07100RL","RES SMD 100 OHM 1% 1/10W 0603","RC0603FR-07100RL","RES SMD 100 Ohm 1% 1/10W 0603","0603",null,null,"100 Ohm",1,"1/10","Widerstand",1000]
["DIGI-KEY","RC0603FR-07100KL","RES SMD 100K OHM 1% 1/10W ","RC0603FR-07100KL","RES SMD 100K Ohm 1% 1/10W ","0603",null,null,"100kOhm",1,"1/10","Widerstand",1000]
["DIGI-KEY","ERA-3AEB103V","RES SMD 10K OHM 0,1% 1/10W 0603","ERA-3AEB103V","RES SMD 10K Ohm 0,1% 1/10W 0603","0603",null,null,"10kOhm",0.1,"1/10","Widerstand",500]
["DIGI-KEY","RC0603FR-0710KL","RES SMD 10K OHM 1% 1/10W 0603","RC0603FR-0710KL","RES SMD 10K Ohm 1% 1/10W 0603","0603",null,null,"10kOhm",1,"1/10","Widerstand",1000]
["DIGI-KEY","ERJ.3EKF1152V","RES SMD 11.5K OHM 1% 1/10W 0603","ERJ.3EKF1152V","RES SMD 11.5k Ohm 1% 1/10W 0603","0603",null,null,"11,5kOhm",1,"1/10","Widerstand",1000]
["DIGI-KEY","RC0603FR-0712R1L","RES SMD 12.1 OHM 1%1/10W 0603","RC0603FR-0712R1L","RES SMD 12.1 Ohm 1%1/10W 0603","0603",null,null,"12,1Ohm",1,"1/10","Widerstand",990]
["DIGI-KEY","CRCW0603124KFEA","RES SMD 124K OHM 1% 1/10W 0603","CRCW0603124KFEA","RES SMD 124K Ohm 1% 1/10W 0603","0603",null,null,"124kOhm",1,"1/10","Widerstand",50]
["DIGI-KEY","CRCW0603127KFEA","RES SMD 124K OHM 1% 1/10W 0603","CRCW0603127KFEA","RES SMD 124K Ohm 1% 1/10W 0603","0603",null,null,"124kOhm",1,"1/10","Widerstand",50]
["DIGI-KEY","ERA-3AEB123V","RES SMD 12K OHM 0,1% 1/10W 0603","ERA-3AEB123V","RES SMD 12K Ohm 0,1% 1/10W 0603","0603",null,null,"12kOhm",0.1,"1/10","Widerstand",100]
["DIGI-KEY","RC0603FR-07130RL","RES SMD 130 OHM 1% 1/10W 0603","RC0603FR-07130RL","RES SMD 130 Ohm 1% 1/10W 0603","0603",null,null,"130Ohm",1,"1/10","Widerstand",1000]
["DIGI-KEY","CRCW0603130KFEA","RES SMD 130K OHM 1% 1/10W 0603","CRCW0603130KFEA","RES SMD 130K Ohm 1% 1/10W 0603","0603",null,null,"130kOhm",1,"1/10","Widerstand",50]
["DIGI-KEY","ERJ-3EKF1303X","RES SMD 130K OHM 1/10W 1% 0603 SMD","ERJ-3EKF1303X","RES SMD 130K Ohm 1/10W 1% 0603 SMD","0603",null,null,"130kOhm",1,"1/10","Widerstand",100]
["DIGI-KEY","CRCW0603133FKEA","RES SMD 133K OHM 1% 1/10W 0603","CRCW0603133FKEA","RES SMD 133K Ohm 1% 1/10W 0603","0603",null,null,"133kOhm",1,"1/10","Widerstand",50]
["DIGI-KEY","RT0603BRD0714K7L","RES SMD 14.7KOHM 0.1% 1/10W 0603","RT0603BRD0714K7L","RES SMD 14.7kOhm 0.1% 1/10W 0603","0603",null,null,"14,7kOhm",1,"1/10","Widerstand",250]
["DIGI-KEY","ERJ-3EKF1503V","RES SMD 150K OHM 1% 1/10W 0603","ERJ-3EKF1503V","RES SMD 150K Ohm 1% 1/10W 0603","0603",null,null,"150kOhm",1,"1/10","Widerstand",1000]
["DIGI-KEY","ERA-3AEB154V","RES SMD 150K OHM 1% 1/10W 0603","ERA-3AEB154V","RES SMD 150K Ohm 1% 1/10W 0603","0603",null,null,"150kOhm",1,"1/10","Widerstand",220]
["DIGI-KEY","RT0603BRD0715KL","RES SMD 150K OHM 1% 1/10W 0603","RT0603BRD0715KL","RES SMD 150K Ohm 1% 1/10W 0603","0603",null,null,"150kOhm",1,"1/10","Widerstand",250]
["DIGI-KEY","ERJ-3EKF1803V","RES SMD 180K OHM 1% 1/10W 0603","ERJ-3EKF1803V","RES SMD 180K Ohm 1% 1/10W 0603","0603",null,null,"180 kOhm",1,"1/10","Widerstand",1000]
["DIGI-KEY","RT0604BRD07180KL ","RES SMD 180K OHM 1% 1/10W 0603","RT0604BRD07180KL ","RES SMD 180K Ohm 1% 1/10W 0603","0603",null,null,"180kOhm",1,"1/10","Widerstand",250]
["DIGI-KEY","RC0603FR-071KL","RES SMD 1K OHM 1% 1/10W 0603","RC0603FR-071KL","RES SMD 1K Ohm 1% 1/10W 0603","0603",null,null,"1kOhm",1,"1/10","Widerstand",991]
["DIGI-KEY","ERJ-3EKF2201V","RES SMD 2.2K OHM 1% 1/10W 0603","ERJ-3EKF2201V","RES SMD 2.2K OHM 1% 1/10W 0603","0603",null,null,"2,2KOHM","1","1/10"]
["DIGI-KEY","MCR03ERTJ2R7","RES SMD 2.7 OHM 5% 1/10W 0603","MCR03ERTJ2R7","RES SMD 2.7 Ohm 5% 1/10W 0603","0603",null,null,"22,7 Ohm",5,"1/10","Widerstand",1000]
["DIGI-KEY","ERA-3EAB203V","RES SMD 20K  OHM 0.1% 1/10W 0603","ERA-3EAB203V","RES SMD 20K  Ohm 0.1% 1/10W 0603","0603",null,null,"20kOhm",1,"1/10","Widerstand",250]
["DIGI-KEY","RT0603RBRD07210KL","RES SMD 210K OHM 0.1% 1/10W 0603","RT0603RBRD07210KL","RES SMD 210K Ohm 0.1% 1/10W 0603","0603",null,null,"210 kOhm",1,"1/10","Widerstand",100]
["DIGI-KEY","ERA-3AEB2103V","RES SMD 210K OHM 0.1% 1/10W 0603","ERA-3AEB2103V","RES SMD 210K Ohm 0.1% 1/10W 0603","0603",null,null,"210kOhm",1,"1/10","Widerstand",100]
["DIGI-KEY","RC0603FR-07215KL","RES SMD 215K OHM 1% 1/10 W 0603","RC0603FR-07215KL","RES SMD 215K Ohm 1% 1/10 W 0603","0603",null,null,"215kOhm",1,"1/10","Widerstand",1000]
["DIGI-KEY","ERA-3AEB224V","RES SMD 220K OHM 0,1% 1/10 W 0603","ERA-3AEB224V","RES SMD 220K Ohm 0,1% 1/10 W 0603","0603",null,null,"220kOhm",1,"1/10","Widerstand",250]
["DIGI-KEY","RC1608F273CS","RES SMD 27K OHM 1% 1/10W 0603","RC1608F273CS","RES SMD 27K Ohm 1% 1/10W 0603","0603",null,null,"27kOhm",1,"1/10","Widerstand",3000]
["DIGI-KEY","ERJ-3EKF2001V","RES SMD 2K OHM 1% 1/10W 0603","ERJ-3EKF2001V","RES SMD 2K Ohm 1% 1/10W 0603","0603",null,null,"2kOhm",1,"1/10","Widerstand",1000]
["DIGI-KEY","ERJ-3EKF3301V","RES SMD 3.3K OHM 1% 1/10W 0603","ERJ-3EKF3301V","RES SMD 3.3K Ohm 1% 1/10W 0603","0603",null,null,"3kOhm",1,"1/10","Widerstand",1000]
["DIGI-KEY","RT0603RBRD0730KL","RES SMD 30K OHM 0,1% 1/10W 0603","RT0603RBRD0730KL","RES SMD 30K Ohm 0,1% 1/10W 0603","0603",null,null,"30kOhm",1,"1/10","Widerstand",230]
["DIGI-KEY","ERJ-3EKF1303X","RES SMD 30K OHM 1/10W 1% 0603 ","ERJ-3EKF1303X","RES SMD 30K Ohm 1/10W 1% 0603 ","0603",null,null,"30kOhm",1,"1/10","Widerstand",1000]
["DIGI-KEY","RC0603FR-07330RL","RES SMD 330 OHM 1% 1/10W 0603","RC0603FR-07330RL","RES SMD 330 Ohm 1% 1/10W 0603","0603",null,null,"330Ohm",1,"1/10","Widerstand",5000]
["DIGI-KEY","ERJ-3EKF4021V","RES SMD 4.02K OHM 1% 1/10W 0603","ERJ-3EKF4021V","RES SMD 4.02K Ohm 1% 1/10W 0603","0603",null,null,"4,02kOhm",1,"1/10","Widerstand",1000]
["DIGI-KEY","ERJ-3EKF4122V","RES SMD 41.2K OHM 1% 1/10W 0603","ERJ-3EKF4122V","RES SMD 41.2K Ohm 1% 1/10W 0603","0603",null,null,"41,2kOhm",1,"1/10","Widerstand",1000]
["DIGI-KEY","ERA-3AEB4642V","RES SMD 46.4K OHM 0,1% 1/10W 0603","ERA-3AEB4642V","RES SMD 46.4K Ohm 0,1% 1/10W 0603","0603",null,null,"46,4kOhm",1,"1/10","Widerstand",250]
["DIGI-KEY","ERJ-3EKF4642V","RES SMD 46.4K OHM 1% 1/10W 0603","ERJ-3EKF4642V","RES SMD 46.4K Ohm 1% 1/10W 0603","0603",null,null,"46,4kOhm",1,"1/10","Widerstand",1000]
["DIGI-KEY","RC0603FR-0747KL","RES SMD 47K OHM 1% 1/10 W 0603","RC0603FR-0747KL","RES SMD 47K Ohm 1% 1/10 W 0603","0603",null,null,"47kOhm",1,"1/10","Widerstand",1000]
["DIGI-KEY","ERA-3AEB5110V","RES SMD 511 OHM 0.1% 1/10W 0603","ERA-3AEB5110V","RES SMD 511 Ohm 0.1% 1/10W 0603","0603",null,null,"511 Ohm",0.1,"1/10","Widerstand",100]
["DIGI-KEY","ERJ-3EKF5903V","RES SMD 590K OHM 1% 1/10W 0603","ERJ-3EKF5903V","RES SMD 590K Ohm 1% 1/10W 0603","0603",null,null,"590kOhm",1,"1/10","Widerstand",1000]
["DIGI-KEY","ERJ-3EKF6042V","RES SMD 60.4K OHM 1% 1/10W 0603","ERJ-3EKF6042V","RES SMD 60.4K Ohm 1% 1/10W 0603","0603",null,null,"60,4 kOhm",1,"1/10","Widerstand",1000]
["DIGI-KEY","CR0603-FX-68R0ELF","RES SMD 68 OHM 1% 1/10W 0603","CR0603-FX-68R0ELF","RES SMD 68 Ohm 1% 1/10W 0603","0603",null,null,"68Ohm",1,"1/10","Widerstand",1000]
["DIGI-KEY","RC0603JR-0775RL","RES SMD 75 OHM 5% 1/10 W 0603","RC0603JR-0775RL","RES SMD 75 Ohm 5% 1/10 W 0603","0603",null,null,"75Ohm",5,"1/10","Widerstand",1000]
["DIGI-KEY","RC0603FR-078K2L","RES SMD 8.2K OHM 1% 1/10W 0603","RC0603FR-078K2L","RES SMD 8.2K Ohm 1% 1/10W 0603","0603",null,null,"8,2kOhm",1,"1/10","Widerstand",1000]
["DIGI-KEY","CRW060338R66FKEA","RES SMD 8.66 OHM 1% 1/10W 0603","crw060338r66fkea","res smd 8.66 Ohm 1% 1/10w 0603","0603",null,null,"8,66 Ohm",1,"1/10","Widerstand",50]
["DIGI-KEY","RC0603FR-0782RL82","RES SMD 82 OHM 1% 1/10W 0603","RC0603FR-0782RL82","RES SMD 82 Ohm 1% 1/10W 0603","0603",null,null,"82  Ohm",1,"1/10","Widerstand",1000]
["DIGI-KEY","ERJ-3EKF8453V","RES SMD 845K OHM 1% 1/10W 0603","ERJ-3EKF8453V","RES SMD 845K Ohm 1% 1/10W 0603","0603",null,null,"845 kOhm",1,"1/10","Widerstand",993]
["DIGI-KEY","ERA-3AEB9092V","RES SMD 90.9K OHM 0,1% 1/10W 0603","ERA-3AEB9092V","RES SMD 90.9K Ohm 0,1% 1/10W 0603","0603",null,null,"90,9kOhm",1,"1/10","Widerstand",500]

{"sheet":"0805","index":2,"n_rows":51,"n_cols":13,"rows_kept":51,"cut":false,"hidden":false,"merged":[]}
[null,"","","",""]
["DIGI-KEY","TEMT6200FX01","AMBIENT LIGTH SENSOR 0805 SMD","temt6200fx01","ambient ligth sensor 0805 smd","0805",null,null,null,null,null,"Sensoren",150]
[null,"ARTIKELNUMMER","BAUTEIL","Artikelnummer","bauteil","Baugrösse","Kapazität/Induktivität/Impedanz ","Spannung/Nennstrom","Widerstand/Ohm","Toleranz in %","Leistung W","baugruppe","Anzahl"]
["DIGI-KEY","CL21B473KBC5PNC","CAP CER 0.047µF 50V X7R 0805","CL21B473KBC5PNC","cap cer 0.047µf 50v x7r 0805","0805","0,047µf","50v",null,"10",null,"Keramik Kondensatoren",1000]
["DIGI-KEY","CL21B473KBCWPNC","CAP CER 0.047UF 50V X7R 0805","cl21b473KBCwPNC","CAP CER 0.047UF 50V X7R 0805","0805","0,047uf","50v",null,"10",null,"Keramik Kondensatoren",500]
["DIGI-KEY","EMK212B7474KD-T","CAP CER 0.47µF 16V 10% X7R 0805","emk212b7474kd-t","cap cer 0.47µf 16v 10% x7r 0805","0805","0,47µf","16v",null,"10",null,"Keramik Kondensatoren",100]
["DIGI-KEY","CL21B474KAFNNNE","CAP CER 0.47µF 25V X7R 0805","cl21b474kafnnne","cap cer 0.47µf 25v x7r 0805","0805","0,47µf","25v",null,"10",null,"Keramik Kondensatoren",1000]
["DIGI-KEY","GRM21BR61C106KE15K","CAP CER 10µF 16V X5R 0805","grm21br61c106ke15k","CAP CER 10µf 16V X5R 0805","0805","10 µf","16v",null,"10",null,"Keramik Kondensatoren",980]
["DIGI-KEY","CL21B103KBANNNC","CAP CER 10000PF 50V X7R 0805","cl21b103kbannnc","cap cer 10000pf 50v x7r 0805","0805","10000pf","50v",null,"10",null,"Keramik Kondensatoren",3990]
["DIGI-KEY","CC0805KRX7R9BB102","CAP CER 1000PF 50V X7R 0805","cc0805krx7r9bb102","cap cer 1000pf 50v x7r 0805","0805","1000pf","50v",null,"10",null,"Keramik Kondensatoren",1000]
["DIGI-KEY","CL21C120JCANNNC","CAP CER 100PF 100V 5% N0P 0805","cl21c120jcannnc","cap cer 100pf 100v 5% n0p 0805","0805","100pf","100 v",null,"5",null,"Keramik Kondensatoren",1000]
["DIGI-KEY","C2012Y5V1A106Z","CAP CER 10UF 10V Y5V 0805","c2012y5v1a106z","CAP CER 10UF 10V Y5V 0805","0805","10uf","10v",null,"-20+80",null,"Keramik Kondensatoren",80]
["DIGI-KEY","CL21C120JBANNNC","CAP CER 12PF 50V NP0 0805","cl21c120jbannnc","cap cer 12pf 50v np0 0805","0805","12pf","50v",null,"5",null,"Keramik Kondensatoren",100]
["DIGI-KEY","CL21A226MOCLRNC","CAP CER 22µF 16V X5R 0805","cl21a226moclrnc","cap cer 22µf 16v x5r 0805","0805","22µf","16v",null,"20",null,"Keramik Kondensatoren",250]
["DIGI-KEY","CL21C220JBANNNC","CAP CER 22PF 50V C0G/NP0 0805","cl21c220jbannnc","cap cer 22pf 50v c0G/np0 0805","0805","22pf","50v",null,"5",null,"Keramik Kondensatoren",500]
["DIGI-KEY","CL21C220JBANNNC5","CAP CER 22PF 50V C0G/NP0 0805","cl21c220jbannnc5","cap cer 22pf 50v c0G/np0 0805","0805","22pf","50v",null,"5",null,"Keramik Kondensatoren",1000]
["DIGI-KEY","CL21A226MQQNNNE","CAP CER 22UF 6.3V X5R 0805","cl21a226mqqnnne","CAP CER 22UF 6.3V X5R 0805","0805","22 uf","6,3v",null,"20",null,"Keramik Kondensatoren","ca 1700"]
["DIGI-KEY","CL21A226MQQNNNG","CAP CER 22UF 6.3V X5R 0805","CL21a226mqqnnng","CAP CER 22UF 6.3V X5R 0805","0805","22uf","6,3v",null,"20",null,"Keramik Kondensatoren",250]
["DIGI-KEY","CL21C330JBANNNC","CAP CER 33PF 50V NP0 0805","cl21c330jbannnc","cap cer 33pf 50v np0 0805","0805","33pf","50v",null,"5",null,"Keramik Kondensatoren",100]
["DIGI-KEY","CL21C390JBANNNC","CAP CER 39PF 50V NP0 0805","cl21c390jbannnc","cap cer 39pf 50v np0 0805","0805","39pf","50v",null,"5",null,"Keramik Kondensatoren",100]
["DIGI-KEY","CL21A475KAQNNNG","CAP CER 4.7µF 25V X5R 0805","cl21a475kaqnnng","cap cer 4.7µf 25v x5r 0805","0805","4,7µf","25v",null,"10",null,"Keramik Kondensatoren",250]
["DIGI-KEY","CL21A475KBQNNNE","CAP CER 4.7µF 50V X5R 0805","cl21a475kbqnnne","cap cer 4.7µf 50v x5r 0805","0805","4,7µf","50v",null,"10",null,"Keramik Kondensatoren",1000]
["DIGI-KEY","CL21C560JBANNNC","CAP CER 56PF 50V C0G/NP0 0805","cl21c560jbannnc","CAP CER 56PF 50V C0G/NP0 0805","0805","56pf","50v",null,"5",null,"Keramik Kondensatoren",5]
["DIGI-KEY","NFM21PC104R1E3D","CAP FEEDTHRU 0.1µF 20% 25V 0805","nfm21pc104r1e3d","cap feedthru 0.1µf 20% 25v 0805","0805","0,1µf","25v",null,"20",null,"Durchführungskondensatoren",1000]
["DIGI-KEY","DLW21HN900SQ2L","CHOKE COMMON MODE 90 OHM 0805","dlw21hn900sq2l","choke common mode 90 Ohm 0805","0805",null,null,null,null,null,null,50]
["DIGI-KEY","CRGCQ0805F2K7","CRGCQ 0805 2K7 1%","CRGCQ0805F2K7","CRGCQ 0805 2K7 1%","0805",null,null,"2,7 kOhm",1,"1/8","Chipwiderstand",1000]
[null,"MU2029-301Y","FERRITE BEAD 300 OHM 0805 1LN","MU2029-301Y","FERRITE BEAD 300 Ohm 0805 1LN","0805","300Ohm/100MHz","500mA","300mOhm",null,null,"Ferrit",487]
["DIGI-KEY","MLZ2012N100LT000","FIXED IND 10UH 500 MA 300 MOHM","MLZ2012N100LT000","Fixed IND 10UH 500 MA 300 mOhm","0805","10 µH","500 mA","300 mOhm","20",null,"Induktoren",950]
["DIGI-KEY","BRL2012T470M","FIXED IND 47UH 160MA 4.55 OHM","BRL2012T470M","FIXED IND 47UH 160MA 4.55 Ohm","0805","47 µH","160 mA","4.55 Ohm","20",null,"Induktoren",129]
["DIGI-KEY","BRL2012T470M","FIXED IND 47UH 160MA 4.55 OHM","BRL2012T470M","FIXED IND 47UH 160MA 4.55 Ohm","0805","47 µH","160 mA","4.55 Ohm","20",null,"Induktoren",43]
["DIGI-KEY","BRL2012T470M","FIXED IND 47UH 160MA 4.55 OHM","BRL2012T470M","FIXED IND 47UH 160MA 4.55 Ohm","0805","47 µH","160 mA","4.55 Ohm","20",null,"Induktoren",73]
["DIGI-KEY","ERJ-6GEYJ100V","RES 10 OHM 1/8W 5% 0805 SMD","ERJ-6GEYJ100V","RES 10 Ohm 1/8W 5% 0805 SMD","0805",null,null,"10Ohm",5,"1/8","Widerstand",250]
["DIGI-KEY","RC0805FR-07100RL","RES 100 OHM 1% 1/8W 0805","RC0805FR-07100RL","RES 100 OHM 1% 1/8W 0805","0805",null,null,"100Ohm",1,"1/10","Widerstand",1000]
["DIGI-KEY","ERJ-6ENF1000V","RES 100 OHM 1/8W 1% 0805 SMD","ERJ-6ENF1000V","RES 100 Ohm 1/8W 1% 0805 SMD","0805",null,null,"100 Ohm",1,"1/8 W","Widerstand",1000]
["DIGI-KEY","RC0805FR-0710KL","RES 10K OHM 1% 1/8W 0805","RC0805FR-0710KL","RES 10K OHM 1% 1/8W 0805","0805",null,null,"10 ohm","1","1/8","Widerstand","ca 1000"]
["DIGI-KEY","ERJ-6ENF15R0V","RES 15 OHM 1% 1/8W 0805 SMD","ERJ-6ENF15R0V","RES 15 Ohm 1% 1/8W 0805 SMD","0805",null,null,"15Ohm",1,"1/8","Widerstand",1000]
["DIGI-KEY","RC0805FR-074K7L","RES 4.7K OHM 1% 1/8W 0805","rc0805fr-074k7l","RES 4.7K OHM 1% 1/8W 0805","0805",null,null,"4,7kohm","1","1/8","Widerstand",5000]
["DIGI-KEY","ERJ-6GEYJ470V","RES 47 OHM 1/8W 5% 0805 SMD","ERJ-6GEYJ470V","RES 47 Ohm 1/8W 5% 0805 SMD","0805",null,null,"47Ohm",5,"1/8","Widerstand",200]
[null,"RC0805FR-07470RL","RES 470 OHM 1% 1/8W 0805","RC0805FR-07470RL","RES 470 Ohm 1% 1/8W 0805","0805",null,null,"470 Ohm",1,"1/8","Widerstand",2000]
["Yageo","RC0805FR-07470RL","RES 470 OHM 1% 1/8W 0805","RC0805FR-07470Rl","RES 470 OHM 1% 1/8W 0805","0805",null,null,"470ohm","1","1/8","Widerstand",5000]
["DIGI-KEY","ERJ-6ENF4700V","RES 470 OHM 1/8 W 1% 0805 SMD","ERJ-6ENf4700V","RES 470 Ohm 1/8 W 1% 0805 SMD","0805",null,null,"47Ohm",1,"1/8","Widerstand",800]
["DIGI-KEY","RC0805FR-076K8L","RES 6.8K OHM 1% 1/8W 0805","RC0805FR-076k8l","RES 6.8K OHM 1% 1/8W 0805","0805",null,null,"6,8kohm","1","1/10","Widerstand",5000]
["DIGI-KEY","RMCF0805FT6K80","RES 6.8K OHM 1/8W 1% 0805 SMD","RMCF0805FT6K80","RES 6.8K Ohm 1/8W 1% 0805 SMD","0805",null,null,"6,8kOhm",1,"1/8","Widerstand",1000]
["DIGI-KEY","RC0805FR-071KL","RES SMD 1K OHM 1% 1/8W 0805","RC0805FR-071KL","RES SMD 1K Ohm 1% 1/8W 0805","0805",null,null,"1kOhm",1,"1/8","Widerstand",1000]
["DIGI-KEY","RC0805FR-072K7L","RES SMD 2.7 KOHM 1% 1/8W 0805","RC0805FR-072K7L","RES SMD 2.7 kOhm 1% 1/8W 0805","0805",null,null,"2,7kOhm",1,"1/8","Widerstand",1000]
["DIGI-KEY","RC0805FR-074R42L","RES SMD 4.42 OHM 1% 1/8W 0805","RC0805FR-074R42L","RES SMD 4.42 Ohm 1% 1/8W 0805","0805",null,null,"4,42Ohm",1,"1/8","Widerstand",1000]
["DIGI-KEY","RPC0805JT4AR70","RES SMD 4.7 OHM 5% 1/4W 0805","RPC0805JT4AR70","RES SMD 4.7 Ohm 5% 1/4W 0805","0805",null,null,"4,7 Ohm",5,"1/4 ","Widerstand",293]
["DIGI-KEY","ERA-6AEB5763V","RES SMD 576K OHM 0,1% 1/8W 0805","ERA-6AEB5763V","RES SMD 576K Ohm 0,1% 1/8W 0805","0805",null,null,"576kOhm",1,"1/8","Widerstand",100]
["DIGI-KEY","ERJ-6ENF68R1V","RES SMD 68.1 OHM 1% 1/8W 0805","ERJ-6ENF68R1V","RES SMD 68.1 Ohm 1% 1/8W 0805","0805",null,null,"68,1Ohm",1,"1/8","Widerstand",100]
["DIGI-KEY","ERJ-6ENF68R1V","RES SMD 68.1 OHM 1% 1/8W 0805","ERJ-6ENF68R1V","RES SMD 68.1 Ohm 1% 1/8W 0805","0805",null,null,"68,1Ohm",1,"1/8","Widerstand",895]
["DIGI-KEY","ERJ-6ENF68R1V","RES SMD 68.1 OHM 1% 1/8W 0805","ERJ-6ENF68R1V","RES SMD 68.1 Ohm 1% 1/8W 0805","0805",null,null,"68,1Ohm",1,"1/8","Widerstand",647]

{"sheet":"Dioden, TVS Dioden","index":3,"n_rows":45,"n_cols":14,"rows_kept":45,"cut":false,"hidden":false,"merged":[]}
[null,"","","",""]
[null,"ARTIKELNUMMER","BAUTEIL","Artikelnummer","bauteil","Baugrösse","Kapazität/Induktivität/Impedanz ","Spannung/Nennstrom","Widerstand/Ohm","Toleranz in %","Leistung W","baugruppe","Anzahl"]
["DIGI-KEY","CGRM4007-G","DIODE GEN PURP 1KV 1A MINISMA","cgrm4007-g","diode gen purp 1kv 1a minisma","SOD-123T",null,"1000 V",null,null,null,"Standard Dioden",99]
["DIGI-KEY","BAS70-04-E3-08","DIODE ARRAY SCHOTTKY 70V SOT23","Bas70-04-e3-08","DIODE ARR SCHOTT 70V 200MA SOT23","SOT-23-3",null,"70v",null,null,null,"Schottky Array Dioden",180]
["DIGI-KEY","MBRD650CTG","DIODE ARRAY SCHOTTKY 50V 3A DPAK","mbrd650ctg","diode array schottky 50v 3a dpak","DPAK",null,"50v",null,null,null,"Schottky Array Dioden",25]
["DIGI-KEY","BAT43WS-HE3-08","DIODE SCHOTTKEY 30V 200MA SOD323","bat43ws-he3-08","diode schottkey 30v 200ma sod323","SOD-323",null,"30v",null,null,null,"Schottky Dioden",25]
["DIGI-KEY","PMEG3030EP.115","DIODE SCHOTTKEY30V 3A SOD128","pmeg3030ep.115","diode schottkey30v 3a sod128","SOD-128",null,"30 v",null,null,null,"Schottky Dioden",5]
["DIGI-KEY","SBAS70-04LT1G","DIODE SCHOTTKY 70V DUAL SOT23","sbas70-04lt1g","diode schottky 70v dual sot23","SOT23",null,"70 v",null,null,null,"Schottky Dioden",100]
["DIGI-KEY","MBR0540T3G","DIODE SCHOTTKY 40V 500MASOD123","mbr0540t3g","diode schottky 40v 500masod123","SOD-123",null,"40 v",null,null,null,"Schottky Dioden",1000]
["DIGI-KEY","1N5819HW-7-F","DIODE SCHOTTKY 40V 1A SOD123","1n5819hw-7-f","diode schottky 40v 1a sod123","SOD-123",null,"40v",null,null,null,"Schottky Dioden",20]
["DIGI-KEY","BAT760.115","DIODE SCHOTTKY 20V 1A SOD323","bat760.115","diode schottky 20v 1a sod323","SOD-323",null,"20 v",null,null,null,"Schottky Dioden",120]
["DIGI-KEY","RB161M-20TR","DIODE SCHOTTKY 20V 1A PMDU","rb161m-20tr","diode schottky 20v 1a pmdu","PMDU",null,"20 v",null,null,null,"Schottky Dioden",3000]
["DIGI-KEY","SMF4L12A","TVS DIODE 12V 19.9V SOD123FL","smf4l12a","tvs diode 12v 19.9v sod123fl","SOD-123FL",null,"12 v",null,null,null,"TVS Dioden",1000]
["DIGI-KEY","TVS3V3L4UE6327HTSA1","TVS DIODE 3.3VWM 7.7VC SC74","tvs3v3l4ue6327htsa1","tvs diode 3.3vwm 7.7vc sc74","PG-SC74-6",null,"3,3 vwm",null,null,null,"TVS Dioden",85]
["DIGI-KEY","SP3304MNUTG","TVS DIODE 3.3VWM 11.5VC UDFN10","sp3304mnutg","tvs diode 3.3vwm 11.5vc udfn10","10-UFDFN",null,"3,3 vwm",null,null,null,"TVS Dioden",20]
["DIGI-KEY","SMBJ12CA-TR","TVS DIODE 12VWM 25.3 VC DO214AA","smbj12ca-tr","tvs diode 12vwm 25.3 vc do214aa","DO-214AA, SMB",null,"12 vwm",null,null,null,"TVS Dioden",50,"SMBJ12CA-TR"]
["DIGI-KEY","ATV02W120-HF","TVS DIODE 12VWM 19.9VC SOD-123","atv02w120-hf","tvs diode 12vwm 19.9vc sod-123","SOD-123",null,"12 vwm",null,null,null,"TVS Dioden",4]
["DIGI-KEY","SMBJ12CA-13-F","TVS DIODE 12V 19.9V SMB","smbj12ca-13-f","TVS DIODE 12v 19.9v smb","DO-214AA, SMB",null,"12 v",null,null,null,"TVS Dioden",100]
["DIGI-KEY","ATV02W120-HF","TVS DIODE 12VWM 19.9VC SOD-123","atv02w120-hf","tvs diode 12vwm 19.9vc sod-123","SOD-123",null,"12 vwm",null,null,null,"TVS Dioden",100]
["DIGI-KEY","ATV02W120-HF","TVS DIODE 12VWM 1.9VC SOD-123","atv02w120-hf","tvs diode 12vwm 1.9vc sod-123","SOD-123",null,"12 vwm",null,null,null,"TVS Dioden",70]
["DIGI-KEY","CDSOD323-T12SC","TVS DIODE 12VWM 29.5VC SOD323","cdsod323-t12sc","tvs diode 12vwm 29.5vc sod323","SOD-323",null,"12 vwm",null,null,null,"TVS Dioden",200]
["DIGI-KEY","SP3003-02JTG","TVS DIODE 6VWM 15VC SC70-5","sp3003-02jtg","tvs diode 6vwm 15vc sc70-5","5-TSSOP, SC-70-5, SOT-353",null,"15 vc",null,null,null,"TVS Dioden",100]
["DIGI-KEY","SP3011-06UTG","TVS DIODE 6V 12.5V 14UDFN","sp3011-06utg","tvs diode 6v 12.5v 14udfn","14-UFDFN",null,"12,5 v",null,null,null,"TVS Dioden",25]
["DIGI-KEY","SMDJ5.0CA","TVS DIODE 5VWM 9.2VC SMD","smdj5.0a","tvs diode 5vwm 9.2vc smd","DO-214 AB",null,"5 vwm",null,null,null,"TVS Dioden",13]
["DIGI-KEY","SMDJ5.0A","TVS DIODE 5VWM 9.2VC SMD","smdj5.0a","tvs diode 5vwm 9.2vc smd","DO-214 AB",null,"5 Vwm",null,null,null,"TVS Dioden",25]
["DIGI-KEY","SMBJ20CA-13-F","TVS DIODE 20VWM 32.4VC SMB","smbj20ca-13-f","tvs diode 20vwm 32.4vc smb","DO-214AA, SMB",null,"20 vwm",null,null,null,"TVS Dioden",484]
["DIGI-KEY","SMBJ36CA","TVS DIODE 36VWM 58.1VC SMB","smbj36ca","tvs diode 36vwm 58.1vc smb","DO-214AA, SMB",null,"36 vwm",null,null,null,"TVS Dioden",500]
["DIGI-KEY","ATV02W120B-HF","TVS DIODE 12V 19.9V SOD123","atv02w120b-hf","tvs diode 12v 19.9v sod123F","SOD-123F",null,"12v",null,null,null,"TVS Dioden",100]
["DIGI-KEY","SMF4L12A","TVS DIODE 12VWM 19.9VC SOD123FL","smf4l12a","tvs diode 12vwm 19.9vc sod123fl","SOD-123FL",null,"12vwm",null,null,null,"TVS Dioden",49]
["DIGI-KEY","SMBJ13CA","TVS DIODE 13V 21.5V DO214AA","smbj13ca","tvs diode 13v 21.5v do214aa","DO-214AA",null,"13v",null,null,null,"TVS Dioden",10]
["DIGI-KEY","SM15T220A","TVS DIODE 188VWM 388VC SMC","sm15t220a","tvs diode 188vwm 388vc smc","DO-214AB, SMC",null,"188v",null,null,null,"TVS Dioden",250]
["DIGI-KEY","1.5SMC440A","TVS DIODE 376VWM 602V DO214AB","1.5smc440a","tvs diode 376vwm 602v do214ab","DO-214AB, SMC",null,"376 v",null,null,null,"TVS Dioden",100]
["DIGI-KEY","PTVS3V3S1UR","TVS DIODE 3.3VWM 8VC SOD123W","PTVS3V3S1UR","TVS DIODE 3.3VWM 8VC SOD123W","SOD-123-W",null,"3,3 Vwm",null,null,null,"TVS Dioden",3000]
["DIGI-KEY","SM15T220A-E3/57T","TVS DIODE 188VWM 328VC DO214AB","SM15T220A-E3/57T","TVS DIODE 188VWM 328VC DO214AB","DO-214AB. SMC",null,"188 vwm",null,null,null,"TVS Dioden zener",500]
["Mouser","771-BZV55-C5V6,115","1,3W 5.6V NEXPERIA ZENER DIODEN","BZV55-C5V6,115","1,3W 5.6V Nexperia Zener Dioden","DO-213AC, MINI-MELF, SOD-80",null,"5,6 v",null,null,null,"Zener Dioden",200]
["DIGI-KEY","BZV55-C12.115","DIODE ZENER 12V 500MW SOD80C","bzv55-c12,115","diode zener 12v 500mw sod80c","DO-213AC, MINI-MELF, SOD-81",null,"12v",null,null,null,"Zener Dioden",55]
["DIGI-KEY","MMSZ5253BT1G","DIODE ZENER 25V 500MW SOD123","mmsz5253bt1g","diode zener 25v 500mw sod123","SOD-123",null,"25 v",null,null,null,"Zener Dioden",450]
["DIGI-KEY","ISMB5915BT3G","DIODE ZENER 3.9V 3W SMB","1smb5915bt3g","diode zener 3.9v 3w smb","DO-214AA, SMB",null,"3,9v",null,null,null,"Zener Dioden",49]
["DIGI-KEY","BZX79-C10.143","DIODE ZENER 10V 400MW ALF2","bzx79-c10.143","diode zener 10v 400mw alf2","ALF-2",null,"10 v",null,null,null,"Zener Dioden",25]
["DIGI-KEY","NZX20C.133","DIODE ZENER 20V 500MW ALF2","nzx20c.133","diode zener 20v 500mw alf2","ALF-3",null,"20 v",null,null,null,"Zener Dioden",25]
["DIGI-KEY","CGRM4007-G","DIODE GEN PURP 1KV 1A MINISMA","cgrm4007-g","diode gen purp 1kv 1a minisma","SOD-123T",null,"1000 v",null,null,null,"Einzeldioden",10000]
["DIGI-KEY","MURS320T3G","DIODE GEN PURP 200V 3A SMC","murs320t3g","diode gen purp 200v 3a smc","DO-214B, SMC",null,"200 v",null,null,null,"Einzeldioden",21]
["DIGI-KEY","SD12T1G","TVS DIODE 12VWM 19VC SOD323","sd12t1g","TVs diode 12vwm 19vc sod323","SOD-323",null,"12 vwm",null,null,null,"TVS Dioden",500]
["DIGI-KEY","1N5820-TP","DIODE SCHTTKY 20V 3A DO201AD","1n5820-tp","diode schttky 20v 3a do201ad","DO-201AD, Axial",null,"20 v",null,null,null,"Schottky Dioden",10]
[null,null,null,"RB751V40T1G"]

{"sheet":"Mosfets","index":4,"n_rows":15,"n_cols":13,"rows_kept":15,"cut":false,"hidden":false,"merged":[]}
[null,"","","",""]
[null,"ARTIKELNUMMER","BAUTEIL","Artikelnummer","bauteil","Baugrösse","Kapazität/Induktivität/Impedanz ","Spannung/Nennstrom","Widerstand/Ohm","Toleranz in %","Leistung W","baugruppe","Anzahl"]
["Mouser","863-MCH3481-TL-W","NCH 1.2V POWER MOSFE ON SEMI MOSFE","863-MCH3481-TL-W","NCH 1.2V Power MOSFE ON Semi Mosfe","MCPH3",null,null,null,null,null,"Mosfet Transistor",195]
["DIGI-KEY","FCH023N65S3_F155","SUPERFET3 650V 23 MOHM","fch023n65s3_f155","superfet3 650v 23 mOhm","TO-247",null,null,null,null,null,"Mosfet Transistor",8]
["DIGI-KEY","FDT434P","MOSFET P.CH 20V 6A SOT-223","fdt434p","mosfet p.ch 20v 6a sot-223","SOT-223",null,null,null,null,null,"Mosfet Transistor",25]
["DIGI-KEY","IDP50R380CEATMA1","MOSFET N CH 500V 9.9A PG-TO252","idp50r380ceatma1","mosfet n ch 500v 9.9a pg-to252","PG-TO-252",null,null,null,null,null,"Mosfet Transistor",18]
["DIGI-KEY","IRL6283MTRPBF","MOSFET N-CH 20V 211A DIRECTFET","irl6283mtrpbf","mosfet n-ch 20v 211a directfet",null,null,null,null,null,null,"Mosfet Transistor",6]
["DIGI-KEY","IRLML6402TRPBF","MOSFET P-CH 20V 3.7A SOT-23","irlml6402trpbf","mosfet p-ch 20v 3.7a sot-23","SOT 23",null,null,null,null,null,"Mosfet Transistor",500]
["DIGI-KEY","IXTH110N25T","MOSFET N-CH 250V 110A TO-247","ixth110n25t","mosfet n-ch 250v 110a to-247","TO-247",null,null,null,null,null,"Mosfet Transistor",4]
["DIGI-KEY","MCH3481-TL-W","MOSFET N-CH 20V 2A MCPH3","mch3481-tl-w","mosfet n-ch 20v 2a mcph3","MCPH3",null,null,null,null,null,"Mosfet Transistor",100]
["DIGI-KEY","MIC94052YC6-TR","MOSFET P-CH 6V 2A SC70-6","mic94052yc6-tr","MOSFET P-CH 6V 2A sc70-6",null,null,null,null,null,null,"Mosfet Transistor",90]
["DIGI-KEY","SI3440DV-T1-GE3","MOSFETN-CH 150V 1.2A 6-TSOP","si3440dv-t1-ge3","mosfetn-ch 150v 1.2a 6-tsop",null,null,null,null,null,null,"Mosfet Transistor",25]
["DIGI-KEY","STD12N50M2","MOSFET N-CH 500V 10A DPAK","std12n50m2","mosfet n-ch 500v 10a dpak","DPAK",null,null,null,null,null,"Mosfet Transistor",10]
["DIGI-KEY","STD9N40M2","MOSFET N-CH 400V 6A DPAK","std9n40m2","mosfet n-ch 400v 6a dpak","DPAK",null,null,null,null,null,"Mosfet Transistor",10]
["DIGI-KEY","SUM110P04-05-E3","MOSFET P-CH 40V 110A D2PAK","sum110p04-05-e3","mosfet p-ch 40v 110a d2pak",null,null,null,null,null,null,"Mosfet Transistor",5]

{"sheet":"POE Standard Teile","index":5,"n_rows":20,"n_cols":9,"rows_kept":20,"cut":false,"hidden":false,"merged":[]}
[]
["Händler/Hersteller","Artikelnummer","Bezeichnung","Baugruppe","Baugrösse",null,null,null,"Stückzahl"]
[null,"MBRD650CT ",null,null,null,"50v","3A ","gepolt",1576]
[null,"LTC4267CGN#PBF",null,null,null,null,null,null,325]
[null,"VO615A-4X017T",null,null,null,null,"60ma",null,1000]
["DIGI KEY","KDV08FR100ET","RES 0.1 OHM 1% 1/4W 0805","Widerstand","0805",null,null,null,792]
["Mouser/Yageo","CC1808KKX7RDBB22","Kondensator aus mehreren Keramikschichten","Keramik Kondensator","1808",null,null,null,500]
["Mouser/Kyocera AVX","KAM21KR72A105KU","Kondensator aus mehreren Keramikschichten","Keramik Kondensator","0805",null,null,null,15]
["Mouser/Littlefuse","SMAJ58A","TVS Dioden","TVS Dioden",null,"58v","400W","Uni_Dire",24]
["Mouser/TDK","MLZ2012N3R3LT000","Leistungsinduktivitäten","Leistungsinduktivitäten","0805","3,3 µH",null,null,22]
["DIGI KEY","RC0603FR-0754K9L","RES 54.9K OHM 1% 1/10W 0603","Widerstand","0603",null,null,null,5000]
["DIGI KEY",749119133,"XFMR POE DC/DC CONV 400UH SMD","POE /DC/CDC Wandler",null,null,null,null,60]
["Mouser /Hirose","MDF7-5S-2.54DSA(55)","Platine zu Platine und Mezzanine Steckverbin",null,null,null,null,null,"ca. 200"]
["Mouser/Vishay","293D475X0025C2TE3","Tantalkondensatoren fest für SMD","Tantalkondensatoren",null,"4,7µH","25 v ",null,6]
["Mouser/Yageo","AC0603JRNPOYBN150","Kondensator aus mehreren Keramikschichten","Keramik Kondensator","0603","15pf","250v",null,1000]
["DIGI KEY","ESR03EZPJ680","RES 68 OHM 5% 1/4W 0603"," Widerstand","0603","68 Ohm","1/4W",null,5000]
["DIGI KEY","IN4148WS-7-F","DIODE STANDARD 75V 150MA SOD323","Diode","SOD323","150mS","75v",null,3000]
["DIGI KEY","T495D337M010ATE125","CAP TANT 330UF 20% 10V 2917","Tantalkondensatoren","2917","330µh","10v",null,"ca. 200"]
[null,"C3216X7R2A104MT020U","Kondensator aus mehreren Keramikschichten","Keramik Kondensator","1206",null,null,null,"ca 1000"]
["DIGI KEY","FDC2512","MOSFET N-CH 150V 1.4A SUPERSOT6",null,null,null,null,null,3000]

{"sheet":"Teile in Kartons Lagerraum","index":6,"n_rows":257,"n_cols":9,"rows_kept":257,"cut":false,"hidden":false,"merged":[]}
[]
["Verkäufer","Artikelnummer","Beschreibung","Kategorie","Stückzahl","Detaillierte Beschreibung","Baugrösse","Karton","Verwender"]
[]
["DIGI-KEY","RZ03-1A4-D005","RELAY GEN PURPOSE SPST 16A 5V","Relais",500,"Mehrzweck Relais SPST-Schließer (1 Form A) 5V DC Spule Durchkontaktierung"]
["Mouser","DS18B20+T&R","tht digital thermometer","Thermometer",3580,"Thermostats Programmable Resolution 1-Wire Digital T",null,1]
["apra","35-1051-csc","Abdeckblende ","abdeckblende",337,"Abdeckblende Loch 2,3",null,1]
["apra","25-2055-csc","Frontblende PC (ul94-vo)","Frontblende",62,"TBD Frontblende für",null,1]
["DIGI-KEY","OSTTA044163","TERM BLK 4P SIDE ENT 5.08MM PCB","wire to board",917,"4 Position Wire to Board Terminal Block Horizontal with Board 0.200\" (5.08mm) Through Hole",null,1]
["Bürklin",28183102,"Abstandshalter für LED Typ Mentor 2818","Abstandshalter",2583,"Abstandshalter für LED Typ Mentor 2818",null,1]
["DIGI-KEY","ERZ-E11B221CS","VARISTOR 220V 6KA DISC 13MM","Varistor",5185,"220 V 6 kA Varistor 1 Schaltungen Durchkontaktierung Knopfzelle 13mm",null,1]
["DIGI-KEY","B32921C3683M189","CAP FILM 0.068UF 20% 630VDC RAD","Folien kondensatoren",4118,"0.068 µF Folienkondensatoren 305V 630V Polypropylen (PP) Radial",null,1]
[]
["DIGI-KEY","CMB02070X5100GB200","RES SMD 510 OHM 2% 1W 0207","Chipwiderstand",4039,"510 Ohms ±2% 1W Chipwiderstand MELF, 0207 Schwefelfrei, nach AEC-Q200 für den Automobilbau geeignet, Impulsfest Kohleschicht",null,2]
["DIGI-KEY","BK2125HS102-T","FERRITE BEAD 1 KOHM 0805 1LN","Ferrit",797,"1 kOhms @ 100 MHz 1 Ferritperlen und -chips 0805 (2012 metrisch) 300mA 400mOhm",null,2]
["DIGI-KEY","SMF4L12A","TVS DIODE 12VWM 19.9VC SOD123F","TVS Dioden",3475,"19,9V Klemme 20,1A Ipp TVS - Dioden Oberflächenmontage SOD-123F",null,2]
["DIGI-KEY","BLM15HB121SN1D","FERRITE BEAD 120 OHM 0402 1LN","Ferrit",7303,"120 Ohms @ 100 MHz 1 Signalleitung Ferritperlen und -chips 0402 (1005 metrisch) 300mA 700mOhm",null,2]
["DIGI-KEY","RC0805FR-0768R1L","RES 68.1 OHM 1% 1/8W 0805","Chipwiderstand",3651,"68.1 Ohms ±1% 0,125W, 1/8W Chipwiderstand 0805 (2012 metrisch) Feuchtigkeitsbeständig Dickschicht",null,2]
["DIGI-KEY","esda12-1k","TVS DIODE 12VWM 28VC SOD523","TVS Dioden",4681,"28V Klemme 16 A (8/20µs) Ipp TVS - Dioden Oberflächenmontage SOD-523",null,2]
["DIGI-KEY","smm 25","FUSE BRD MT 25A 250VAC 72VDC SMD","Sicherungen",4000,"25 A 250 V AC 72 V DC-Sicherung Platinenmontage (Einsatztyp nicht inklusive) Oberflächenmontage 2-SMD, quadratischer Endblock",null,2]
["DIGI-KEY","ACS716KLATR-12CB-NL-T","SENSOR CURRENT HALL 12.5A AC/DC","Stromsensoren",1000,"Stromsensoren 12,5A 1 Kanal Hall-Effekt, Offene Schleife Bidirektional 16-SOIC (0,295\", 7,50mm Breite)",null,2]
["DIGI-KEY","FOD8523SD","OPTOISOLATOR 5KV 1CH DARL 4-SMD","Optokoppler",3000,"Optokoppler Darlington Ausgang 5000Vrms 1 Kanal 4-SMD",null,2]
["DIGI-KEY","ACS716KLATR-12CB-T","SENSOR CURRENT HALL 12.5A AC/DC","Stromsensoren",1000,"Stromsensoren 12,5A 1 Kanal Hall-Effekt, Offene Schleife Bidirektional 16-SOIC (0,295\", 7,50mm Breite)",null,2]
["DIGI-KEY","ATMEGA168PB-AU","IC MCU 8BIT 16KB FLASH 32TQFP","Mikro controller",3690,"AVR AVR® ATmega, Functional Safety (FuSa) Mikrocontroller IC 8-Bit 20MHz 16KB (8K x 16) FLASH 32-TQFP (7x7)",null,2]
["DIGI-KEY","ATMEGA88PB-MU","IC MCU 8BIT 8KB FLASH 32VFQFN","Mikro kontroller",457,"AVR AVR® ATmega, Functional Safety (FuSa) Mikrocontroller IC 8-Bit 20MHz 8KB (4K x 16) FLASH 32-VFQFN (5x5)",null,2]
["DIGI-KEY","SMAJ58A","TVS DIODE 58VWM 93.6VC DO214AC","TVS Dioden",5000,"93,6V Klemme 4,3A Ipp TVS - Dioden Oberflächenmontage DO-214AC (SMA)",null,2]
["DIGI-KEY","SM15T220A","TVS DIODE 188VWM 388VC SMC","TVS Dioden",9545,"388V Klemme 26 A (8/20µs) Ipp TVS - Dioden Oberflächenmontage SMC",null,2]
["DIGI-KEY","smm 25","FUSE BRD MT 25A 250VAC 72VDC SMD","Sicherungen",344,"25 A 250 V AC 72 V DC-Sicherung Platinenmontage (Einsatztyp nicht inklusive) Oberflächenmontage 2-SMD, quadratischer Endblock",null,2]
[]
["DIGI-KEY","RZ03-1A4-D005","RELAY GEN PURPOSE SPST 16A 5V","Relais",500,"Mehrzweck Relais SPST-Schließer (1 Form A) 5V DC Spule Durchkontaktierung",null,3]
[]
["DIGI-KEY","RZ03-1A4-D006","RELAY GEN PURPOSE SPST 16A 5V","Relais",501,"Mehrzweck Relais SPST-Schließer (1 Form A) 5V DC Spule Durchkontaktierung",null,4]
[]
["DIGI-KEY",null,"Teile für Bewegungsmelder","Teile",null,"Einzelteile für die Bewegungsmelder",null,5]
[]
["DIGI-KEY",null,"Teile für Bewegungsmelder","Teile",null,"Einzelteile für die Bewegungsmelder",null,6]
[]
["DIGI-KEY"]
["DIGI-KEY"]
["DIGI-KEY"]
["DIGI-KEY"]
["DIGI-KEY"]
["DIGI-KEY"]
["DIGI-KEY"]
["DIGI-KEY"]
["DIGI-KEY"]
["DIGI-KEY"]
["DIGI-KEY"]
["DIGI-KEY"]
["DIGI-KEY"]
["DIGI-KEY"]
["DIGI-KEY"]
["DIGI-KEY"]
["DIGI-KEY"]
["DIGI-KEY"]
["DIGI-KEY"]
["DIGI-KEY"]
["DIGI-KEY"]
["DIGI-KEY"]
["DIGI-KEY"]
["DIGI-KEY"]
["DIGI-KEY"]
["DIGI-KEY"]
["DIGI-KEY"]
["DIGI-KEY"]
["DIGI-KEY"]
["DIGI-KEY"]
["DIGI-KEY"]
["DIGI-KEY"]
["DIGI-KEY"]
["DIGI-KEY"]
["DIGI-KEY"]
["DIGI-KEY"]
["DIGI-KEY"]
["DIGI-KEY"]
["DIGI-KEY"]
["DIGI-KEY"]
["DIGI-KEY"]
["DIGI-KEY"]
["DIGI-KEY"]
["DIGI-KEY"]
["DIGI-KEY"]
["DIGI-KEY"]
["DIGI-KEY"]
["DIGI-KEY"]
["DIGI-KEY"]
["DIGI-KEY"]
["DIGI-KEY"]
["DIGI-KEY"]
["DIGI-KEY"]
["DIGI-KEY"]
["DIGI-KEY"]
["DIGI-KEY"]
["DIGI-KEY"]
["DIGI-KEY"]
["DIGI-KEY"]
["DIGI-KEY"]
["DIGI-KEY"]
["DIGI-KEY"]
["DIGI-KEY"]
["DIGI-KEY"]
["DIGI-KEY"]
["DIGI-KEY"]
["DIGI-KEY"]
["DIGI-KEY"]
["DIGI-KEY"]
["DIGI-KEY"]
["DIGI-KEY"]
["DIGI-KEY"]
["DIGI-KEY"]
["DIGI-KEY"]
["DIGI-KEY"]
["DIGI-KEY"]
["DIGI-KEY"]
["DIGI-KEY"]
["DIGI-KEY"]
["DIGI-KEY"]
["DIGI-KEY"]
["DIGI-KEY"]
["DIGI-KEY"]
["DIGI-KEY"]
["DIGI-KEY"]
["DIGI-KEY"]
["DIGI-KEY"]
["DIGI-KEY"]
["DIGI-KEY"]
["DIGI-KEY"]
["DIGI-KEY"]
["DIGI-KEY"]
["DIGI-KEY"]
["DIGI-KEY"]
["DIGI-KEY"]
["DIGI-KEY"]
["DIGI-KEY"]
["DIGI-KEY"]
["DIGI-KEY"]
["DIGI-KEY"]
["DIGI-KEY"]
["DIGI-KEY"]
["DIGI-KEY"]
["DIGI-KEY"]
["DIGI-KEY"]
["DIGI-KEY"]
["DIGI-KEY"]
["DIGI-KEY"]
["DIGI-KEY"]
["DIGI-KEY"]
["DIGI-KEY"]
["DIGI-KEY"]
["DIGI-KEY"]
["DIGI-KEY"]
["DIGI-KEY"]
["DIGI-KEY"]
["DIGI-KEY"]
["DIGI-KEY"]
["DIGI-KEY"]
["DIGI-KEY"]
["DIGI-KEY"]
["DIGI-KEY"]
["DIGI-KEY"]
["DIGI-KEY"]
["DIGI-KEY"]
["DIGI-KEY"]
["DIGI-KEY"]
["DIGI-KEY"]
["DIGI-KEY"]
["DIGI-KEY"]
["DIGI-KEY"]
["DIGI-KEY"]
["DIGI-KEY"]
["DIGI-KEY"]
["DIGI-KEY"]
["DIGI-KEY"]
["DIGI-KEY"]
["DIGI-KEY"]
["DIGI-KEY"]
["DIGI-KEY"]
["DIGI-KEY"]
["DIGI-KEY"]
["DIGI-KEY"]
["DIGI-KEY"]
["DIGI-KEY"]
["DIGI-KEY"]
["DIGI-KEY"]
["DIGI-KEY"]
["DIGI-KEY"]
["DIGI-KEY"]
["DIGI-KEY"]
["DIGI-KEY"]
["DIGI-KEY"]
["DIGI-KEY"]
["DIGI-KEY"]
["DIGI-KEY"]
["DIGI-KEY"]
["DIGI-KEY"]
["DIGI-KEY"]
["DIGI-KEY"]
["DIGI-KEY"]
["DIGI-KEY"]
["DIGI-KEY"]
["DIGI-KEY"]
["DIGI-KEY"]
["DIGI-KEY"]
["DIGI-KEY"]
["DIGI-KEY"]
["DIGI-KEY"]
["DIGI-KEY"]
["DIGI-KEY"]
["DIGI-KEY"]
["DIGI-KEY"]
["DIGI-KEY"]
["DIGI-KEY"]
["DIGI-KEY"]
["DIGI-KEY"]
["DIGI-KEY"]
["DIGI-KEY"]
["DIGI-KEY"]
["DIGI-KEY"]
["DIGI-KEY"]
["DIGI-KEY"]
["DIGI-KEY"]
["DIGI-KEY"]
["DIGI-KEY"]
["DIGI-KEY"]
["DIGI-KEY"]
["DIGI-KEY"]
["DIGI-KEY"]
["DIGI-KEY"]
["DIGI-KEY"]
["DIGI-KEY"]
["DIGI-KEY"]
["DIGI-KEY"]
["DIGI-KEY"]
["DIGI-KEY"]
["DIGI-KEY"]
["DIGI-KEY"]
["DIGI-KEY"]
["DIGI-KEY"]
["DIGI-KEY"]
["DIGI-KEY"]
["DIGI-KEY"]
["DIGI-KEY"]
["DIGI-KEY"]
["DIGI-KEY"]
["DIGI-KEY"]
["DIGI-KEY"]
["DIGI-KEY"]
["DIGI-KEY"]
["DIGI-KEY"]
["DIGI-KEY"]
["DIGI-KEY"]
["DIGI-KEY"]
["DIGI-KEY"]
["DIGI-KEY"]
["DIGI-KEY"]
["DIGI-KEY"]
["DIGI-KEY"]
["DIGI-KEY"]

{"sheet":"Teile in Kartons Büro","index":7,"n_rows":231,"n_cols":8,"rows_kept":231,"cut":false,"hidden":false,"merged":[]}
["Verk./Herst.","Artikelnummer","Beschreibung","Kategorie","Stück","Detaillierte Beschreibung","Baugrösse","Kart."]
[]
["Mouser Panjit","PEC33712C2A_R1_00001","TVS DIODE 12VWM 25VC SOT23","TVS Dioden",100,"25V Klemme 5 A (8/20µs) Ipp TVS - Dioden Oberflächenmontage SOT-23","SOT-23","B1"]
["DigiKey","RC0603FR-074K7L","RES 4.7K OHM 1% 1/10W 0603","Chipwiderstand",1000,"4.7 kOhms ±1% 0,1W, 1/10W Chipwiderstand 0603 (1608 metrisch) Feuchtigkeitsbeständig Dickschicht","0603","B1"]
["DigiKey","CL10C220JB8NCNC","CAP CER 22PF 50V C0G/NP0 0603","Keramik Kondensatoren",null,"22 pF ±5% 50V Keramikkondensatoren C0G, NP0 0603 (1608 metrisch)","0603","B1"]
["DigiKey","RC0603FR-074K7L","RES 4.7K OHM 1% 1/10W 0603","Chipwiderstand",null,"4.7 kOhms ±1% 0,1W, 1/10W Chipwiderstand 0603 (1608 metrisch) Feuchtigkeitsbeständig Dickschicht","0603","B1"]
["DigiKey","GRM31CD80J107MEA8L","CAP CER 100UF 6.3V X6T 1206","Keramik Kondensatoren",200,"100 µF ±20% 6,3V Keramikkondensatoren X6T 1206 (3216 metrisch)","1206","B1"]
["DigiKey","M22-2510205","CONN HEADER VERT 2POS 2MM","Steckleisten, Stifte",1500,"Steckverbinder Steckleiste Durchkontaktierung 2 positionen 0,079\" (2,00mm)",null,"B1"]
["DigiKey","801-43-002-10-002000","CONN RCPT 2POS 0.1 GOLD PCB","Steckleisten, Stifte",27,"2 Positionen Buchse Steckverbinder 0,100\" (2,54mm) Durchkontaktierung Gold",null,"B1"]
["DigiKey","C1608C0G1H220J080AA","CAP CER 22PF 50V C0G 0603","Keramik Kondensatoren",1000,"22 pF ±5% 50V Keramikkondensatoren C0G, NP0 0603 (1608 metrisch)","0603","B1"]
["Mouser","V200CH8","VARISTORS 130V 250A 110PF 13 INCH REEL","Varistors",null,"Varistors 130V 250A 110pF 13 Inch Reel",null,"B1"]
[]
["DigiKey Murata","GRM155C80J225ME95D","CAP CER 2.2UF 6.3V X6S 0402","Keramik Kondensatoren",453,"2.2 µF ±20% 6,3V Keramikkondensatoren X6S 0402 (1005 metrisch)","0402","B2"]
["DigiKey TDK","MLZ2012N3R3LT000","FIXED IND 3.3UH 750MA 150MOHM SM","Feste  Drosselspulen","N/A","3.3 µH Geschirmt Mehrschichtig Induktor 750 mA 150mOhm 0805 (2012 metrisch)","0805","B2"]
["Bridgelux","BXT270N02M","Mosfet 2302C SOT-23 REEL","Mosfet",null,"20V 4.5A N-Channel Enhancement Mode Power MOSFET",null,"B2"]
["Digikey Vishay","SI2374DS-T1-GE3","MOSFET N-CH 20V 4.5A/5.9A SOT23","Mosfet",null,"N-Kanal 20 V 4,5 A (Ta), 5,9 A (Tc) 960mW (Ta), 1,7W (Tc) Oberflächenmontage SOT-23-3 (TO-236)","TO-236","B2"]
["Mouser Taiyo Yuden","NRS4018T4R7MDGJ","FIXED IND 4.7UH 1.7A 84 MOHM SMD","Feste  Drosselspulen",985,"4.7 µH Geschirmt Trommelkern, drahtgewickelt Induktor 1.7 A 84mOhm max. Nicht standardmäßig",null,"B2"]
["DigiKey STMicroelectronics","SMAJ58A-TR","TVS DIODE 58VWM 93.6VC DO214AC","TVS Dioden","ca 30","93,6V Klemme 4,3A Ipp TVS - Dioden Oberflächenmontage DO-214AC (SMA)",null,"B2"]
["DigiKey Yageo","RC0603FR-0710KL","RES 10K OHM 1% 1/10W 0603","Chipwiderstand",null,"10 kOhms ±1% 0,1W, 1/10W Chipwiderstand 0603 (1608 metrisch) Feuchtigkeitsbeständig Dickschicht","0603","B2"]
["Mouser Yageo","CC1808KKX7RDBB222","CAP CER 2200PF 2KV X7R 1808","Keramik Kondensatoren",100,"2200 pF ±10% 2000V (2kV) Keramikkondensatoren X7R 1808 (4520 metrisch)","1808","B2"]
["Mouser Diodes Inc.","FL2400022","CRYSTAL 24.0000MHZ 10PF SMD","Quarze",null,"24 MHz ±10ppm Quarze 10pF 4-SMD, ohne Anschlüsse",null,"B2"]
["DigiKey Bourns Inc.","CR0603-FX-1003ELF","RES SMD 100K OHM 1% 1/10W 0603","Chipwiderstand",null,"100 kOhms ±1% 0,1W, 1/10W Chipwiderstand 0603 (1608 metrisch) Feuchtigkeitsbeständig Dickschicht","0603","B2"]
[]
["Würth Farnell","434331013822","WS-TASU SMT Tact Switch","Taster",175,"Taster, WS-TASU, Seitliche Betätigung, Oberflächenmontage, Rechteckige Taste, 220 gf",null,"B3"]
["Mouser FTDI","FT240XQ-R","IC USB FS PARALLEL FIFO 24QFN","Controller",10,"USB Brücke, USB zu FIFO USB 2.0 FIFO Schnittstellen 24-QFN (4x4)","24-QFN","B3"]
["DigiKey Microchip Tech","ATECC608A-SSHDA-B","IC AUTHENTICATION CHIP 8SOIC","Spezielle IC´s",10,"Authentifizierungs-Chip 8-SOIC","8-SOIC","B3"]
["DigiKey TDK","MLZ2012N3R3LT000","FIXED IND 3.3UH 750MA 150MOHM SM","Feste  Drosselspulen",1000,"3.3 µH Geschirmt Mehrschichtig Induktor 750 mA 150mOhm 0805 (2012 metrisch)","0805","B3"]
["DigiKey Texas Inst.","CD74HC4051PWR","IC MUX 8:1 130OHM 16TSSOP","Analoge Schalter",500,"1 Schaltkreise Schalt-IC 8:1 130Ohm 16-TSSOP","16-TSSOP","B3"]
["DigiKey Texas Inst.","TPS62162DSGR","IC REG BUCK 3.3V 1A 8WSON","Spannungsregler",100,"Buck Schaltregler IC Positiv Fest 3,3V 1 Ausgang 1A 8-WFDFN mit freiliegendem Pad","8-WFDFN","B3"]
["Bridgelux","BXT270N02M","Mosfet 2302C SOT-23 REEL","Mosfet",null,"20V 4.5A N-Channel Enhancement Mode Power MOSFET",null,"B3"]
["DigiKey Microchip Tech","ATMEGA328PB-AU","IC MCU 8BIT 32KB FLASH 32TQFP","Mikrocontroller",25,"AVR AVR® ATmega, Functional Safety (FuSa) Mikrocontroller IC 8-Bit 20MHz 32KB (16K x 16) FLASH 32-TQFP (7x7)","32-TQFP","B3"]
["DigiKey Microchip Tech","KSZ8081RNACA-TR","IC TRANSCEIVER FULL 1/1 24QFN","Transceiver",null,"1/1 Transceiver Voll RMII 24-QFN (4x4)","24-QFN","B3"]
["DigiKey Rohm ","RB161MM-20TR","DIODE SCHOTTKY 25V 1A PMDU","Einzeldioden",122,"Dioden 25 V 1A Oberflächenmontage PMDU","SOD-123F","B3"]
["DigiKey Samsung","CL05B224KO5NNNC","CAP CER 0.22UF 16V X7R 0402","Keramik Kondensatoren",10000,"0.22 µF ±10% 16V Keramikkondensatoren X7R 0402 (1005 metrisch)","0402","B3"]
["DigiKey Walsin Tech","0603N101J500CT","CAP CER 100PF 50V C0G/NP0 0603","Keramik Kondensatoren",4000,"100 pF ±5% 50V Keramikkondensatoren C0G, NP0 0603 (1608 metrisch)","0603","B3"]
["Mouser Adesto","AT25SF321B-SSHB-B","IC FLASH 32MBIT SPI/QUAD 8SOIC","Speicher",13,"FLASH - NOR Speicher IC 32Mbit SPI - Quad-I/O 108 MHz 8-SOIC","8-SOIC","B3"]
["Mouser FTDI","FT240XS-R","IC USB FS PARALLEL FIFO 24SSOP","Controller",20,"USB Brücke, USB zu FIFO USB 2.0 FIFO Schnittstellen 24-SSOP","24-SSOP","B3"]
["Mouser Texas","TPS62132RGTT","IC REG BUCK 3.3V 3A 16VQFN","Spannungsregler",150,"Buck Schaltregler IC Positiv Fest 3,3V 1 Ausgang 3A 16-VFQFN mit freiliegendem Pad","16-VFQFN","B3"]
["Mouser New Age ","P3A-120704U","USB KEY","USB-Gehäuse",20,"Gehäuse Kunststoff, ABS Schwarz Handformat, einschl. Abdeckung L x B: 1,220\" x 0,710\" (30,99mm x 18,03mm) X 0,400\" (10,16mm)",null,"B3"]
["Mouser NJR","NJL7502L","SENSOR OPT 560NM AMBIENT RADIAL","Sensoren Umgebungslicht",75,"Optische Sensoren Umgebung 560nm Radial",null,"B3"]
["DigiKey Nexperia","BCP68-25,115","TRANS NPN 20V 2A SOT-223","Einzelne bipolare Transistoren",null,"Transistoren - Bipolar (BJT) - Einzeln NPN 20 V 2 A 170MHz 650 mW Oberflächenmontage SOT-223","SOT-223","B3"]
["DigiKey LiteOn","LTL-4211N","LED RED DIFFUSED T-1 T/H","LED-Indikator diskret",1000,"Rot 657nm LED-Indikator - Diskret 2,1V Radial",null,"B3"]
[]
["DigiKey ECS Mexico","4-SMD","CRYSTAL 8.0000MHZ 18PF SMD","Quarze",100,"8 MHz ±25ppm Quarze 18pF 4-SMD, ohne Anschlüsse","4-SMD","B4"]
["DigiKey Sullins Connector ","PRPC002SAAN-RC","CONN HEADER VERT 2POS 2.54MM","Steckleisten, Stifte",500,"Steckverbinder Steckleiste Durchkontaktierung 2 positionen 0,100\" (2,54mm)",null,"B4"]
["DigiKey Samsung","CL10B472KB8NNNC","CAP CER 4700PF 50V X7R 0603","Keramik Kondensatoren",1000,"4700 pF ±10% 50V Keramikkondensatoren X7R 0603 (1608 metrisch)","0603","B4"]
["DigiKey Keystone",8321,"LED HOLDER T1 3/4 NYLON NATURAL","Abstandhalter ",1000,"LED HOLDER T1 3/4 NYLON NATURAL",null,"B4"]
["DigiKey Texas Inst.","SN65HVD72DR","IC TRANSCEIVER HALF 1/1 8SOIC","Transceiver",100,"1/1 Transceiver Halb RS422, RS485 8-SOIC","8-SOIC","B4"]
["DigiKey Samsung","CL10B105MO8NNWC","CAP CER 1UF 16V X7R 0603","Keramik Kondensatoren",1000,"1 µF ±20% 16V Keramikkondensatoren X7R 0603 (1608 metrisch)","0603","B4"]
["DigiKey TDK","FK20X7S1H475KR000","CAP CER 4.7UF 50V X7S RADIAL","Keramik Kondensatoren",15,"4.7 µF ±10% 50V Keramikkondensatoren X7S Radial",null,"B4"]
["Mouser Rohm","RBS1MM40ATR","DIODE SCHOTTKY 20V 1A PMDU","Einzeldioden","ca 200","Dioden 20 V 1A Oberflächenmontage PMDU","SOD-123F","B4"]
["Mouser Comchip","ATV02W120B-HF","TVS DIODE 12VWM 19.9VC SOD123F","TVS Dioden",100,"19,9V Klemme 10,05 A Ipp TVS - Dioden Oberflächenmontage SOD-123F","SOD-123F","B4"]
["DigiKey LiteOn","LTST-C230KRKT","LED RED CLR CHIP SMD BOTTOM ENT","LED-Indikator diskret",null,"Rot 631nm LED-Indikator - Diskret 2V 1206 (3216 metrisch)","1206","B4"]
["Mouser Texas Instr.","TLV70433DBVT","IC REG LINEAR 3.3V 150MA SOT23-5","Spannungsregler","ca 200","PMIC - Spannungsregler - Linear Positiv Fest 1 Ausgang 150mA SOT-23-5","SOT-23-5","B4"]
["Mouser onsemi","MC74HC4053ADR2G","IC SWITCH SPDT X 3 100OHM 16SOIC","Analoge Schalter",100,"3 Schaltkreise Schalt-IC 2:1 100Ohm 16-SOIC","16-SOIC","B4"]
["Mouser Molex","48037-0001","CONN PLUG USB2.0 TYPEA 4POS R/A","USB Anschluss",20,"USB-A (USB TYP A) USB 2.0 Stecker Steckverbinder 4 Positionen Durchführungsloch, rechtwinklig",null,"B4"]
["Digiey Abracon","ABL-8.000MHZ-B2","CRYSTAL 8.0000MHZ 18PF TH","Quarze",1400,"8 MHz ±20ppm Quarze 18pF HC-49/US",null,"B4"]
[]
["DigiKey Yageo","RC0603FR-071ML","RES 1M OHM 1% 1/10W 0603","Chipwiderstand",6,"1 MOhms ±1% 0,1W, 1/10W Chipwiderstand 0603 (1608 metrisch) Feuchtigkeitsbeständig Dickschicht","0603","B5"]
["DigiKey Sullins Connector ","PRPC007SAAN-RC","CONN HEADER VERT 2POS 2.54MM","Steckleisten, Stifte",500,"Steckverbinder Steckleiste Durchkontaktierung 2 positionen 0,100\" (2,54mm)",null,"B5"]
["DigiKey Yageo","RC0603FR-0733RL","RES 33 OHM 1% 1/10W 0603","Chipwiderstand",1000,"33 Ohms ±1% 0,1W, 1/10W Chipwiderstand 0603 (1608 metrisch) Feuchtigkeitsbeständig Dickschicht","0603","B5"]
["LEITON","112462-1","Wifi V3.0 Leiterplatte","Leiterplatte",10,"Wifi V3.0 Leiterplatte","0603","B5"]
["DigiKey Samsung","CL10A106MQ8NNNC","CAP CER 10UF 6.3V X5R 0603","Keramik Kondensatoren",1000,"10 µF ±20% 6,3V Keramikkondensatoren X5R 0603 (1608 metrisch)",null,"B5"]
["DigiKey Sullins Connector ","PRPC002SAAN-RC","CONN HEADER VERT 7POS 2.54MM","Steckleisten, Stifte",500,"Steckverbinder Steckleiste Durchkontaktierung 7 positionen 0,100\" (2,54mm)",null,"B5"]
["DigiKey Samsung","CL10B103KO8WPNC","CAP CER 10NF 16V X7R 0603","Keramik Kondensatoren",1000,"10000 pF ±10% 16V Keramikkondensatoren X7R 0603 (1608 metrisch)","0603","B5"]
[]
["Mouser LiteOn","LTL-4211N","LED RED DIFFUSED T-1 T/H","LED-Indikator diskret",1002,"Rot 657nm LED-Indikator - Diskret 2,1V Radial",null,"B6"]
["Digikey Vishay","TSMP58000","SENSOR REMOTE REC 20 TO 60KHZ 5M","Empfänger",100,"Sensor für Fernempfänger 20 bis 60kHz 5m Durchkontaktierung",null,"B6"]
["Bürklin",28195070,"Abstandshalter für LEDs, 2819.5070","Abstandshalter ",80,"Abstandshalter für LED Typ Mentor 2819",null,"B6"]
[null,null,null,"Quarze",70,"Quarz 8000 ",null,"B6"]
["DigiKey LiteOn","LTL-14CHJ","LED GREEN/RED DIFFUSED T-1 T/H","LED-Indikator diskret",3944,"Grün, Rot 569nm Grün, 621nm Rot LED-Indikator - Diskret 2,1V Grün, 2V Rot Radial",null,"B6"]
[null,"LJE3530K","Mini Klinke ","Klinkenbuchse",4,"3,5mm Klinkenbuchse stereo",null,"B6"]
["DigiKey LiteOn","LTL-14CHJ","LED GREEN/RED DIFFUSED T-1 T/H","LED-Indikator diskret",2000,"Grün, Rot 569nm Grün, 621nm Rot LED-Indikator - Diskret 2,1V Grün, 2V Rot Radial abgewinkelt ",null,"B6"]
[]
["Mouser FTDI","FT245RL-Reel","IC USB TO PARALLEL FIFO 28-SSOP","Controller",250,"USB Brücke, USB zu FIFO USB 2.0 FIFO Schnittstellen 28-SSOP","29-SSOP","B7"]
["DigiKey Microchip Tech","KSZ8081MNXCA-TR","IC TRANSCEIVER FULL 1/1 32QFN","Transceiver",100,"1/1 Transceiver Voll MII 32-QFN (5x5)","32-QFN","B7"]
["DigiKey Rohm ","RB161M-20TR","DIODE SCHOTTKY 20V 1A PMDU","Einzeldioden",10,"Dioden 20 V 1A Oberflächenmontage PMDU","SOD-123F","B7"]
["Mouser Texas Instr.","TPS62162DSGR","IC REG BUCK 3.3V 1A 8WSON","Spannungsregler",1000,"3-17V 1A 3MHZ SD CON SCHALTSPANNUNGSREGLER","8-WFDFN","B7"]
["Mouser Microchip Tech","ATMEGA324PB-MUR","IC MCU 8BIT 32KB FLASH 44VQFN","Mikrocontroller",550,"AVR AVR® ATmega, Functional Safety (FuSa) Mikrocontroller IC 8-Bit 20MHz 32KB (16K x 16) FLASH 44-VQFN (7x7)","44-VQFN","B7"]
["Mouser FTDI","FT245RL-Reel","IC USB TO PARALLEL FIFO 28-SSOP","Controller",500,"USB Brücke, USB zu FIFO USB 2.0 FIFO Schnittstellen 28-SSOP","28-SSOP","B7"]
["DigiKey Murata","BLM15HB121SN1D","FERRITE BEAD 120 OHM 0402 1LN","Ferrit",250,"120 Ohms @ 100 MHz 1 Signalleitung Ferritperlen und -chips 0402 (1005 metrisch) 300mA 700mOhm","0402","B7"]
["Mouser Kingbright","AP3216ID","LED RED DIFFUSED CHIP SMD","LED-Indikator diskret",700,"Rot 625nm LED-Indikator - Diskret 2V 1206 (3216 metrisch)","1206","B7"]
["DigiKey Diodes Inc.","AS78L05RTR-E1","IC REG LINEAR 5V 100MA SOT89-3","Spannungsregler",1000,"PMIC - Spannungsregler - Linear Positiv Fest 1 Ausgang 100mA SOT-89-3","SOT-89-3","B7"]
["DigiKey onsemi","MBRS140","DIODE SCHOTTKY 40V 1A DO214AA","Einzeldioden",3000,"Dioden 40 V 1A Oberflächenmontage DO-214AA (SMB)","DO-214AA","B7"]
["DigiKey onsemi","MBRS140T3G","DIODE SCHOTTKY 40V 1A SMB","Einzeldioden",2500,"Dioden 40 V 1A Oberflächenmontage SMB","DO-214AA","B7"]
["DigiKey Microchip Tech","ATMEGA324PB-AN","IC MCU 8BIT 32KB FLASH 44TQFP","Mikrocontroller",500,"AVR AVR® ATmega, Functional Safety (FuSa) Mikrocontroller IC 8-Bit 20MHz 32KB (16K x 16) FLASH 44-TQFP (10x10)","44-TQFP","B7"]
[]
["DigiKey MeanWell ","IRM-02-12","AC/DC CONVERTER 12V 2W","AC/DC Wandler",640,"Gekapselt AC/DC-Wandler 1 Ausgang 12V 167mA 85 bis 305V AC, 120 bis 430V DC Eingang",null,"CS1"]
[]
["DigiKey Micron Tech","MT41J128M16HA-125:D-ND","IC DRAM 2GBIT PARALLEL 96FBGA","Speicher","unbek.","SDRAM - DDR3 Speicher IC 2Gbit Parallel 800 MHz 13.75 ns 96-FBGA (9x14)","96-TFBGA","CS2"]
[]
["DigiKey Würth ",749119133,"XFMR POE DC/DC CONV 400UH SMD","Schaltwandler",1358,"Power-Over-Ethernet (PoE) für Für DC/DC-Wandler SMPS transformatoren 1500Vrms Isolierung 200 bis 500kHz Oberflächenmontage",null,"B8"]
[]
["Mouser Taiyo Yuden","BRL2012T470M","FIXED IND 47UH 160MA 4.55OHM SMD","Feste  Drosselspulen",25,"47 µH Ungeschirmt Trommelkern, drahtgewickelt Induktor 160 mA 4,55Ohm max. 0805 (2012 metrisch)","0805","B9"]
["DigiKey Panasonic","EEE-2AA100UP","CAP ALUM 10UF 20% 100V SMD","Aluminium-Elektrolytkondensatoren",500,"10 µF 100 V Aluminium-Elektrolytkondensatoren Radial, Becher - SMD 2000 Std bei 85°C",null,"B9"]
["DigiKey FTDI","FT245RL-TUBE","IC USB TO PARALLEL FIFO 28SSOP","Controller",367,"USB Brücke, USB zu FIFO USB 2.0 FIFO Schnittstellen 28-SSOP","28-SSOP","B9"]
["Mouser Bourns","CDSOT23-SM712","TVS DIODE 12VWM 7VWM SOT233","TVS Dioden",null,"26V, 14V Klemme 17 A (8/20µs) Ipp TVS - Dioden Oberflächenmontage SOT-23-3","SOT-23-3","B9"]
["DigiKey","NPPN181BFCN-RC","CONN HDR 18POS 0.079 GOLD PCB","Steckleisten, Stifte",81,"18 Positionen Steckleiste Steckverbinder 0,079\" (2,00mm) Durchkontaktierung Gold",null,"B9"]
["DigiKey Texas Inst.","LM2595S-5.0/NOPB","IC REG BUCK 5V 1A TO263","Spannungsregler",30,"Buck Schaltregler IC Positiv Fest 5V 1 Ausgang 1A TO-263-6, D2PAK (5 Pins + Lasche), TO-263BA","TO-263-6","B9"]
["DigiKey pimoroni","PIM366","MLX90640 THERM CAM 110 DEGREE","Erweiterungsboard",1,"MLX90640 Temperatur (IR) Sensor Arduino, Raspberry Pi Plattform-Evaluierung Erweiterungsboard",null,"B9"]
["DigiKey Melexis","MLX90640ESF-BAA-000-SP","SENSOR DGTL -40C-85C TO39","Bildsensoren",3,"Thermisch Bildsensoren 32H x 24V TO-39","TO-39","B9"]
["TEM","MR-2819.5070","Abstandshalter für LED Ø5mm Einzel-LEDs stehend","Abstandshalter ",679,"Abstandshalter für LED Ø5mm Einzel-LEDs stehend",null,"B9"]
["DigiKey Same Sky","UP2-AH-1-TH","CONN PLUG USB2.0 TYPEA 4POS R/A","USB Anschluss",19,"USB-A (USB TYP A) USB 2.0 Stecker Steckverbinder 4 Positionen Durchführungsloch, rechtwinklig",null,"B9"]
["DigiKey Kemet","EDK106M100A9HAA","CAP ALUM 10UF 20% 100V SMD","Aluminium-Elektrolytkondensatoren",19,"10 µF 100 V Aluminium-Elektrolytkondensatoren Radial, Becher - SMD 2000 Std bei 85°C",null,"B9"]
["DigiKey Adam Tech","2PH1-03-UA","CONN HEADER VERT 3POS 2MM","Steckleisten, Stifte",550,"Steckverbinder Steckleiste Durchkontaktierung 3 positionen 0,079\" (2,00mm)",null,"B9"]
["DigiKey Yageo","RC0603FR-071ML","RES 1M OHM 1% 1/10W 0603","Chipwiderstand",817,"1 MOhms ±1% 0,1W, 1/10W Chipwiderstand 0603 (1608 metrisch) Feuchtigkeitsbeständig Dickschicht","0603","B9"]
[]
["Mouser Microchip Tech","KSZ8081MLXIA-TR","IC TRANSCEIVER FULL 1/1 48LQFP","Transceiver",83,"1/1 Transceiver Voll Ethernet 48-LQFP (7x7)","48-LQFP","B10"]
["DigiKey Murata","BLM18PG121SN1D","FERRITE BEAD 120 OHM 0603 1LN","Ferrit",500,"120 Ohms @ 100 MHz 1 Stromleitung Ferritperlen und -chips 0603 (1608 metrisch) 2A 50mOhm","0603","B10"]
["Mouser onsemi","CAT24C512WI-GT3","IC EEPROM 512KBIT I2C 1MHZ 8SOIC","Speicher",740,"IC EEPROM 512KBIT I2C 1MHZ 8SOIC","8-SOIC","B10"]
["Mouser vishay","TSMP77000TR","SENSOR REMOTE REC 20-60KHZ 5M","Fotodetektoren Fernempfänger",10,"Sensor für Fernempfänger 20 bis 60kHz 5m Oberflächenmontage",null,"B10"]
["DigiKey onsemi","BCW68GLT1G","TRANS PNP 45V 0.8A SOT23-3","Einzelne bipolare Transistoren",3000,"Transistoren - Bipolar (BJT) - Einzeln PNP 45 V 800 mA 100MHz 225 mW Oberflächenmontage SOT-23-3 (TO-236)","SOT-23-3","B10"]
["DigiKey Microchip Tech","MIC2025-2YM-TR","IC PWR SWITCH N-CHAN 1:1 8SOIC","Leistungsverteilungsschalter, Lasttreiber",800,"Schalter/Treiber 1:1 N-Kanal 500mA 8-SOIC","8-SOIC","B10"]
["DigiKey Nexperia","PMEG3010EP,115","DIODE SCHOTTK 30V 1A SOD128/CFP5","Einzeldioden",100,"Dioden 30 V 1A Oberflächenmontage SOD-128/CFP5","SOD-128","B10"]
["DigiKey Murata","BLM21PG331SN1D","FERRITE BEAD 330 OHM 0805 1LN","Ferrit",500,"330 Ohms @ 100 MHz 1 Stromleitung Ferritperlen und -chips 0805 (2012 metrisch) 1,5A 70mOhm","0805","B10"]
["DigiKey Microchip Tech","ATECC608B-SSHDA-B","IC AUTHENTICATION CHIP 8-SOIC","Spezielle IC´s",20,"Authentifizierungs-Chip 8-SOIC","8-SOIC","B10"]
["DigiKey Nexperia","BCW66HVL","TRANS NPN 45V 0.8A TO-236AB","Einzelne bipolare Transistoren",2000,"Transistoren - Bipolar (BJT) - Einzeln NPN 45 V 800 mA 100MHz 250 mW Oberflächenmontage TO-236AB","TO-236AB","B10"]
["Mouser NJR","NJL7502L","SENSOR OPT 560NM AMBIENT RADIAL","Sensoren Umgebungslicht",155,"Optische Sensoren Umgebung 560nm Radial",null,"B10"]
["Mouser ECS","ECS-400-20-3X-EN-TR","CRYSTAL 40.0000MHZ 20PF SMD","Quarze",220,"40 MHz ±30ppm Quarze 20pF HC-49/US","HC-49/US","B10"]
["Mouser Texas Instr.","TPS62162QDSGRQ1","IC REG BUCK 3.3V 1A 8WSON","Spannungsregler",1000,"Buck Schaltregler IC Positiv Fest 3,3V 1 Ausgang 1A 8-WFDFN mit freiliegendem Pad","8-WFDFN","B10"]
["DigiKey Microchip Tech","ATMEGA644P-20AQR","IC MCU 8BIT 64KB FLASH 44TQFP","Mikrocontroller",550,"IC MCU 8BIT 64KB FLASH 44TQFP","44TQFP","B10"]
["DigiKey Microchip Tech","KSZ8081RNACA-TR","IC TRANSCEIVER FULL 1/1 24QFN","Transceiver",785,"1/1 Transceiver Voll RMII 24-QFN (4x4)","24-QFN","B10"]
["Mouser Monolithic","MP9361DJ-LF-P","IC REG CHARGE PUMP 5V TSOT23-6","Spannungsregler",400,"Ladungspumpe Schaltregler IC Positiv Fest 5V 1 Ausgang 110mA SOT-23-6 dünn, TSOT-23-6","TSOT-23-6","B10"]
["DigiKey Texas Inst.","CD74HC4051QPWRQ1","IC MUX 8:1 130OHM 16TSSOP","Analoge Schalter",1000,"1 Schaltkreise Schalt-IC 8:1 130Ohm 16-TSSOP","16-TSSOP","B10"]
["Bridgelux"," BXT270N02M","MOSFET ","MOSFET ",3000,"20V 4.5A N-Channel Enhancement Mode Power MOSFET",null,"B10"]
["DigiKey NXP USA ","MIMXRT1052DVJ6B","IC MCU 32BIT 196MAPBGA","Mikrocontroller",7,"ARM® Cortex®-M7 RT1050 Mikrocontroller IC 32-Bit Single-Core 600MHz Externer Programmspeicher 43ns/130ns","196-LFBGA","B10"]
["DigiKey NXP USA ","MKV58F1M0VLL24","IC MCU 32BIT 1MB FLASH 100LQFP","Mikrocontroller",5,"ARM® Cortex®-M7 Kinetis KV Mikrocontroller IC 32-Bit Single-Core 240MHz 1MB (1M x 8) FLASH 100-LQFP (14x14)","100-LQFP","B10"]
["DigiKey Panasonic","ERJ-3EKF15R0V","RES SMD 15 OHM 1% 1/10W 0603","Chipwiderstand",1000,"15 Ohms ±1% 0,1W, 1/10W Chipwiderstand 0603 (1608 metrisch) AutomobilzulassungAEC-Q200 Dickschicht","0603","B10"]
["Digikey Vishay","TSAL6100","EMITTER IR 940NM 100MA RADIAL","LED Ermitter Infrarot",2000,"Infrarot (IR) Emitter 940nm 1,35V 100mA 80mW/sr bei 100mA 20° Radial, 5mm Durchm. (T 1 3/4)",null,"B10"]
["DigiKey Murata","BLM21PG331SN1D","FERRITE BEAD 330 OHM 0805 1LN","Ferrit",4000,"330 Ohms @ 100 MHz 1 Stromleitung Ferritperlen und -chips 0805 (2012 metrisch) 1,5A 70mOhm","0805","B10"]
["DigiKey Microchip Tech","ATMEGA64A-AU","IC MCU 8BIT 64KB FLASH 64TQFP","Mikrocontroller",180,"AVR AVR® ATmega Mikrocontroller IC 8-Bit 16MHz 64KB (32K x 16) FLASH 64-TQFP (14x14)","64-TQFP","B10"]
["DigiKey Microchip Tech","ATMEGA324PB-ANR","IC MCU 8BIT 32KB FLASH 44TQFP","Mikrocontroller",500,"AVR AVR® ATmega, Functional Safety (FuSa) Mikrocontroller IC 8-Bit 20MHz 32KB (16K x 16) FLASH 44-TQFP (10x10)","44-TQFP","B10"]
["DigiKey Yageo","RC0402FR-076K49L","RES 6.49K OHM 1% 1/16W 0402","Chipwiderstand",1000,"6.49 kOhms ±1% 0,063W, 1/16W Chipwiderstand 0402 (1005 metrisch) Feuchtigkeitsbeständig Dickschicht","0402","B10"]
["DigiKey ECS ","ECS-400-20-3X-EN-TR","CRYSTAL 40.0000MHZ 20PF SMD","Quarze",100,"40 MHz ±30ppm Quarze 20pF HC-49/US","HC-49/US","B10"]
["DigiKey Kingbright","APG0603ZGC-5MAV","LED GREEN CLEAR 2SMD","LED Indikator diskret",450,"Grün 525nm LED-Indikator - Diskret 2,85V 0201 (0603 metrisch)","0603","B10"]
["Mouser Onsemi","51-SIP","IC RF TXRX+MCU BLE 51SIP","HF Transceiver",160,"IC RF TxRx + MCU Bluetooth Bluetooth v5,0 2,36GHz bis 2,5GHz 51-SMD-Modul","51-SIP","B10"]
[]
["DigiKey Comchip","CGRM4007-G","DIODE STANDARD 1000V 1A MINI SMA","Einzeldioden",null,"Dioden 1000 V 1A Oberflächenmontage Mini SMA/SOD-123","SOD-123","B11"]
["DigiKey Murata","GRM21BR61E226ME44L","CAP CER 22UF 25V X5R 0805","Keramik Kondensatoren",50,"CAP CER 22UF 25V X5R 0805","0805","B11"]
["Digikey Vishay","CRCW060310R0JNEAHP","RES SMD 10 OHM 5% 1/3W 0603","Chipwiderstand",null,"10 Ohms ±5% 0,333W, 1/3W Chipwiderstand 0603 (1608 metrisch) Automobilzulassung AEC-Q200, impulsfest Dickschicht","0603","B11"]
["DigiKey Diodes Inc.","1N4148WS-7-F","DIODE STANDARD 75V 150MA SOD323","Einzeldioden",216,"Dioden 75 V 150mA Oberflächenmontage SOD-323","SOD-323","B11"]
["DigiKey Analog Devices","LTC4267CGN#PBF","IC POE CNTRL 1 CHANNEL 16SSOP","PoE Controller",25,"Power-Over-Ethernet-Controller (PoE) 1 Kanal 802.3af (PoE) 16-SSOP","16-SSOP","B11"]
["DigiKey Yageo","RC0805FR-0745R3L","RES 45.3 OHM 1% 1/8W 0805","Chipwiderstand",1000,"45.3 Ohms ±1% 0,125W, 1/8W Chipwiderstand 0805 (2012 metrisch) Feuchtigkeitsbeständig Dickschicht","0805","B11"]
["DigiKey Murata","GRM21BR61E106KA73L","CAP CER 10UF 25V X5R 0805","Keramik Kondensatoren",1000,"10 µF ±10% 25V Keramikkondensatoren X5R 0805 (2012 metrisch)","0805","B11"]
["DigiKey Texas Inst.","TLV431ACDBZR","IC VREF SHUNT ADJ 1% SOT23-3","Spannungsreferenz",144,"IC VREF SHUNT ADJ 1% SOT23-3","SOT23-3","B11"]
["DigiKey Texas Inst.","TPS62162DSGR","IC REG BUCK 3.3V 1A 8WSON","Spannungsregler",30,"Buck Schaltregler IC Positiv Fest 3,3V 1 Ausgang 1A 8-WFDFN mit freiliegendem Pad","8-WFDFN ","B11"]
["Digikey Vishay","1N4148WS-E3-18","DIODE STANDARD 75V 150MA SOD323","Einzeldioden",null,"Dioden 75 V 150mA Oberflächenmontage SOD-323","SOD-323","B11"]
["Mouser Bourns","TBU-CA065-200-WH","SURGE SUPP TBU 200MA 650VIMP SMD","Überspannungsunterdrückung",null,"Bi-Directional TBU Stoßspannungsunterdrücker",null,"B11"]
["DigiKey Samsung","CL10B104KA8NNNC","CAP CER 0.1UF 25V X7R 0603","Keramik Kondensatoren",null,"0.1 µF ±10% 25V Keramikkondensatoren X7R 0603 (1608 metrisch)","0603","B11"]
["DigiKey Yageo","RC0402FR-07332RL","RES 332 OHM 1% 1/16W 0402","Chipwiderstand",null,"332 Ohms ±1% 0,063W, 1/16W Chipwiderstand 0402 (1005 metrisch) Feuchtigkeitsbeständig Dickschicht","0402","B11"]
["DigiKey Texas Inst.","TLV431ACDBZR","IC VREF SHUNT ADJ 1% SOT23-3","Spannungsreferenz",null,"Shunt Spannungsreferenzen IC 6 V ±1% SOT-23-3","SOT-23-3","B11"]
["DigiKey TE Connectivity","1-215464-2","CONN HEADER VERT 12POS 2.54MM","Steckleisten, Stifte",100,"Steckverbinder Steckleiste Durchkontaktierung 12 positionen 0,100\" (2,54mm)",null,"B11"]
["DigiKey Panasonic","ERJ-3EKF3242V","RES SMD 32.4K OHM 1% 1/10W 0603","Chipwiderstand",1000,"32.4 kOhms ±1% 0,1W, 1/10W Chipwiderstand 0603 (1608 metrisch) AutomobilzulassungAEC-Q200 Dickschicht","0603","B11"]
["DigiKey Murata","GRM31CR60J107MEA8L","CAP CER 100UF 6.3V X5R 1206","Keramik Kondensatoren",100,"100 µF ±20% 6,3V Keramikkondensatoren X5R 1206 (3216 metrisch)","1206","B11"]
["DigiKey Kemet","C0603C223K3RACTU","CAP CER 0.022UF 25V X7R 0603","Keramik Kondensatoren",450,"0.022 µF ±10% 25V Keramikkondensatoren X7R 0603 (1608 metrisch)","0603","B11"]
["DigiKey Panasonic","ERJ-6GEYJ103V","RES SMD 10K OHM 5% 1/8W 0805","Chipwiderstand",1000,"10 kOhms ±5% 0,125W, 1/8W Chipwiderstand 0805 (2012 metrisch) AutomobilzulassungAEC-Q200 Dickschicht","0805","B11"]
["DigiKey Panasonic","ERJ-3EKF68R0V","RES SMD 68 OHM 1% 1/10W 0603","Chipwiderstand",1000,"RES SMD 68 OHM 1% 1/10W 0603","0603","B11"]
["Mouser NXP","MCF52255CAF80","IC MCU 32BIT 512KB FLASH 100LQFP","Mikrocontroller",50,"Coldfire V2 MCF5225x Mikrocontroller IC 32-Bit Single-Core 80MHz 512KB (512K x 8) FLASH 100-LQFP (14x14)","100-LQFP","B11"]
["Digikey Vishay","293D477X96R3D2TE3","CAP TANT 470UF 10% 6.3V 2917","Tantal Kondensatoren",50,"470 µF Vergossen Tantalkondensatoren 6.3 V 2917 (7343 metrisch) 500mOhm","2917","B11"]
["DigiKey Panasonic","EEE-2AA100UP","CAP ALUM 10UF 20% 100V SMD","Aluminium-Elektrolytkondensatoren",110,"CAP ALUM 10UF 20% 100V SMD",null,"B11"]
["DigiKey Taiyo Yuden","BK2125HS101-T","FERRITE BEAD 100 OHM 0805 1LN","Ferrit",1000,"100 Ohms @ 100 MHz 1 Ferritperlen und -chips 0805 (2012 metrisch) 900mA 100mOhm","0805","B11"]
["Digikey Vishay","CRCW060310R0JNEAHP","RES SMD 10 OHM 5% 1/3W 0603","Chipwiderstand",11,"10 Ohms ±5% 0,333W, 1/3W Chipwiderstand 0603 (1608 metrisch) Automobilzulassung AEC-Q200, impulsfest Dickschicht","0603","B11"]
["DigiKey Laird-Signal Integrity","HI1206N101R-10","FERRITE BEAD 100 OHM 1206 1LN","Ferrit",500,"100 Ohms 1 Stromversorgung, Signalleitung Ferritperlen und -chips 1206 (3216 metrisch) 3A 35mOhm","1206","B11"]
["DigiKey Littelfuse","V200CH8T","VARISTOR 200V 250A 2SMD NO LEAD","Varistors",250,"200 V 250 A Varistor 1 Schaltungen Oberflächenmontage, MLCV 2-SMD, ohne Anschlüsse","MLCV 2-SMD","B11"]
["DigiKey Belfuse","0ZCG0110BF2B","PTC RESET FUSE 24V 1.1A 1812","Rücksetzbare PTC Sicherung",250,"Polymerisch Rückstellbare PTC-Sicherung 24V 1.1 A Ih Oberflächenmontage 1812 (4532 metrisch), konkav","1812","B11"]
["DigiKey Panasonic","ERJ-3EKF3242V","RES SMD 32.4K OHM 1% 1/10W 0603","Chipwiderstand",1000,"32.4 kOhms ±1% 0,1W, 1/10W Chipwiderstand 0603 (1608 metrisch) AutomobilzulassungAEC-Q200 Dickschicht","AEC-Q200","B11"]
["DigiKey Taiwan Semiconductor","SMBJ6V0CA","TVS DIODE 6VWM 10.3VC DO214AA","TVS Dioden",50,"10,3V Klemme 58,3 A Ipp TVS - Dioden Oberflächenmontage DO-214AA (SMB)","DO-214AA ","B11"]
["DigiKey Susumu","KRL1632E-M-R068-F-T5","RES 0.068 OHM 1% 3/4W 1206","Chipwiderstand",50,"68 mOhms ±1% 0,75W, 3/4W Chipwiderstand 1206 (3216 metrisch) Automobilzulassung AEC-Q200, Strommessung Metallfolie","1206","B11"]
["DigiKey Stackpole","RMCF0603FT1K50","RES 1.5K OHM 1% 1/10W 0603","Chipwiderstand",1000,"1.5 kOhms ±1% 0,1W, 1/10W Chipwiderstand 0603 (1608 metrisch) AutomobilzulassungAEC-Q200 Dickschicht","0603","B11"]
["DigiKey Bourns Inc.","TBU-CA065-200-WH","SURGE SUPP TBU 200MA 650VIMP SMD","Überspannungs Unterdrückung",250,"SURGE SUPP TBU 200MA 650VIMP SMD","3-SMD","B11"]
["DigiKey Samsung","CL10B104KA8NNNC","CAP CER 0.1UF 25V X7R 0603","Keramik Kondensatoren",null,"0.1 µF ±10% 25V Keramikkondensatoren X7R 0603 (1608 metrisch)","0603","B11"]
["DigiKey Renesas Electronics","ISL83483IBZ","IC TRANSCEIVER HALF 1/1 8SOIC","Transceiver",30,"1/1 Transceiver Halb RS422, RS485 8-SOIC","8-SOIC","B11"]
["Mouser TDK","C2012X7R1H105K125AB","CAP CER 1UF 50V X7R 0805","Keramik Kondensatoren",1000,"1 µF ±10% 50V Keramikkondensatoren X7R 0805 (2012 metrisch)","0805","B11"]
["DigiKey Abracon","ASPI-2515-3R3M-T2","FIXED IND 3.3UH 1.3A 138MOHM SMD","Feste  Drosselspulen",100,"3.3 µH Geschirmt Trommelkern, drahtgewickelt Induktor 1.3 A 138mOhm Nicht standardmäßig",null,"B11"]
["DigiKey TDK","VLS3015ET-3R3M-CA","FIXED IND 3.3UH 1.5A 112MOHM SMD","Feste  Drosselspulen",1,"3.3 µH Geschirmt Trommelkern, drahtgewickelt Induktor 1.5 A 112mOhm max. Nicht standardmäßig",null,"B11"]
["DigiKey Renesas Electronics","ISL83485IBZ-T","IC TRANSCEIVER HALF 1/1 8SOIC","Transceiver",25,"1/1 Transceiver Halb RS422, RS485 8-SOIC","8-SOIC","B11"]
["DigiKey MCC","MBRD1045CT-TR","DIODE ARRAY SCHOTT 45V 10A DPAK","Dioden Arrays",17,"Diodenarray 1 Paar gemeinsame Kathoden 45 V 10A Oberflächenmontage TO-252-3, DPAK (2 Pins + Lasche), SC-63","TO-252-3","B11"]
["DigiKey Stackpole","RMCF0603FT470R","RES 470 OHM 1% 1/10W 0603","Chipwiderstand",200,"470 Ohms ±1% 0,1W, 1/10W Chipwiderstand 0603 (1608 metrisch) AutomobilzulassungAEC-Q200 Dickschicht","0603","B11"]
["Digikey Vishay","VO615A-4X017T","OPTOISOLATOR 5KV 1CH TRANS 4-SMD","Optokoppler",303,"Optokoppler Transistor Ausgang 5000Vrms 1 Kanal 4-SMD","4-SMD","B11"]
[]
["DigiKey AVX Corp.","06035a100jat2a KGM15ACG1H100JT","CAP CER 10PF 50V C0G/NP0 0603","Keramik Kondensatoren",50,"10 pF ±5% 50V Keramikkondensatoren C0G, NP0 0603 (1608 metrisch)","0603","B 12"]
["Digiey Yageo","RC0402FR-071ML","RES 1M OHM 1% 1/16W 0402","Chipwiderstand",1000,"1 MOhms ±1% 0,063W, 1/16W Chipwiderstand 0402 (1005 metrisch) Feuchtigkeitsbeständig Dickschicht","0402","B 12"]
["DigiKey TDK","C1608X7R1H103K080AA","CAP CER 10000PF 50V X7R 0603","Keramik Kondensatoren",1000,"10000 pF ±10% 50V Keramikkondensatoren X7R 0603 (1608 metrisch)","0603","B 12"]
["DigiKey Bourns Inc.","CDSOD323-T12SC","TVS DIODE 12VWM 29.5VC SOD323","TVS Dioden",96,"29,5V (typisch) Klemme 14 A (8/20µs) Ipp TVS - Dioden Oberflächenmontage SOD-323","SOD-323","B 12"]
["DigiKey TXC Corp.","7B-8.000MAAJ-T","CRYSTAL 8.0000MHZ 18PF SMD","Quarze",100,"8 MHz ±30ppm Quarze 18pF 4-SMD, ohne Anschlüsse","4-SMD","B 12"]
["DigiKey Yageo","RC0402FR-072K7L","RES 2.7K OHM 1% 1/16W 0402","Chipwiderstand",2500,"2.7 kOhms ±1% 0,063W, 1/16W Chipwiderstand 0402 (1005 metrisch) Feuchtigkeitsbeständig Dickschicht","0402","B 12"]
["DigiKey Panasonic","ERJ-2RKF2700X","RES SMD 270 OHM 1% 1/10W 0402","Chipwiderstand",150,"270 Ohms ±1% 0,1W, 1/10W Chipwiderstand 0402 (1005 metrisch) AutomobilzulassungAEC-Q200 Dickschicht","0402","B 12"]
["DigiKey Samsung","RC1608F3R3CS","RES SMD 3.3 OHM 1% 1/10W 0603","Chipwiderstand",250,"RES SMD 3.3 OHM 1% 1/10W 0603","0603","B 12"]
["DigiKey Yageo","RC0603FR-0733RL","RES 33 OHM 1% 1/10W 0603","Chipwiderstand",5000,"33 Ohms ±1% 0,1W, 1/10W Chipwiderstand 0603 (1608 metrisch) Feuchtigkeitsbeständig Dickschicht","0603","B 12"]
["DigiKey Yageo","RC0603FR-07470RL","RES 470 OHM 1% 1/10W 0603","Chipwiderstand",5000,"470 Ohms ±1% 0,1W, 1/10W Chipwiderstand 0603 (1608 metrisch) Feuchtigkeitsbeständig Dickschicht","0603","B 12"]
["DigiKey TDK","C0603C0G1H080D030BA","CAP CER 8PF 50V C0G 0201","Keramik Kondensatoren",50,"8 pF ±0,5pF 50V Keramikkondensatoren C0G, NP0 0201 (0603 metrisch)","0201","B 12"]
["DigiKey TDK","C1608X7R1C103K","CAP CER 10000PF 16V X7R 0603","Keramik Kondensatoren",100,"10000 pF ±10% 16V Keramikkondensatoren X7R 0603 (1608 metrisch)","0603","B 12"]
["DigiKey Diodes Inc.","BAT43WS-7-F","DIODE SCHOTTKY 30V 200MA SOD323","Einzeldioden",10,"Dioden 30 V 200mA Oberflächenmontage SOD-323","SOD-323","B 12"]
["DigiKey Kemet","C0603C223K1RACTU","CAP CER 0.022UF 100V X7R 0603","Keramik Kondensatoren",1000,"0.022 µF ±10% 100V Keramikkondensatoren X7R 0603 (1608 metrisch)","0603","B 12"]
["DigiKey Johanson","502r30w222kv3e-****-sc  SCED502W222K4GV001E","CAP CER 2200PF 250VAC X7R 2211","Keramik Kondensatoren",50,"2200 pF ±10% 250V Keramikkondensatoren X7R 2211 (5728 metrisch)","2211","B 12"]
["DigiKey Murata","GRM1555C1H220JA01D","CAP CER 22PF 50V C0G/NP0 0402","Keramik Kondensatoren",1000,"22 pF ±5% 50V Keramikkondensatoren C0G, NP0 0402 (1005 metrisch)","04002","B 12"]
["DigiKey Johanson","500r07s4r7bv4t QSCF500Q4R7B1GV001T","CAP CER 4.7PF 50V C0G/NP0 0402","Keramik Kondensatoren",100,"4.7 pF ±0,1pF 50V Keramikkondensatoren C0G, NP0 0402 (1005 metrisch)","0402","B 12"]
["DigiKey Belfuse","0ZCG0110AF2C","PTC RESET FUSE 16V 1.1A 1812","Rücksetzbare PTC Sicherung",250,"Polymerisch Rückstellbare PTC-Sicherung 16V 1.1 A Ih Oberflächenmontage 1812 (4532 metrisch), konkav","1812","B 12"]
["DigiKey Yageo","RC0603FR-0775RL","RES 75 OHM 1% 1/10W 0603","Chipwiderstand",100,"75 Ohms ±1% 0,1W, 1/10W Chipwiderstand 0603 (1608 metrisch) Feuchtigkeitsbeständig Dickschicht","0603","B 12"]
["DigiKey Yageo","RC0603FR-0722RL","RES 22 OHM 1% 1/10W 0603","Chipwiderstand",1000,"22 Ohms ±1% 0,1W, 1/10W Chipwiderstand 0603 (1608 metrisch) Feuchtigkeitsbeständig Dickschicht","0603","B 12"]
["DigiKey TDK","C1005C0G1H180J050BA","CAP CER 18PF 50V C0G 0402","Keramik Kondensatoren",1000,"18 pF ±5% 50V Keramikkondensatoren C0G, NP0 0402 (1005 metrisch)","0402","B 12"]
["DigiKey Samsung","RC2012F470CS","RES SMD 47 OHM 1% 1/8W 0805","Chipwiderstand",5000,"47 Ohms ±1% 0,125W, 1/8W Chipwiderstand 0805 (2012 metrisch) Feuchtigkeitsbeständig Dickschicht","0805","B 12"]
["DigiKey Samsung","CL10B102KC8NNNC","CAP CER 1000PF 100V X7R 0603","Keramik Kondensatoren",4000,"1000 pF ±10% 100V Keramikkondensatoren X7R 0603 (1608 metrisch)","0603","B 12"]
["DigiKey","RC0603JR-07130RL","RES 130 OHM 5% 1/10W 0603","Chipwiderstand",5000,"130 Ohms ±5% 0,1W, 1/10W Chipwiderstand 0603 (1608 metrisch) Feuchtigkeitsbeständig Dickschicht","0603","B 12"]
["DigiKey TDK","CGA2B2C0G1H101J050BA","CAP CER 100PF 50V C0G 0402","Keramik Kondensatoren",500,"100 pF ±5% 50V Keramikkondensatoren C0G, NP0 0402 (1005 metrisch)","0402","B 12"]
["DigiKey Panasonic","ERJ-3EKF68R1V","RES SMD 68.1 OHM 1% 1/10W 0603","Chipwiderstand",1000,"68.1 Ohms ±1% 0,1W, 1/10W Chipwiderstand 0603 (1608 metrisch) AutomobilzulassungAEC-Q200 Dickschicht","0603","B 12"]
["DigiKey Osram","efh3310",null,null,3,null,null,"B 12"]
["DigiKey Yageo","RC0402FR-0710KL","RES 10K OHM 1% 1/16W 0402","Chipwiderstand",1000,"10 kOhms ±1% 0,063W, 1/16W Chipwiderstand 0402 (1005 metrisch) Feuchtigkeitsbeständig Dickschicht","0402","B 12"]
["DigiKey Taiyo Yuden","UMK107BJ105KA-T","CAP CER 1UF 50V X5R 0603","Keramik Kondensatoren",4000,"1 µF ±10% 50V Keramikkondensatoren X5R 0603 (1608 metrisch)","0603","B 12"]
["DigiKey Samsung","CL10B223KB8NNNC","CAP CER 0.022UF 50V X7R 0603","Keramik Kondensatoren",4000,"0.022 µF ±10% 50V Keramikkondensatoren X7R 0603 (1608 metrisch)","0603","B 12"]
[]
["Digikey Vishay","VO615A-4X017T","OPTOISOLATOR 5KV 1CH TRANS 4-SMD","Optokoppler",692,"Optokoppler Transistor Ausgang 5000Vrms 1 Kanal 4-SMD","4-SMD","B 13"]
["DigiKey Onsemi","FOD8523SD","OPTOISOLATOR 5KV 1CH DARL 4-SMD","Optokoppler",1000,"Optokoppler Darlington Ausgang 5000Vrms 1 Kanal 4-SMD","4-SMD","B 13"]
["DigiKey CUI Inc","PDS1-S12-S12-M-TR","DC DC CONVERTER 12V 1W","DC/DC Wandler",500,"Isoliertes Modul DC/DC-Wandler 1 Ausgang 12V 83mA 10,8V - 13,2V Eingang",null,"B 13"]
["DigiKey CUI Inc","PDS1-S12-S12-M-TR","DC DC CONVERTER 12V 1W","DC/DC Wandler",500,"Isoliertes Modul DC/DC-Wandler 1 Ausgang 12V 83mA 10,8V - 13,2V Eingang",null,"B 13"]
["DigiKey CUI Inc","PDS1-S12-S12-M-TR","DC DC CONVERTER 12V 1W","DC/DC Wandler",500,"Isoliertes Modul DC/DC-Wandler 1 Ausgang 12V 83mA 10,8V - 13,2V Eingang",null,"B 13"]
["DigiKey Omron","B3FS-4052P","SWITCH TACTILE SPST-NO 0.05A 24V","Tastschalter",50,"Tastschalter SPST-Schließer Von oben betätigt Oberflächenmontage",null,"B 13"]
[]
["DigiKey Kemet","C1210V473KDRACTU","CAP CER 0.047UF 1KV X7R 1210","Keramik Kondensatoren",50,"0.047 µF ±10% 1000V (1kV) Keramikkondensatoren X7R 1210 (3225 metrisch)","1210","B 14"]
["DigiKey Littelfuse","V200CH8T","VARISTOR 200V 250A 2SMD NO LEAD","Varistors",200,"200 V 250 A Varistor 1 Schaltungen Oberflächenmontage, MLCV 2-SMD, ohne Anschlüsse",null,"B 14"]
["DigiKey Taiyo Yuden","CBC3225T470MR","FIXED IND 47UH 480MA 871MOHM SMD","Feste  Drosselspulen",100,"47 µH Ungeschirmt Trommelkern, drahtgewickelt Induktor 480 mA 871mOhm max. 1210 (3225 metrisch)","1210","B 14"]
["DigiKey Bourns Inc.","TBU-CA065-200-WH","SURGE SUPP TBU 200MA 650VIMP SMD","Überspannungsschutz",200,null,"3-SMD","B 14"]
["DigiKey Texas Inst.","SN65HVD72DGKR","IC TRANSCEIVER HALF 1/1 8VSSOP","Treiber, Empfänger, Transceiver",100,"1/1 Transceiver Halb RS422, RS485 8-VSSOP","8-TSSOP","B 14"]
["DigiKey Bourns Inc.","SRN3015-3R3M","FIXED IND 3.3UH 1.6A 112MOHM SMD","Feste  Drosselspulen",100,"3.3 µH Geschirmt Trommelkern, drahtgewickelt Induktor 1.6 A 112mOhm max. Nicht standardmäßig","1210","B 14"]
["DigiKey Bourns Inc.","CDSOT23-SM712","TVS DIODE 12VWM 7VWM SOT233","TVS Dioden",100,"26V, 14V Klemme 17 A (8/20µs) Ipp TVS - Dioden Oberflächenmontage SOT-23-3","SOT-23-3","B 14"]
["DigiKey Murata","LQW2BHN22NJ03L","FIXED IND 22NH 720MA 0.09OHM SMD","Feste  Drosselspulen",100,"22 nH Ungeschirmt Trommelkern, drahtgewickelt Induktor 720 mA 90mOhm max. Nicht standardmäßig","0805","B 14"]
["DigiKey Comchip","ATV02W120-HF","TVS DIODE 12VWM 19.9VC SOD123F","TVS Dioden",100,"19,9V Klemme 10,05 A Ipp TVS - Dioden Oberflächenmontage SOD-123F","SOD-123F","B 14"]
["DigiKey Texas Inst.","TPS62162QDSGRQ1","IC REG BUCK 3.3V 1A 8WSON","Spannungsregler",100,"Buck Schaltregler IC Positiv Fest 3,3V 1 Ausgang 1A 8-WFDFN mit freiliegendem Pad","8-WFDFN ","B 14"]
["DigiKey Littelfuse","V18AUMLA1812H","VARISTOR 27.5V 1812","Varistors",100,"27.5 V Varistor 1 Schaltungen Oberflächenmontage, MLCV 1812 (4532 metrisch)","1812","B 14"]
["DigiKey Murata","LQW2BHN22NJ03L","FIXED IND 22NH 720MA 0.09OHM SMD","Feste  Drosselspulen",100,"22 nH Ungeschirmt Trommelkern, drahtgewickelt Induktor 720 mA 90mOhm max. Nicht standardmäßig","0805","B 14"]
["DigiKey EPCOS","B82422T1471K000","FIXED IND 470NH 450MA 300MOHM SM","Feste  Drosselspulen",100,"470 nH Ungeschirmt Trommelkern, drahtgewickelt Induktor 450 mA 300mOhm max. 2-SMD, J-Anschluss","1210","B 14"]

{"sheet":"Kartons im LAB","index":8,"n_rows":101,"n_cols":8,"rows_kept":101,"cut":false,"hidden":false,"merged":[]}
["Verk./Herst.","Artikelnummer","Beschreibung","Kategorie","Stück","Detaillierte Beschreibung","Baugröße","Kart."]
["DigiKey Yageo","RC0402FR-0710RL","RES 10 OHM 1% 1/16W 0402","Chipwiderstand",960,"10 Ohms ±1% 0,063W, 1/16W Chipwiderstand 0402 (1005 metrisch) Feuchtigkeitsbeständig Dickschicht","0402","LAB 1"]
["Mouser Kyocera","CM05X5R226M04AH","CAP CER 22UF 4V X5R 0402","Keramik Kondensator",1000,"22 µF ±20% 4V Keramikkondensatoren X5R 0402 (1005 metrisch)","0402","LAB 1"]
["DigiKey Bourns","CR0402-FX-10R0GLF","RES SMD 10 OHM 1% 1/16W 0402","Chipwiderstand",1000,"10 Ohms ±1% 0,063W, 1/16W Chipwiderstand 0402 (1005 metrisch) Dickschicht","0402","LAB 1"]
["DigiKey IQD Frequency","LFXTAL003156BULK","CRYSTAL 8.0000MHZ 30PF TH","Quarze",100,"CRYSTAL 8.0000MHZ 30PF TH",null,"LAB 1"]
["DigiKey Kyocra","04026D475KAT2A","CAP CER 4.7UF 6.3V X5R 0402","Keramik Kondensator",400,"4.7 µF ±10% 6,3V Keramikkondensatoren X5R 0402 (1005 metrisch)","0402","LAB 1"]
["DigiKey Toshiba","TCK106AF,LF","IC PWR SWITCH P-CHANNEL 1:1 5SMV","Lasttreiber",25,"IC PWR SWITCH P-CHANNEL 1:1 5SMV","0402","LAB 1"]
["Mouser Yageo","RC0402FR-132M2L","RES 2.2M OHM 1% 1/16W 0402","Chipwiderstand",1000,"2.2 MOhms ±1% 0,063W, 1/16W Chipwiderstand 0402 (1005 metrisch) Dickschicht","0402","LAB 1"]
["DigiKey Abracon","ABM8G-24.000MHZ-B4Y-T","CRYSTAL 24.0000MHZ 10PF SMD","Quarze",50,"24 MHz ±30ppm Quarze 10pF 4-SMD, ohne Anschlüsse",null,"LAB 1"]
["DigiKey Abracon","CRA06P08322R0JTA","RES ARRAY 4 RES 22 OHM 1206","Widerstandsnetzwerke",100,"22 Ohm ±5% 62,5mW Leistung pro Element Isoliert 4 Widerstandsnetzwerke -arrays ±200ppm/°C 1206 (3216 metrisch), Konkav, Längsseitige Anschlüsse","1206","LAB 1"]
["DigiKey TDK","C2012X5R0J336M125AC","CAP CER 33UF 6.3V X5R 0805","Keramik Kondensator",550,"33 µF ±20% 6,3V Keramikkondensatoren X5R 0805 (2012 metrisch)","0805","LAB 1"]
["DigiKey Yageo","RC0402FR-0733RL","Chip Resistor","Chipwiderstand",950,"33 Ohms ±1% 0,063W, 1/16W Chipwiderstand 0402 (1005 metrisch) Feuchtigkeitsbeständig Dickschicht","0402","LAB 1"]
["DigiKey Panasonic","ERJ-3EKF4700V","RES SMD 470 OHM 1% 1/10W 0603","Chipwiderstand",950,"470 Ohms ±1% 0,1W, 1/10W Chipwiderstand 0603 (1608 metrisch) AutomobilzulassungAEC-Q200 Dickschicht","0603","LAB 1"]
["DigiKey Murata","BLM15PD121SN1D","BLM15PD121SN1D","Ferrit",500,"120 Ohms @ 100 MHz 1 Stromleitung Ferritperlen und -chips 0402 (1005 metrisch) 1,3A 90mOhm","0402","LAB 1"]
["DigiKey Kingbright","WP710A10GD","LED GREEN DIFFUSED T-1 T/H","LED Indikator",200,"Grün 568nm LED-Indikator - Diskret 2,2V Radial",null,"LAB 1"]
["DigiKeex Johanson","QSCF500Q4R7B1GV001T","CAP CER 4.7PF 50V C0G/NP0 0402","Keramik Kondensator",250,"4.7 pF ±0,1pF 50V Keramikkondensatoren C0G, NP0 0402 (1005 metrisch)","0402","LAB 1"]
["DigiKey Murata","GRM188R61E105KA12J","CAP CER 1UF 25V X5R 0603","Keramik Kondensator",288,"1 µF ±10% 25V Keramikkondensatoren X5R 0603 (1608 metrisch)","0603","LAB 1"]
["DigiKey Diodes Inc","FL2400022","CRYSTAL 24.0000MHZ 10PF SMD","Quarze",37,"24 MHz ±10ppm Quarze 10pF 4-SMD, ohne Anschlüsse",null,"LAB 1"]
[]
["DigiKey Texas","CD74HC238PWR","IC DECODER/DEMUX 1X3:8 16-TSSOP","Signalumschalter",25,"Dekodierer/Demultiplexer 1 x 3:8 16-TSSOP","16TSSOP","LAB 2"]
["DigiKey Taiyo","BKP1608HS121-T","FERRITE BEAD 120 OHM 0603 1LN","Ferrit",140,"120 Ohms @ 100 MHz 1 Stromleitung Ferritperlen und -chips 0603 (1608 metrisch) 2,7A 35mOhm","0603","LAB 2"]
["DigiKey Kemet","C0402C103K5RACTU","CAP CER 10000PF 50V X7R 0402","Keramik Kondensator",1000,"10000 pF ±10% 50V Keramikkondensatoren X7R 0402 (1005 metrisch)","0402","LAB 2"]
["DigiKey Murata","BLM18AG121SN1D","FERRITE BEAD 120 OHM 0603 1LN","Ferrit",500,"120 Ohms @ 100 MHz 1 Ferritperlen und -chips 0603 (1608 metrisch) 800mA 180mOhm","0603","LAB 2"]
["DigiKey Murata","GRM188R61E105MA12D","CAP CER 1UF 25V X5R 0603","Keramik Kondensator",50,"1 µF ±20% 25V Keramikkondensatoren X5R 0603 (1608 metrisch)","0603","LAB 2"]
["DigiKey Panasonic","ERJ-3EKF1800V","RES SMD 180 OHM 1% 1/10W 0603","Chipwiderstand",900,"180 Ohms ±1% 0,1W, 1/10W Chipwiderstand 0603 (1608 metrisch) AutomobilzulassungAEC-Q200 Dickschicht","0603","LAB 2"]
["DigiKey TDK","MPZ1608S221ATA00","FERRITE BEAD 220 OHM 0603 1LN","Ferrit",200,"220 Ohms @ 100 MHz 1 Stromleitung Ferritperlen und -chips 0603 (1608 metrisch) 2,2A 50mOhm","0603","LAB 2"]
["DigiKey Kyocera","06035A5R0CAT2A","CAP CER 5PF 50V NP0 0603","Keramik Kondensator",30,"5 pF ±0,25pF 50V Keramikkondensatoren C0G, NP0 0603 (1608 metrisch)","0603","LAB 2"]
["DigiKey Yageo","RC0603FR-0747RL","RC0603FR-0747RL","Chipwiderstand",950,"47 Ohms ±1% 0,1W, 1/10W Chipwiderstand 0603 (1608 metrisch) Feuchtigkeitsbeständig Dickschicht","0603","LAB 2"]
["DigiKey Murata","GRM0225C1H4R7CA03L","CAP CER MLCC","Keramik Kondensator","unekannt","Keramikkondensatoren",null,"LAB 2"]
["DigiKey Panasonic","ERJ-3EKF12870V","RES SMD 287 OHM 1% 1/10W 0603","Chipwiderstand",1000,"287 Ohms ±1% 0,1W, 1/10W Chipwiderstand 0603 (1608 metrisch) AutomobilzulassungAEC-Q200 Dickschicht","0603","LAB 2"]
["DigiKey Yageo","RC0603FR-0775RL","RES 75 OHM 1% 1/10W 0603","Chipwiderstand",100,"75 Ohms ±1% 0,1W, 1/10W Chipwiderstand 0603 (1608 metrisch) Feuchtigkeitsbeständig Dickschicht","0603","LAB 2"]
["DigiKey Bourns","PM1812-R10K-RC","FIXED IND 100NH 800MA 180MOHM SM","Feste Drosselspulen",100,"100 nH Ungeschirmt Induktor 800 mA 180mOhm max. 1812 (4532 metrisch)","1812","LAB 2"]
["DigiKey Panasonic","ERJ-2RKF24R9X","RES SMD 24.9 OHM 1% 1/10W 0402","Chipwiderstand",382,"RES SMD 24.9 OHM 1% 1/10W 0402","0402","LAB 2"]
["DigiKey Samsung","CL10C470JB8NNNC","CAP CER 47PF 50V C0G/NP0 0603","Keramik Kondensator",1000,"47 pF ±5% 50V Keramikkondensatoren C0G, NP0 0603 (1608 metrisch)","0603","LAB 2"]
[]
["DigiKey Kyocera","06031A110JAT4A","CAP CER 11PF 100V C0G/NP0 0603","Keramik Kondensator",50,"11 pF ±5% 100V Keramikkondensatoren C0G, NP0 0603 (1608 metrisch)","0603","LAB 3"]
["DigiKey Yageo","RC0603FR-072K7L","RES 2.7K OHM 1% 1/10W 0603","Chipwiderstand",1000,"RES 2.7K OHM 1% 1/10W 0603","0603","LAB 3"]
["DigiKey Panasonic","ERZ-E11A221","VARISTOR 220V 6KA DISC 13MM","Varistoren",100,"220 V 6 kA Varistor 1 Schaltungen Durchkontaktierung Knopfzelle 13mm",null,"LAB 3"]
["DigiKey Abracon","ASPI-2512-3R3M-T2","FIXED IND 3.3UH 980MA 227MOHM SM",null,15,"3.3 µH Geschirmt Trommelkern, drahtgewickelt Induktor 980 mA 227mOhm Nicht standardmäßig",null,"LAB 3"]
["DigiKey Phoenix Contact",1757242,"TERM BLOCK HDR 2POS 5.08MM","Steckleisten, Stecker ",12,"2 Positionen Anschlussblock Wannenstecker, Steckverbinder (4 Seiten) 0,200\" (5,08mm) 90°, rechtwinklig Durchkontaktierung",null,"LAB 3"]
["DigiKey Bourns","2031-23T-SMLF","GDT 185V 1KA 2 POLE SMD","Gasentladungsröhren","ca 40","Ableitkomponenten für Gasentladungsröhren 185 V 1000A (1kA) 2 polig Oberflächenmontage",null,"LAB 3"]
["DigiKey TDK","MLF1005LR82KT","FIXED IND 820NH 35MA 590MOHM SMD","Feste Drosselspulen",250,"820 nH Geschirmt Mehrschichtig Induktor 35 mA 590mOhm max. 0402 (1005 metrisch)","0402","LAB 3"]
["DigiKey Samsung","CL21B102KBANNNC","CAP CER 1000PF 50V X7R 0805","Keramik Kondensator",200,"1000 pF ±10% 50V Keramikkondensatoren X7R 0805 (2012 metrisch)","0805","LAB 3"]
["DigiKey BelFuse inc.","0ZCG0200AF2B","PTC RESET FUSE 16V 2A 1812","Rücksetzbare PTC Sicherungen",100,"Polymerisch Rückstellbare PTC-Sicherung 16V 2 A Ih Oberflächenmontage 1812 (4532 metrisch), konkav",null,"LAB 3"]
["DigiKey Yageo","RC0805FR-072K7L","RES 2.7K OHM 1% 1/8W 0805","Chipwiderstand",1000,"2.7 kOhms ±1% 0,125W, 1/8W Chipwiderstand 0805 (2012 metrisch) Feuchtigkeitsbeständig Dickschicht","0805","LAB 3"]
["DigiKey ECS","ECS-80-18-33-JGN-TR3","CRYSTAL 8.0000MHZ 18PF SMD","Quarze",10,"8 MHz ±20ppm Quarze 18pF 4-SMD, ohne Anschlüsse","4SMD","LAB 3"]
["DigiKey Würth","7490100110A","TRANSFORMER LAN 10/100 SMD","Pulswandler",2,"350µH LAN 10/100 Base-T Pulswandler 1:1 Oberflächenmontage",null,"LAB 3"]
["DigiKey TDK","C2012X7S2A105M125AB","CAP CER 1UF 100V X7S 0805","Keramik Kondensator",250,"1 µF ±20% 100V Keramikkondensatoren X7S 0805 (2012 metrisch)","0805","LAB 3"]
[null,"Diverses Ohne Beschriftung",null,null,null,null,null,"LAB 3"]
[]
["DigiKey Murata","GRM188R61C106KAALD","CAP CER 10UF 16V X5R 0603","Keramik Kondensator",250,"10 µF ±10% 16V Keramikkondensatoren X5R 0603 (1608 metrisch)","0603","LAB 4"]
["DigiKey Panasonic","ERJ-2RKF4701X","RES SMD 4.7K OHM 1% 1/10W 0402","Chipwiderstand",250,"4.7 kOhms ±1% 0,1W, 1/10W Chipwiderstand 0402 (1005 metrisch) AutomobilzulassungAEC-Q200 Dickschicht","0402","LAB 4"]
["MPE-Garry","369-3-010-0-NTX-KT0","Micro Match BL THT 2x005 abgewinkelt RM1,27 C=3,20 Sn/Sn Stange","Steckverbinder",18,"Micro Match BL THT 2x005 abgewinkelt RM1,27 C=3,20 Sn/Sn Stange",null,"LAB 4"]
["MPE-Garry","373-1-010-0-T-KT0","MicroMatchSTLTHT2x005geradeRM1,27C","Steckverbinder",34,"MicroMatchSTLTHT2x005geradeRM1,27C",null,"LAB 4"]
["DigiKey Panasonic","ERJ-2RKF1001X","DigiKey Panasonic","Chipwiderstand",150,"1 kOhms ±1% 0,1W, 1/10W Chipwiderstand 0402 (1005 metrisch) AutomobilzulassungAEC-Q200 Dickschicht","0402","LAB 4"]
["DigiKey Samsung","CL05A225MQ5NNNC","CAP CER 2.2UF 6.3V X5R 0402","Keramik Kondensator",1876,"2.2 µF ±20% 6,3V Keramikkondensatoren X5R 0402 (1005 metrisch)","0402","LAB 4"]
["DigiKey Yageo","RC0402FR-1330KL","RES 30K OHM 1% 1/16W 0402","Chipwiderstand",1000,"30 kOhms ±1% 0,063W, 1/16W Chipwiderstand 0402 (1005 metrisch) Feuchtigkeitsbeständig Dickschicht","0402","LAB 4"]
["DigiKey Panasonic","ERJ-2RKF6491X","RES SMD 6.49K OHM 1% 1/10W 0402","Chipwiderstand",900,"6.49 kOhms ±1% 0,1W, 1/10W Chipwiderstand 0402 (1005 metrisch) AutomobilzulassungAEC-Q200 Dickschicht","0402","LAB 4"]
["DigiKey Yageo","RC0603FR-07150RL","RES 150 OHM 1% 1/10W 0603","Chipwiderstand",1000,"150 Ohms ±1% 0,1W, 1/10W Chipwiderstand 0603 (1608 metrisch) Feuchtigkeitsbeständig Dickschicht","0603","LAB 4"]
["DigiKey Diodes inc","1N4148W-7-F","DIODE STANDARD 100V 300MA SOD123","Einzeldioden",200,"Dioden 100 V 300mA Oberflächenmontage SOD-123","SOD123","LAB 4"]
["DigiKey Kyocera","04023D105KAT2A bzw KGM05AR51E105KH","CAP CER 1UF 25V X5R 0402","Keramik Kondensator",2500,"1 µF ±10% 25V Keramikkondensatoren X5R 0402 (1005 metrisch)","0402","LAB 4"]
["DigiKey Yageo","RC0402FR-072K2L","RES 2.2K OHM 1% 1/16W 0402","Chipwiderstand",2000,"2.2 kOhms ±1% 0,063W, 1/16W Chipwiderstand 0402 (1005 metrisch) Feuchtigkeitsbeständig Dickschicht","0402","LAB 4"]
["DigiKey Bourns","CR0603-FX-1500ELF","RES SMD 150 OHM 1% 1/10W 0603","Chipwiderstand",5000,"150 Ohms ±1% 0,1W, 1/10W Chipwiderstand 0603 (1608 metrisch) Feuchtigkeitsbeständig Dickschicht","0603","LAB 4"]
["DigiKey Yageo","RC0402FR-07100RL","RES 100 OHM 1% 1/16W 0402","Chipwiderstand",500,"RES 100 OHM 1% 1/16W 0402","0402","LAB 4"]
[]
["DigiKey Murata","GRM188R71E184KA88D","CAP CER 0.18UF 25V X7R 0603","Keramik Kondensator",null,"0.18 µF ±10% 25V Keramikkondensatoren X7R 0603 (1608 metrisch)","0603","LAB 5"]
["DigiKey TDK","C1608X5R1C225K080AB","CAP CER 2.2UF 16V X5R 0603","Keramik Kondensator",null,"2.2 µF ±10% 16V Keramikkondensatoren X5R 0603 (1608 metrisch)","0603","LAB 5"]
["DigiKey Stackpole","RMCF0603FT6R80","RES 6.8 OHM 1% 1/10W 0603","Chipwiderstand",null,"6.8 Ohms ±1% 0,1W, 1/10W Chipwiderstand 0603 (1608 metrisch) AutomobilzulassungAEC-Q200 Dickschicht","0603","LAB 5"]
["DigiKey Samsung","RC1608F4R7CS","RES SMD 4.7 OHM 1% 1/10W 0603","Chipwiderstand",null,"4.7 Ohms ±1% 0,1W, 1/10W Chipwiderstand 0603 (1608 metrisch) Feuchtigkeitsbeständig Dickschicht","0603","LAB 5"]
["DigiKey Samsung","CL10F334ZA8NNNC","CAP CER 0.33UF 25V Y5V 0603","Keramik Kondensator",null,"0.33 µF -20%, +80% 25V Keramikkondensatoren Y5V (F) 0603 (1608 metrisch)","0603","LAB 5"]
["DigiKey TDK","C1608X5R1C155K080AB","CAP CER 1.5UF 16V X5R 0603","Keramik Kondensator",null,"1.5 µF ±10% 16V Keramikkondensatoren X5R 0603 (1608 metrisch)","0603","LAB 5"]
["DigiKey TDK","C1608X7R1E154K080AA","CAP CER 0.15UF 25V X7R 0603","Keramik Kondensator",null,"0.15 µF ±10% 25V Keramikkondensatoren X7R 0603 (1608 metrisch)","0603","LAB 5"]
["DigiKey Stackpole","RMCF0603FT2R20","RES 2.2 OHM 1% 1/10W 0603","Chipwiderstand",null,"2.2 Ohms ±1% 0,1W, 1/10W Chipwiderstand 0603 (1608 metrisch) AutomobilzulassungAEC-Q200 Dickschicht","0603","LAB 5"]
["DigiKey Vishay","CRCW06035R60FKEA","RES SMD 5.6 OHM 1% 1/10W 0603","Chipwiderstand",null,"5.6 Ohms ±1% 0,1W, 1/10W Chipwiderstand 0603 (1608 metrisch) AutomobilzulassungAEC-Q200 Dickschicht","0603","LAB 5"]
["DigiKey Stackpole","RMCF0603FT1R80","RES 1.8 OHM 1% 1/10W 0603","Chipwiderstand",null,"1.8 Ohms ±1% 0,1W, 1/10W Chipwiderstand 0603 (1608 metrisch) AutomobilzulassungAEC-Q200 Dickschicht","0603","LAB 5"]
["DigiKey TDK","C1608X6S1C335M080AC","CAP CER 3.3UF 16V X6S 0603","Keramik Kondensator",null,"3.3 µF ±20% 16V Keramikkondensatoren X6S 0603 (1608 metrisch)","0603","LAB 5"]
[]
["DigiKey Murata","BLM18PG121SN1D","FERRITE BEAD 120 OHM 0603 1LN","Ferrit",250,"120 Ohms @ 100 MHz 1 Stromleitung Ferritperlen und -chips 0603 (1608 metrisch) 2A 50mOhm","0603","LAB 6"]
["DigiKey Laird Sigal","LI0402E600R-10","FERRITE BEAD 60 OHM 0402 1LN","Ferrit",40,"60 Ohms @ 100 MHz 1 Stromversorgung, Signalleitung Ferritperlen und -chips 0402 (1005 metrisch) 500mA 300mOhm","0402","LAB 6"]
["DigiKey Murata","BLM18HG102SN1D","FERRITE BEAD 1 KOHM 0603 1LN","Ferrit",100,"1 kOhms @ 100 MHz 1 Ferritperlen und -chips 0603 (1608 metrisch) 100mA 1,6Ohm","0603","LAB 6"]
["DigiKey Taiyo Yuden","FBMH1608HL221-T","FERRITE BEAD 220 OHM 0603 1LN","Ferrit",250,"220 Ohms @ 100 MHz 1 Stromleitung Ferritperlen und -chips 0603 (1608 metrisch) 900mA 170mOhm","0603","LAB 6"]
["DigiKey Taiyo Yuden","BK2125LM252-T","FERRITE BEAD 2.5 KOHM 0805 1LN","Ferrit",100,"2.5 kOhms @ 100 MHz 1 Ferritperlen und -chips 0805 (2012 metrisch) 200mA 750mOhm","0805","LAB 6"]
["DigiKey Taiyo Yuden","BK2125HM102-T","FERRITE BEAD 1 KOHM 0805 1LN","Ferrit",100,"1 kOhms @ 100 MHz 1 Ferritperlen und -chips 0805 (2012 metrisch) 400mA 350mOhm","0805","LAB 6"]
["DigiKey","MI0805K601R-10","FERRITE BEAD 600 OHM 0805 3LN","Ferrit",134,"600 Ohms @ 100 MHz 1 Stromversorgung, Signalleitung Ferritperlen und -chips 0805 (2012 metrisch) 1,5A 100mOhm","0805","LAB 6"]
[]
["DigiKey Samsung","cl21f104zbnnnc","CAP CER 0.1UF 50V Y5V 0805","Keramik Kondensator",null,"0.1 µF -20%, +80% 50V Keramikkondensatoren Y5V (F) 0805 (2012 metrisch)","0805","LAB 7"]
["DigiKey United Chemi Com","EMVE160ARA101MF55G","CAP ALUM 100UF 20% 16V SMD","Alu-Elektrolytkondensatoren",null,"100 µF 16 V Aluminium-Elektrolytkondensatoren Radial, Becher - SMD 1000 Std bei 105°C",null,"LAB 7"]
["DigiKey Kemet","C0805C101JAGACTU","CAP CER 100PF 250V C0G/NP0 0805","Keramik Kondensator",null,"100 pF ±5% 250V Keramikkondensatoren C0G, NP0 0805 (2012 metrisch)","0805","LAB 7"]
["DigiKey Samsung","CL21F104ZBANNNC","CAP CER 0.1UF 50V Y5V 0805","Keramik Kondensator",null,"0.1 µF -20%, +80% 50V Keramikkondensatoren Y5V (F) 0805 (2012 metrisch)","0805","LAB 7"]
["DigiKey Samsung","CL10A106MQ8NNNC","CAP CER 10UF 6.3V X5R 0603","Keramik Kondensator",null,"10 µF ±20% 6,3V Keramikkondensatoren X5R 0603 (1608 metrisch)","0603","LAB 7"]
["DigiKey Panasonic","ERJ-2RKF33R0X","RES SMD 33 OHM 1% 1/10W 0402","Chipwiderstand",null,"33 Ohms ±1% 0,1W, 1/10W Chipwiderstand 0402 (1005 metrisch) AutomobilzulassungAEC-Q200 Dickschicht","0402","LAB 7"]
["DigiKey Yageo","RC0603JR-0722RL","RC0603JR-0722RL","Chipwiderstand",null,"22 Ohms ±5% 0,1W, 1/10W Chipwiderstand 0603 (1608 metrisch) Feuchtigkeitsbeständig Dickschicht","0603","LAB 7"]
["DigiKey Murata","GRM31CD80J107ME39L","CAP CER 100UF 6.3V X6T 1206","Keramik Kondensator",null,"100 µF ±20% 6,3V Keramikkondensatoren X6T 1206 (3216 metrisch)","1206","LAB 7"]
["digiKey Microchip","ATMEGA88PB-MU","IC MCU 8BIT 8KB FLASH 32VFQFN","Mikrocontroller",null,"AVR AVR® ATmega, Functional Safety (FuSa) Mikrocontroller IC 8-Bit 20MHz 8KB (4K x 16) FLASH 32-VFQFN (5x5)","32-VFQFN","LAB 7"]
["DigiKey Panasonic","ERJ-3EKF3900V","RES SMD 390 OHM 1% 1/10W 0603","Chipwiderstand",null,"390 Ohms ±1% 0,1W, 1/10W Chipwiderstand 0603 (1608 metrisch) AutomobilzulassungAEC-Q200 Dickschicht","0603","LAB 7"]
["DigiKey Experia","BCW66HVL","TRANS NPN 45V 0.8A TO-236AB","einzelne bipolare Transistoren",null,"Transistoren - Bipolar (BJT) - Einzeln NPN 45 V 800 mA 100MHz 250 mW Oberflächenmontage TO-236AB","TO-236-3, SC-59, SOT-23-3","LAB 7"]
["DigiKey Panasonic","ERJ-2RKF2400X","RES SMD 240 OHM 1% 1/10W 0402","Chipwiderstand",null,"240 Ohms ±1% 0,1W, 1/10W Chipwiderstand 0402 (1005 metrisch) AutomobilzulassungAEC-Q200 Dickschicht","0402","LAB 7"]
["DigiKey Murata","GRM32ER71A226KE20L","CAP CER 22UF 10V X7R 1210","Keramik Kondensator",null,"22 µF ±10% 10V Keramikkondensatoren X7R 1210 (3225 metrisch)","1210","LAB 7"]
["DigiKey Kyocera","0603YD563KAT2A","CAP CER 0.056UF 16V X5R 0603","Keramik Kondensator",null,"0.056 µF ±10% 16V Keramikkondensatoren X5R 0603 (1608 metrisch)","0603","LAB 7"]
["DigiKey Texas inst","TPS62132RGTR","IC REG BUCK 3.3V 3A 16VQFN","Spannunsregler/Schaltregler",null,"Buck Schaltregler IC Positiv Fest 3,3V 1 Ausgang 3A 16-VFQFN mit freiliegendem Pad","16-VFQFN ","LAB 7"]
["DigiKey Samsung","CL10b153kb8sfnc","CAP CER 0.015UF 50V X7R 0603","Keramik Kondensator",null,"0.015 µF ±10% 50V Keramikkondensatoren X7R 0603 (1608 metrisch)","0603","LAB 7"]

{"sheet":"Artikel","index":9,"n_rows":12,"n_cols":12,"rows_kept":12,"cut":false,"hidden":false,"merged":[]}
[]
[]
[]
[]
[]
[null,null,null,null,null,null,null,null,null,null," "]
[null,null,null,"Artikel ID","Verk./Herst.","Artikelnummer","detaillierte Beschreibung","Kategorie","Baugröße","Verwendung","Karton/Regal","Anzahl"]
[null,null,null,1,"Digi Key/ Yageo1","RC0402FR-0710RL","10 Ohms ±1% 0,063W, 1/16W Chipwiderstand 0402 (1005 metrisch) Feuchtigkeitsbeständig Dickschicht","Chipwiderstand","0402",null,"LAB 1",960]
[null,null,null,2,"DigiKey Panasonic","ERJ-2RKF2400X","240 Ohms ±1% 0,1W, 1/10W Chipwiderstand 0402 (1005 metrisch) AutomobilzulassungAEC-Q200 Dickschicht","Chipwiderstand","0402",null,"LAB 7"]
[null,null,null,3,"DigiKey1","RC0603FR-074K7L","4.7 kOhms ±1% 0,1W, 1/10W Chipwiderstand 0603 (1608 metrisch) Feuchtigkeitsbeständig Dickschicht","Chipwiderstand","0603",null,"B1"]
[null,null,null,4,"DIGI-KEY","RZ03-1A4-D005","Mehrzweck Relais SPST-Schließer (1 Form A) 5V DC Spule Durchkontaktierung","Relais",null,null,"Lager 3",500]
[null,null,null,null,null,null,null,null," ","                 "]